Workbook

Sheet Vivienda
A1: 2024-03-01 | C1: Por favor llenar solo los casilleros en Azul con fondo Verde | L1: 1 | M1: Si
L2: 2 | M2: No | P2: Poner Su factura de Electricidad Aqui
B3: Por favor llenar solo los casilleros en Azul con fondo Verde | L3: 3 | M3: Gas
E4: Moradores de la vivienda: | F4: Nombre | H4: Auditoria de Consumo | L4: 4 | M4: Electricidad | P4: Annual | Q4: =SUM(Q6:Q12) -> 2017 | R4: kWh
A5: Auditor o Resposable: | C5: Su Nombre | E5: e-mail(morador): | F5: mail@unsam.edu.ar | H5: Las celdas con este color se puede modificar | M5: Garrafa
A6: e:mail: | C6: mail@unsam.edu.ar | E6: Cel: (morador): | F6: 54911 42401 xxxx | H6: Las otras NO las modifique por favor | M6: A | P6: 18/05 | Q6: 346
A7: Fecha de ensayo: | C7: 2016-02-01 | E7: Superficie Cubierta (m2) | F7: 67 | G7: Area total de la vivienda | M7: B | P7: 18/06 | Q7: 268
E8: Superficie Cubierta Efectiva(m2) | F8: 60 | G8: Area en la que se usa cafefacción y refrigeración
A9: Tipo de vivienda (casa/Dpto)? | C9: Casa | D9: Casa/Dpto | E9: Número de personas en la Vivienda | F9: 4 | K9: Estimación del consumo de coccion -Cocina Electrica | P9: 19/01 | Q9: 294
A10: La vivienda se usa en forma regular todo el año | D10: Si | E10: Direccion | F10: Italia xxx | H10: 1 | I10: Alto | P10: 19/02 | Q10: 282
A11: Se toman vacaciones , cuantos dias al año | D11: NN | E11: Localidad: | F11: Su Lugar | H11: 2 | I11: medio | L11: N_pers.= | M11: =+n_pers -> 4 | P11: 19/03 | Q11: 365
H12: 3 | I12: bajo | K12: Gas | L12: Consumo= | M12: =3.3*n_pers/3 -> 4.4 | N12: kWh/día | P12: 19/04 | Q12: 462
A13: La vivienda tiene coneccion a la red de gas natural? | D13: Si | E13: Condicion Socioecónomica | F13: alta/media/baja | G13: 2 | H13: 4 | I13: muy bajo/sin medidor/Enganchado | K13: EE | L13: Consumo= | M13: =3*n_pers/3 -> 4 | N13: kWh/día
E14: Clase | F14: B | G14: A | H14: Con gas por redes | K14: Induc. | L14: Consumo= | M14: =2.6*n_pers/3 -> 3.466666667 | N14: kWh/día | P14: 19/05 | Q14: 400
A15: La vivienda tiene agua caliente sanitaria? | D15: Si | E15: Clase+Cond. Socieconomica | F15: =+F14&G13 -> B2 | G15: B | H15: Sin gas por redes
A17: La vivienda tiene calefon o termotange a gas? | D17: TERMO | E17: Termo/Calefón | F17: Fecha Fabricacion Aprox. | I17: Estimación del consumo de ACS con Termotanque Electrico
A18: Si tiene termotanque cuál es su Volumne Aprox. En Litros | D18: 45 | F18: =2022-D19 -> 2019 | I18: Termotanque Electrico | L18: Calefón Electrico
A19: Si tiene termotanque o Calefón, cual es su antiguedad Aprox. | D19: 3 | E19: años | I19: DT | J19: 25 | K19: N_pers.= | L19: =+n_pers -> 4
A20: La vivienda tiene mas de un calefon o termotange a gas? | D20: Si | I20: Etiqueta de Eficiencia | J20: A | K20: D | L20: Celfon_EE
A21: El calefon tiene llama piloto? | E21: Electrico | I21: V0= | J21: 80 | K21: 80 | L21: 30
A22: Cuantos pilotos encendido tiene? | D22: 1 | I22: Q0_mant= | J22: 0.95 | K22: 2.5 | L22: 0 | M22: kWh/día
A23: Estufas (Número de estufas a gas) | D23: 2 | I23: V= | J23: =+D18 -> 45 | K23: =+J23 -> 45 | M23: kWh/día | P23: Poner Su factura de gas Aqui
A24: Estufas a gas (Potencia Total) | D24: 3000 | E24: kcal/hora | I24: Q_mant= | J24: =+$J22*(J23/$J21)^0.667 -> 0.6472250693 | K24: =+$K22*(K23/$K21)^0.667 -> 1.703223866 | L24: 0 | M24: kWh/día
I25: Eff= | J25: 0.95 | K25: 0.92 | L25: =+K25 -> 0.92 | Q25: Annual= | R25: =+SUM(R28:R33) -> 727.9
I26: Q(kcal/d)= | J26: =+$J$19*$L$19*45/J$25 -> 4736.842105 | K26: =+$J$19*$L$19*45/K$25 -> 4891.304348 | L26: =+$J$19*$L$19*45/L$25 -> 4891.304348
A27: Si usa gas en garrafa, | D27: No | I27: Q(kWh/d)= | J27: =+J26*10.8/9300 -> 5.500848896 | K27: =+K26*10.8/9300 -> 5.680224404 | L27: =+L26*10.8/9300 -> 5.680224404
A28: cuantas garrafas de 10 kg usa al año para cocinar? | D28: 10 | I28: Q_tot (kWh/día)= | J28: =+J27+J24 -> 6.148073966 | K28: =+K27+K24 -> 7.38344827 | L28: =+L27+L24 -> 5.680224404 | M28: kWh/día | P28: 1 | Q28: 21/5 | R28: 162.22
A29: cuantas garrafas de 10 kg usa para Calefacción.? | D29: xx | I29: Q_tot (kWh/año)= | J29: =+J28*365 -> 2244.046997 | K29: =+K28*365 -> 2694.958619 | L29: =+L28*365 -> 2073.281907 | M29: kWh/año | P29: 2 | Q29: 21/6 | R29: 166.5
A30: cuantas garrafas de 10 kg usa al año para Agua Calient. San.? | P30: 3 | Q30: 22/1 | R30: 101.11
C31: Coccion | D31: =10*D28 -> 100 | E31: kg/Año | P31: 4 | Q31: 22/2 | R31: 75.13
D32: =+D33*10.8 -> 1206.36 | E32: kWh/año | P32: 5 | Q32: 22/3 | R32: 100.37
D33: =+D31*1.117 -> 111.7 | E33: m3 (eq)/año | P33: 6 | Q33: 22/4 | R33: 122.57
P34: 7 | Q34: 22/5 | R34: 181.67
B35: Incluir fotos
B37: Estufas | D37: Calefones y/o Temotanques y/o Caldera | F37: Cocina | G37: Heldera | I37: Heladera Etiqueta | L37: Aire Acond. 1 | N37: Aire Acond. 1 Etiqueta | P37: Aire Acond. 2 | Q37: Aire Acond. 1 Etiqueta | S37: Aire Acond. 3 | T37: Aire Acond. 1 Etiqueta

Sheet Resumen
A1: =+$B$2&E2&"Viviendas con Conex. A G.N." -> Resumen de 283Viviendas con Conex. A G.N. | F1: =+F2 -> Viviendas Con Conexión a redes de gas Natural | S1: =+$F$1 -> Viviendas Con Conexión a redes de gas Natural | X1: =+$F$1 -> Viviendas Con Conexión a redes de gas Natural | AB1: Consumo domestcio de GN AMBA = | AE1: =+AB1&ROUND(AI4,0)&" m3/año" -> Consumo domestcio de GN AMBA =1168 m3/año | AH1: =+$F$1 -> Viviendas Con Conexión a redes de gas Natural | AT1: =+$F$1 -> Viviendas Con Conexión a redes de gas Natural | BJ1: 0.297 | BK1: 0.202 | BL1: 0.267 | BQ1: =+AC4 -> 1378.108052 | BR1: =+AD4 -> 2617.422686 | BS1: 2299.837307 | BT1: 6314.015426
B2: Resumen de | D2: N= | E2: 283 | F2: Viviendas Con Conexión a redes de gas Natural | M2: Viviendas Con Conexción a redes de gas Natural | T2: Viviendas Con Connexción a redes de gas Natural | AA2: Viviendas Con Connexción a redes de gas Natural | AH2: Viviendas Con Connexción a redes de gas Natural | AM2: MWh/año | AN2: MWh/año | AO2: Viviendas Con Connexción a redes de gas Natural | AX2: Calef.T. (kWh) | AY2: Refrig.T (kWh) | BA2: Calf/m2 | BD2: EE/N_pers | BH2: MWh/año | BI2: MWh/año | BJ2: Tn(CO2)/año | BK2: Tn(CO2)/año | BL2: Tn(CO2)/año | BM2: Tn(CO2)/año | BN2: Emisiones | BQ2: Análisis Bottom Up
A3: Resumen Historico | C3: A | E3: # Persona | G3: Sup (m2) | I3: # Heladeras | J3: Heladera | K3: Lavarropa | L3: Ilumin. | M3: AA-Cal+Ref. | N3: Cale.EE. | O3: Microonda | P3: Cafetera | Q3: TV+Electr. | R3: Inform. | S3: Stand By | T3: Planch. | U3: Bomba | V3: Secador P. | W3: HornoE | X3: ACS_E | Y3: Cocina_EE | Z3: otros | AA3: Extra | AB3: Todo Electicidad | AC3: Cocción | AD3: ACS | AE3: Piloto | AF3: Calefacción | AG3: Otro_gas | AH3: TOTAL_GAS | AI3: Gas (m3) | AJ3: kWh/ano | AM3: Electr. | AN3: Gas | AO3: Total Cocina | AP3: Heladera | AQ3: ACS | AR3: Acond.Term | AS3: Casa_Electr | AT3: Otros | AU3: Todo | AV3: ACS/per | AW3: Elect.Casa/Pers | AX3: Calef.T. | AY3: Refrig.T | AZ3: Ac.Term/m2 | BA3: Calf/m2 | BB3: Cocina T./pers | BC3: kg(CO2)/m2 | BD3: EE/N_pers | BE3: ACS/Pers | BF3: %AA | BG3: %AA_Calef | BH3: Transp | BI3: Total | BJ3: Electr. | BK3: Gas | BL3: Transp | BM3: Total | BN3: Electr+Gas | BO3: Electr+Gas | BR3: m3/año | BS3: MWh/año | BT3: m3/día
A4: Viviendas con coneccion a redes de GN | D4: =+AB4 -> 3343.91347 | E4: 3.234875445 | F4: Promedio | G4: 90 | I4: 1.55672 | J4: 840.7089173 | K4: 107.1251867 | L4: 282.9463913 | M4: 807.9520111 | N4: 701.2912919 | O4: 105.8851663 | P4: 144.9563075 | Q4: 235.9728859 | R4: 273.1193868 | S4: 99.14630174 | T4: 90.33009598 | U4: 206.49925 | V4: 59.08164856 | W4: 325.1563876 | X4: 1088.702775 | Y4: 0 | Z4: 309.8879377 | AA4: 1069.314207 | AB4: 3343.91347 | AC4: 1378.108052 | AD4: 2617.422686 | AE4: 2299.837307 | AF4: 6314.015426 | AG4: 4474.223542 | AH4: =+SUM(AC4:AF4) -> 12609.38347 | AI4: =+AH4/10.8 -> 1167.535507 | AJ4: =+AB4+AH4 -> 15953.29694 | AM4: =+AB4/1000 -> 3.34391347 | AN4: =+AH4/1000 -> 12.60938347 | AO4: =+AC4+W4+P4+O4 -> 1954.105914 | AP4: =+J4 -> 840.7089173 | AQ4: =+AD4+AE4 -> 4917.259993 | AR4: =+M4+N4+AF4 -> 7823.258729 | AS4: =+K4+L4+SUM(Q4:V4) -> 1354.221147 | AT4: =+Z4+AA4 -> 1379.202145 | AU4: =SUM(AO4:AT4) -> 18268.75684 | AV4: =+IF(E4>0,AQ4/E4,AQ4/2.3) -> 1520.077071 | AW4: =+IF(E4>0,AS4/E4,AS4/2.3) -> 418.6316197 | AX4: =+AF4+N4+M4*0.667 -> 7554.210709 | AY4: =+M4*0.333 -> 269.0480197 | AZ4: =+IF(G4>0,AR4/G4,AR4/65) -> 86.92509699 | BA4: =+(AF4+N4+M4*0.667)/G4 -> 83.93567455 | BB4: =+IF(E4>0,AO4/E4,AO4/2.3) -> 604.0745454 | BC4: =+((M4+N4)*$BK$5+AF4*$BL$5)/G4 -> 37.29814903 | BD4: =+(K4+L4+SUM(Q4:V4))/E4 -> 418.6316197 | BE4: =+AQ4/E4 -> 1520.077071 | BF4: =+M4/AR4 -> 0.1032756348 | BG4: =+(AF4+AM4*0.66)/AX4 -> 0.8361194375 | BI4: =SUM(AO4:AT4)/1000 -> 18.26875684 | BJ4: =+BJ$1*AM4 -> 0.9931423005 | BK4: =+BK$1*AN4 -> 2.547095461 | BL4: =+BL$1*BH4 -> 0 | BM4: =+SUM(BJ4:BL4) -> 3.540237762 | BN4: =+BJ4+BK4 -> 3.540237762 | BO4: 3.08210517 | BQ4: Cocción | BR4: =+BQ1/10.8 -> 127.6025974 | BS4: =+BQ1/1000 -> 1.378108052 | BT4: =+BR4/365 -> 0.3495961573
A5: =+$D$30&"="& ROUND(D5/1000,2)&" "&$F$30&" Con GN" -> Total Electr.=2.9 MWh/año Con GN | C5: Electrico | D5: =+AB5 -> 2900.12 | E5: =+E4 -> 3.234875445 | F5: Mediana | G5: 85 | I5: 1 | J5: 711.02 | K5: 49.78859172 | L5: 164.25 | M5: 465.9 | N5: 480 | O5: 69.95833333 | P5: 56.27083333 | Q5: 180.675 | R5: 183.3495 | S5: 61.32 | T5: 45 | U5: 108.75 | V5: 23.328 | W5: 179.14 | X5: 614.8425 | Y5: 0 | Z5: 112.1766667 | AA5: 40.88 | AB5: 2900.12 | AC5: 1263.055733 | AD5: 2455.767481 | AE5: 2170.877042 | AF5: 5121.107052 | AG5: 4474.223542 | AH5: =+SUM(AC5:AF5) -> 11010.80731 | AI5: =+AH5/10.8 -> 1019.519195 | AJ5: =+AB5+AH5 -> 13910.92731 | AM5: =+AB5/1000 -> 2.90012 | AN5: =+AH5/1000 -> 11.01080731 | AO5: =+AC5+Y5+W5+P5+O5 -> 1568.4249 | AP5: =+J5 -> 711.02 | AQ5: =+AD5+AE5 -> 4626.644522 | AR5: =+M5+N5+AF5 -> 6067.007052 | AS5: =+K5+L5+SUM(Q5:V5) -> 816.4610917 | AT5: =+Z5+AA5 -> 153.0566667 | AU5: =SUM(AO5:AT5) -> 13942.61423 | AV5: =+IF(E5>0,AQ5/E5,AQ5/2.3) -> 1430.238846 | AW5: =+IF(E5>0,AS5/E5,AS5/2.3) -> 252.3933628 | AX5: =+AF5+N5+M5*0.667 -> 5911.862352 | AY5: =+M5*0.333 -> 155.1447 | AZ5: =+IF(G5>0,AR5/G5,AR5/65) -> 71.37655355 | BA5: =+(AF5+N5+M5*0.667)/G5 -> 69.55132178 | BB5: =+IF(E5>0,AO5/E5,AO5/2.3) -> 484.8486215 | BC5: =+((M5+N5)*$BK$5+AF5*$BL$5)/G5 -> 24.75123261 | BD5: =+(K5+L5+SUM(Q5:V5))/E5 -> 252.3933628 | BE5: =+AQ5/E5 -> 1430.238846 | BF5: =+M5/AR5 -> 0.07679239467 | BG5: =+AF5/AX5 -> 0.8662426063 | BI5: =SUM(AO5:AT5)/1000 -> 13.94261423 | BJ5: =+BJ$1*AM5 -> 0.86133564 | BK5: =+BK$1*AN5 -> 2.224183076 | BL5: =+BL$1*BH5 -> 0 | BM5: =+SUM(BJ5:BL5) -> 3.085518716 | BN5: =+BJ5+BK5 -> 3.085518716 | BO5: 3.08210517 | BQ5: ACS | BR5: =+BR1/10.8 -> 242.3539524 | BS5: =+BR1/1000 -> 2.617422686 | BT5: 0.6639834312
A6: =+$A$29&ROUND(G6,0)&" kWh/m2.año" -> Acond.Term.=87 kWh/m2.año | D6: =+AB4+AH4 -> 15953.29694 | F6: AT/m2= | G6: =+AZ4 -> 86.92509699 | H6: kWh/m2/año | I6: =+I4 -> 1.55672 | J6: =+J4 -> 840.7089173 | K6: =+K4 -> 107.1251867 | L6: 282.9463913 | M6: 807.9520111 | N6: 701.2912919 | O6: 105.8851663 | P6: 144.9563075 | Q6: 235.9728859 | R6: 273.1193868 | S6: 99.14630174 | T6: 90.33009598 | U6: 206.49925 | V6: 59.08164856 | W6: 325.1563876 | X6: 1088.702775 | Y6: 0 | Z6: 309.8879377 | AA6: 1069.314207 | AC6: 1378.108052 | AD6: 2617.422686 | AE6: 2299.837307 | AF6: 6314.015426 | AJ6: =+SUM(AC6:AF6)+AB7 -> 17978.25747 | AN6: Con GN | AO6: =+AO4 -> 1954.105914 | AP6: 840.7089173 | AQ6: 4917.259993 | AR6: 7823.258729 | AS6: 1354.221147 | AT6: 1379.202145 | AU6: 18268.75684 | AV6: 1520.077071 | AW6: 418.6316197 | AX6: 7554.210709 | AY6: 269.0480197 | AZ6: 86.92509699 | BA6: 83.93567455 | BB6: 604.0745454 | BC6: 37.29814903 | BD6: 418.6316197 | BE6: 1520.077071 | BQ6: Pasivo | BR6: =BS1/10.8 -> 212.9478988 | BS6: =+BS1/1000 -> 2.299837307 | BT6: 0.5834189008
A7: =+$F$29&ROUND(G7*100,1)&" % " -> Porc. BC.=10.3 % | F7: Porc. BC.= | G7: =+BF4 -> 0.1032756348 | AB7: =+SUM(J6:X6) -> 5368.874004 | AD7: =+(AD4/10.8)*9300*0.75/(25*365) -> 185.2513773 | AE7: =+AI7&ROUND(AD7,0)&" l/día/pers." -> Cons.de Agua Calient./pers.=185 l/día/pers. | AI7: Cons.de Agua Calient./pers.= | AN7: Sin GN | AO7: =+AO14 -> 1900.462872 | AP7: =+AP14 -> 909.0812642 | AQ7: 2316.426277 | AR7: 1753.506542 | AS7: 775.8189343 | AT7: 157.9311324 | AU7: 7813.227022 | AV7: 591.5796338 | AW7: 198.1322202 | AX7: 1554.120632 | AY7: 199.3859103 | AZ7: 19.83923315 | BA7: 17.58337412 | BQ7: Calefacción | BR7: =+BT1/10.8 -> 584.6310579 | BS7: =+BT1/1000 -> 6.314015426 | BT7: =+BR7/365 -> 1.601728926
A8: =+$D$31&"="& ROUND(D8/1000,2)&" "&$F$31&" Con GN" -> Total Gas+Electr.=15.95 MWh/año Con GN | C8: Todos | D8: =+AB4+AH4 -> 15953.29694 | F8: Calef/m2 | G8: =+BA4 -> 83.93567455 | H8: kWh/m2/año | AA8: =+SUM(J4:W4)+Z4 -> 4590.059166 | AB8: =+SUM(J4:W4)+Z4 -> 4590.059166 | AH8: =+SUM(AC4:AF4) -> 12609.38347 | AO8: Total Cocina | AP8: Heladera | AQ8: ACS | AR8: Acond.Term | AS8: Casa_Electr | AT8: Otros | AU8: Todo | AV8: ACS/per | AW8: Elect.Casa/Pers | AX8: Calef.T. | AY8: Refrig.T | AZ8: Ac.Term/m2 | BA8: Calf/m2 | BB8: Cocina T./pers | BC8: kg(CO2)/m2 | BD8: EE/N_pers | BE8: ACS/Pers | BF8: %AA | BG8: %AA_Calef | BH8: Transp | BI8: Total | BJ8: Electr. | BK8: Gas | BL8: Transp | BM8: Total | BN8: Electr+Gas | BO8: Electr+Gas | BQ8: Total | BR8: =+SUM(BR4:BR7) -> 1167.535507 | BS8: =+SUM(BS4:BS7) -> 12.60938347 | BT8: 3.198727415
A10: =+$B$2&D11&"Viviendas sin Conex. a G.N." -> Resumen de 105Viviendas sin Conex. a G.N. | E10: =+D11 -> 105 | F10: Viviendas Sin Conexión a redes de Gas Natural | O10: Viviendas Sin Conexción a redes de Gas Natural | X10: Viviendas Sin Conexción a redes de Gas Natural | AG10: Viviendas Sin Conexción a redes de Gas Natural | AO10: Viviendas Sin Conexción a redes de Gas Natural | BD10: Viviendas Sin Conexión a redes de Gas Natural | BK10: Viviendas Sin Conexión a redes de Gas Natural | BR10: =+BT1/87 -> 72.57488995 | BS10: =+BQ11&ROUND(BR10,0)&" kWh/m2.año" -> Cons. Calef.=73 kWh/m2.año
C11: =+D2 -> N= | D11: 105 | E11: # Persona | G11: Sup (m2) | I11: # Heladera | J11: Heladera | K11: Lavarropa | L11: Ilumin. | M11: AA-Cal+Ref. | N11: Cale.E. | O11: Microonda | P11: Cafetera | Q11: TV+Electr. | R11: Inform. | S11: Stand By | T11: Planch. | U11: Bomba | V11: Secador P. | W11: HornoE | X11: ACS_E | Y11: Cocina_EE | Z11: otros | AA11: Extra | AB11: Todo Electicidad | AC11: Cocción | AD11: ACS | AE11: Piloto | AF11: Calefacción | AG11: Otro_gas | AH11: TOTAL_GAS | AI11: Gas (m3) | AJ11: kWh/ano | AM11: Electr. | AN11: Gas | AO11: Total Cocina | AP11: Heladera | AQ11: ACS | AR11: Acond.Term | AS11: Casa_Electr | AT11: Otros | AU11: Todo | AV11: ACS/per | AW11: Elect.Casa/Pers | AX11: Calef.T. | AY11: Refrig.T | AZ11: Ac.Term/m2 | BA11: Calf/m2 | BB11: Cocina T./pers | BC11: kg(CO2)/m2 | BD11: EE/N_pers | BE11: ACS/Pers | BF11: %AA | BG11: %AA_Calef | BH11: Transp | BI11: Total | BJ11: Electr. | BK11: Gas | BL11: Transp | BM11: Total | BN11: Electr+Gas | BO11: Electr+Gas | BQ11: Cons. Calef.=
A12: Resumen Historico | C12: B | D12: total | E12: 3.915662651 | F12: Promedio | G12: 88.38580247 | I12: 1.332266667 | J12: 909.0812642 | K12: 88.41401001 | L12: 232.6425706 | M12: 598.7564874 | N12: 1154.750055 | O12: 185.4224702 | P12: 256.6443291 | Q12: 258.9371221 | R12: 62.4303094 | S12: 22.87879592 | T12: 15.215049 | U12: 62.35017277 | V12: 32.9509046 | W12: 242.4161921 | X12: 2316.426277 | Y12: 1063.083077 | Z12: 150.5435591 | AA12: 7.38757326 | AB12: 5152.035863 | AC12: 1368.876685 | AG12: 0 | AH12: =+SUM(AC12:AF12) -> 1368.876685 | AI12: =+AH12/10.8 -> 126.7478412 | AJ12: =+AB12+AH12 -> 6520.912547 | AM12: =+AB12/1000 -> 5.152035863 | AN12: =+AH12/1000 -> 1.368876685 | AO12: =+(AC12+Y12)/2+W12+P12+O12 -> 1900.462872 | AP12: =+J12 -> 909.0812642 | AQ12: =+X12 -> 2316.426277 | AR12: =+M12+N12+AF12 -> 1753.506542 | AS12: =+K12+L12+SUM(Q12:V12) -> 775.8189343 | AT12: =+Z12+AA12 -> 157.9311324 | AU12: =SUM(AO12:AT12) -> 7813.227022 | AV12: =+IF(E12>0,AQ12/E12,AQ12/2.3) -> 591.5796338 | AW12: =+IF(E12>0,AS12/E12,AS12/2.3) -> 198.1322202 | AX12: =+AF12+N12+M12*0.667 -> 1554.120632 | AY12: =+M12*0.333 -> 199.3859103 | AZ12: =+IF(G12>0,AR12/G12,AR12/65) -> 19.83923315 | BA12: =+(AF12+N12+M12*0.667)/G12 -> 17.58337412 | BB12: =+IF(E12>0,AO12/E12,AO12/2.3) -> 485.3489797 | BC12: =+((M12+N12)*$BK$5+AF12*$BL$5)/G12 -> 44.12608661 | BD12: =+(K12+L12+SUM(Q12:V12))/E12 -> 198.1322202 | BE12: =+AQ12/E12 -> 591.5796338 | BF12: =+M12/AR12 -> 0.341462363 | BG12: =+(AF12+AM12*0.66)/AX12 -> 0.002187953496 | BI12: =SUM(AO18:AT18)/1000 -> 9.029206903 | BJ12: =+BJ$1*AM12 -> 1.530154651 | BK12: =+BK$1*AN12 -> 0.2765130903 | BL12: =+BL$1*BH12 -> 0 | BM12: =+SUM(BJ12:BL12) -> 1.806667742 | BN12: =+BJ12+BK12 -> 1.806667742 | BO12: 3.08210517
A13: Viviendas sin coneccion a redes de GN | E13: 4 | F13: mediana | G13: 75 | I13: 1 | J13: 751.024 | K13: 50.455 | L13: 131.04 | M13: 234 | N13: 494 | O13: 70.746075 | P13: 112.9456 | Q13: 190.53 | R13: 32.802 | S13: 0 | T13: 0 | U13: 0 | V13: 0 | W13: 0 | X13: 2007.5 | Y13: 1095 | Z13: 4.95 | AA13: 11.04125 | AB13: 4621.5935 | AC13: 1400 | AG13: 0 | AH13: =+SUM(AC13:AF13) -> 1400 | AI13: =+AH13/10.8 -> 129.6296296 | AJ13: =+AB13+AH13 -> 6021.5935 | AM13: =+AB13/1000 -> 4.6215935 | AN13: =+AH13/1000 -> 1.4 | AO13: =+AC13+Y13+W13+P13+O13 -> 2678.691675 | AP13: =+J13 -> 751.024 | AQ13: =+AD13+AE13+X13 -> 2007.5 | AR13: =+M13+N13+AF13 -> 728 | AS13: =+K13+L13+SUM(Q13:V13) -> 404.827 | AT13: =+Z13+AA13 -> 15.99125 | AU13: =SUM(AO13:AT13) -> 6586.033925 | AV13: =+IF(E13>0,AQ13/E13,AQ13/2) -> 501.875 | AW13: =+IF(E13>0,AS13/E13,AS13/2) -> 101.20675 | AX13: =+AF13+N13+M13*0.667 -> 650.078 | AY13: =+M13*0.333 -> 77.922 | AZ13: =+IF(G13>0,AR13/G13,AR13/65) -> 9.706666667 | BA13: =+(AF13+N13+M13*0.667)/G13 -> 8.667706667 | BB13: =+IF(E13>0,AO13/E13,AO13/2) -> 669.6729188 | BC13: =+((M13+N13)*$BK$5+AF13*$BL$5)/G13 -> 21.58940373 | BD13: =+(K13+L13+SUM(Q13:V13))/E13 -> 101.20675 | BE13: =+AQ13/E13 -> 501.875 | BF13: =+M13/AR13 -> 0.3214285714 | BG13: =+(AF13+AM13*0.66)/AX13 -> 0.004692131883 | BI13: =SUM(AO13:AT13)/1000 -> 6.586033925 | BJ13: =+BJ$1*AM13 -> 1.372613269 | BK13: =+BK$1*AN13 -> 0.2828 | BL13: =+BL$1*BH13 -> 0 | BM13: =+SUM(BJ13:BL13) -> 1.655413269 | BN13: =+BJ13+BK13 -> 1.655413269 | BO13: 4.08210517
A14: =+$D$30&"="& ROUND(D14/1000,2)&" "&$F$30&" Sin GN" -> Total Electr.=6.44 MWh/año Sin GN | C14: Electrico | D14: =+AB15 -> 6439.316009 | F14: AT/m2= | G14: =+AZ18 -> 19.83923315 | H14: kWh/m2/año | I14: =+I12 -> 1.332266667 | J14: =+J12 -> 909.0812642 | K14: =+K12 -> 88.41401001 | L14: 232.6425706 | M14: 598.7564874 | N14: 1154.750055 | O14: 185.4224702 | P14: 256.6443291 | Q14: 258.9371221 | R14: 62.4303094 | S14: 22.87879592 | T14: 15.215049 | U14: 62.35017277 | V14: 32.9509046 | W14: 242.4161921 | X14: 2316.426277 | Y14: 1063.083077 | Z14: 150.5435591 | AA14: 7.38757326 | AC14: =+AC12 -> 1368.876685 | AD14: 0 | AE14: 0 | AF14: 0 | AH14: =+SUM(AC12:AF12) -> 1368.876685 | AJ14: =+SUM(AC14:AF14)+AB15 -> 7808.192694 | AO14: =+AO12 -> 1900.462872 | AP14: =+AP12 -> 909.0812642 | AQ14: 2316.426277 | AR14: 1753.506542 | AS14: 775.8189343 | AT14: 157.9311324 | AU14: 7813.227022 | AV14: =+AV12 -> 591.5796338 | AW14: 198.1322202 | AX14: 1554.120632 | AY14: 199.3859103 | AZ14: 19.83923315 | BA14: 17.58337412 | BB14: 485.3489797 | BC14: 44.12608661 | BD14: 198.1322202 | BE14: 591.5796338
A15: =+$D$31&"="& ROUND(D15/1000,2)&" "&$F$31&" Sin GN" -> Total Gas+Electr.=7.81 MWh/año Sin GN | C15: Todos | D15: =+AB15+AH14 -> 7808.192694 | F15: Calef/m2 | G15: =+BA18 -> 17.58337412 | H15: kWh/m2/año | AB15: =+SUM(J14:X14) -> 6439.316009
A16: =+$A$29&ROUND(G14,0)&" kWh/m2.año" -> Acond.Term.=20 kWh/m2.año | E16: Consumo tipico medio de RA | J16: Consumo tipico medio de RA
A17: =+$F$29&ROUND(G17*100,1)&" % " -> Porc. BC.=22.7 % | F17: Porc. BC.= | G17: =+BF19 -> 0.2271826262 | I17: =+I11 -> # Heladera | J17: =+J11 -> Heladera | K17: Lavarropa | L17: Ilumin. | M17: AA-Cal+Ref. | N17: Cale.E. | O17: Microonda | P17: Cafetera | Q17: TV+Electr. | R17: Inform. | S17: Stand By | T17: Planch. | U17: Bomba | V17: Secador P. | W17: HornoE | X17: ACS_E | Y17: Cocina_EE | Z17: otros | AA17: Extra | AB17: Todo Electicidad | AC17: Cocción | AD17: ACS | AE17: Piloto | AF17: Calefacción | AG17: Otro_gas | AH17: TOTAL_GAS | AI17: Gas (m3) | AJ17: =+AJ11 -> kWh/ano | AK17: Total Gral RA | AM17: =+AM11 -> Electr. | AN17: Gas | AO17: Total Cocina | AP17: Heladera | AQ17: ACS | AR17: Acond.Term | AS17: Casa_Electr | AT17: Otros | AU17: Todo | AV17: ACS/per | AW17: Elect.Casa/Pers | AX17: Calef.T. | AY17: Refrig.T | AZ17: Ac.Term/m2 | BA17: Calf/m2 | BB17: Cocina T./pers | BC17: kg(CO2)/m2 | BD17: EE/N_pers | BE17: ACS/Pers | BF17: %AA | BG17: %AA_Calef | BH17: Transp | BI17: Total | BJ17: Electr. | BK17: Gas | BL17: Transp | BM17: Total | BN17: Electr+Gas | BO17: Electr+Gas
E18: Con GN | F18: 0.6 | G18: Cons. Energ.= | H18: =+AJ18/1000 -> 12.18034318 | I18: =+$F$18*I4+I12*$F$19 -> 1.466938667 | J18: 868.0578561 | K18: 99.640716 | L18: 262.824863 | M18: 724.2738017 | N18: 882.674797 | O18: 137.7000879 | P18: 189.6315161 | Q18: 245.1585804 | R18: 188.8437558 | S18: 68.63929941 | T18: 60.28407719 | U18: 148.8396191 | V18: 48.62935098 | W18: 292.0603094 | X18: 1579.792176 | Y18: 425.2332308 | Z18: 246.1501863 | AA18: 644.5435534 | AB18: 4067.162427 | AC18: 1374.415505 | AD18: 1570.453611 | AE18: 1379.902384 | AF18: 3788.409255 | AG18: 2684.534125 | AH18: 8113.180756 | AI18: 751.2204404 | AJ18: 12180.34318 | AK18: =+AB18+SUM(AC18:AF18) -> 12180.34318 | AM18: =+AB18/1000 -> 4.067162427 | AN18: =+AH18/1000 -> 8.113180756 | AO18: =+AC12+Y12+W12+P12+O12 -> 3116.442753 | AP18: =+J12 -> 909.0812642 | AQ18: =+AD12+AE12+X12 -> 2316.426277 | AR18: =+M12+N12+AF12 -> 1753.506542 | AS18: =+K12+L12+SUM(Q12:V12) -> 775.8189343 | AT18: =+Z12+AA12 -> 157.9311324 | AU18: =SUM(AO18:AT18) -> 9029.206903 | AV18: =+IF(E12>0,AQ18/E12,AQ18/2.3) -> 591.5796338 | AW18: =+IF(E12>0,AS18/E12,AS18/2.3) -> 198.1322202 | AX18: =+AF12+N12+M12*0.667 -> 1554.120632 | AY18: =+M12*0.333 -> 199.3859103 | AZ18: =+IF(G12>0,AR18/G12,AR18/65) -> 19.83923315 | BA18: =+(AF12+N12+M12*0.667)/G12 -> 17.58337412 | BB18: =+IF(E12>0,AO18/E12,AO18/2.3) -> 795.8915338 | BC18: =+((M12+N12)*$BK$5+AF12*$BL$5)/G12 -> 44.12608661 | BD18: =+(K12+L12+SUM(Q12:V12))/E12 -> 198.1322202 | BE18: =+AQ18/E12 -> 591.5796338 | BF18: =+M18/AR18 -> 0.4130431135 | BG18: =0.66*AM18/AX18 -> 0.001727232202 | BI18: =SUM(AO24:AT24)/1000 -> 15.09019312 | BJ18: =+BJ$1*AM18 -> 1.207947241 | BK18: =+BK$1*AN18 -> 1.638862513 | BL18: =+BL$1*BH18 -> 0 | BM18: =+SUM(BJ18:BL18) -> 2.846809754 | BN18: =+BJ18+BK18 -> 2.846809754 | BO18: 3.08210517
E19: Sin GN | F19: =1-F18 -> 0.4 | G19: AT/m2= | H19: =+BA19 -> 57.39475438 | I19: kWh/m2/año | J19: =+G19&ROUND(H19,0)&I19 -> AT/m2=57 kWh/m2/año | M19: =+F17&ROUND(G17*100,0)&"%" -> Porc. BC.=23% | AM19: =+$F$18*AM4+AM12*$F$19 -> 4.067162427 | AN19: =+$F$18*AN4+AN12*$F$19 -> 8.113180756 | AO19: =+$F$18*AO4+AO18*$F$19 -> 2419.040649 | AP19: 868.0578561 | AQ19: 3876.926506 | AR19: 5395.357854 | AS19: 1122.860262 | AT19: 890.6937397 | AU19: 14572.93687 | AV19: 1148.678096 | AW19: 330.4318599 | AX19: 5154.174678 | AY19: 241.183176 | AZ19: 60.09075145 | BA19: 57.39475438 | BB19: 680.8013407 | BC19: 40.02932406 | BD19: 330.4318599 | BE19: 1148.678096 | BF19: 0.2271826262 | BG19: 0.5023625554 | BH19: =+$F$18*BH4+BH12*$F$19 -> 0 | BI19: 14.57293687 | BJ19: 1.207947241 | BK19: 1.638862513 | BL19: 0 | BM19: 2.846809754 | BN19: 2.846809754 | BO19: 3.08210517
C20: Consumo tipico medio de RA= | G20: =+G18&ROUND(H18,1)&" MWh/año" -> Cons. Energ.=12.2 MWh/año | J20: Cons. Elect. RA= | L20: =+J20&ROUND(AB18/1000,1)& " MWh/año" -> Cons. Elect. RA=4.1 MWh/año
A22: Vivienda en estudio | E22: Vivienda en estudio | O22: Vivienda en estudio | Z22: Vivienda en estudio | AK22: Vivienda en estudio | AR22: Vivienda en estudio | BB22: Vivienda en estudio | BJ22: Vivienda en estudio
A23: =+'Consumo eléctrico'!$D$104 -> Total Electr.=4.22 MWh/año | D23: =+E24 -> 4 | E23: # Persona | F23: Autor o Resposable: | G23: Sup (m2) | H23: Cond.Soc.Econ. | I23: # de Heladeras | J23: Heladera | K23: Lava. | L23: Ilum. | M23: Refr.Calf. AA | N23: Calef. EE | O23: Microon. | P23: Cafetera | Q23: TV+Electr. | R23: Inform. | S23: =+'Consumo eléctrico'!X6 -> Stand By | T23: =+'Consumo eléctrico'!Y6 -> Plancha | U23: =+'Consumo eléctrico'!Z6 -> Bomba | V23: =+'Consumo eléctrico'!AA6 -> Secador Pelo | W23: =+'Consumo eléctrico'!AB6 -> Horno Eléctrico | X23: =+'Consumo eléctrico'!AC6 -> Termotanq_EE | Y23: =+'Consumo eléctrico'!AD6 -> Cocina_EE | Z23: =+'Consumo eléctrico'!AE6 -> Otros | AA23: =+'Consumo eléctrico'!AF6 -> Extras | AB23: =+'Consumo eléctrico'!AG6 -> Todo Electicidad | AC23: =+'Consumo eléctrico'!AH6 -> Cocción_Gas | AD23: =+'Consumo eléctrico'!AI6 -> ACS_Gas | AE23: =+'Consumo eléctrico'!AJ6 -> Piloto_GN | AF23: =+'Consumo eléctrico'!AK6 -> Calef._Gas | AG23: =+'Consumo eléctrico'!AL6 -> Otro_gas | AH23: =+'Consumo eléctrico'!AM6 -> Total Gas | AI23: =+'Consumo eléctrico'!AN6 -> Coccion (kWh) | AJ23: kWh/ano | AM23: Electr. | AN23: Gas | AO23: Total Cocina | AP23: Heladera | AQ23: ACS | AR23: Acond.Term | AS23: Casa_Electr | AT23: Otros | AU23: Todo | AV23: ACS/per | AW23: Elect.Casa/Pers | AX23: Calef.T. | AY23: Refrig.T | AZ23: Ac.Term/m2 | BA23: Calf/m2 | BB23: Cocina T./pers | BC23: kg(CO2)/m2 | BD23: EE/N_pers | BE23: ACS/Pers | BF23: %AA | BG23: %AA_Calef | BH23: Transp | BI23: Total | BJ23: Electr. | BK23: Gas | BL23: Transp | BM23: Total | BN23: Electr+Gas | BO23: Electr+Gas
A24: =+'Consumo eléctrico'!$D$105 -> Total Gas+Electr.=18.8 MWh/año | D24: =+'Consumo eléctrico'!I7 -> Italia xxx | E24: =+'Consumo eléctrico'!J7 -> 4 | F24: =+'Consumo eléctrico'!K7 -> Su Nombre | G24: =+'Consumo eléctrico'!L7 -> 67 | H24: =+'Consumo eléctrico'!M7 -> B2 | I24: =+'Consumo eléctrico'!N7 -> 1 | J24: =+'Consumo eléctrico'!O7 -> 730 | K24: =+'Consumo eléctrico'!P7 -> 336.5643669 | L24: =+'Consumo eléctrico'!Q7 -> 86.7628 | M24: =+'Consumo eléctrico'!R7 -> 264.4 | N24: =+'Consumo eléctrico'!S7 -> 0 | O24: =+'Consumo eléctrico'!T7 -> 328.5 | P24: =+'Consumo eléctrico'!U7 -> 524.135 | Q24: =+'Consumo eléctrico'!V7 -> 173.5575 | R24: =+'Consumo eléctrico'!W7 -> 468.4166667 | S24: =+'Consumo eléctrico'!X7 -> 122.64 | T24: =+'Consumo eléctrico'!Y7 -> 114.975 | U24: =+'Consumo eléctrico'!Z7 -> 87.6 | V24: =+'Consumo eléctrico'!AA7 -> 1.825 | W24: =+'Consumo eléctrico'!AB7 -> 137.25 | X24: =+'Consumo eléctrico'!AC7 -> 2007.5 | Y24: =+'Consumo eléctrico'!AD7 -> 912.5 | Z24: =+'Consumo eléctrico'!AE7 -> 976.2466667 | AA24: =+'Consumo eléctrico'!AF7 -> 0 | AC24: =+'Consumo eléctrico'!AH7 -> 1657.76065 | AD24: =+'Consumo eléctrico'!AI7 -> 986.2216 | AE24: =+'Consumo eléctrico'!AJ7 -> 1973.524583 | AF24: =+'Consumo eléctrico'!AK7 -> 3199.813283 | AG24: =+'Consumo eléctrico'!AL7 -> 0 | AH24: =+'Consumo eléctrico'!AM7 -> 7817.320117 | AI24: =+'Consumo eléctrico'!AN7 -> 2707.51065 | AJ24: =+AB24+AH24 -> 7817.320117 | AM24: =+AB24/1000 -> 0 | AN24: =+AH24/1000 -> 7.817320117 | AO24: =+AC24+Y24+W24+P24+O24 -> 3560.14565 | AP24: =+J24 -> 730 | AQ24: =+AD24+AE24+X24 -> 4967.246183 | AR24: =+M24+N24+AF24 -> 3464.213283 | AS24: =+K24+L24+SUM(Q24:V24) -> 1392.341334 | AT24: =+Z24+AA24 -> 976.2466667 | AU24: =SUM(AO24:AT24) -> 15090.19312 | AV24: =+IF(E24>0,AQ24/E24,AQ24/2.3) -> 1241.811546 | AW24: =+IF(E24>0,AS24/E24,AS24/2.3) -> 348.0853334 | AX24: =+AF24+N24+M24*0.667 -> 3376.168083 | AY24: =+M24*0.333 -> 88.0452 | AZ24: =+IF(G24>0,AR24/G24,AR24/65) -> 51.70467587 | BA24: =+(AF24+N24+M24*0.667)/G24 -> 50.39056841 | BB24: =+IF(E24>0,AO24/E24,AO24/2.3) -> 890.0364125 | BC24: =+((M24+N24)*$BK$5+AF24*$BL$5)/G24 -> 8.77722396 | BD24: =+(K24+L24+SUM(Q24:V24))/E24 -> 348.0853334 | BE24: =+AQ24/E24 -> 1241.811546 | BF24: =+M24/AR24 -> 0.07632324524 | BG24: =+AF24/AX24 -> 0.9477648045 | BI24: =SUM(AO24:AT24)/1000 -> 15.09019312 | BJ24: =+BJ$1*AM24 -> 0 | BK24: =+BK$1*AN24 -> 1.579098664 | BL24: =+BL$1*BH24 -> 0 | BM24: =+SUM(BJ24:BL24) -> 1.579098664 | BN24: =+BJ24+BK24 -> 1.579098664 | BO24: 3.08210517 | BT24: =+AR28/1000 -> 0 | BU24: =+AX28/1000 -> 0 | BV24: =+Transporte!P24+Transporte!P25 -> 0 | BW24: =SUM(BT24:BV24) -> 0 | BX24: =+BS21*BT24 -> 0 | BY24: =+BT21*BU24 -> 0 | BZ24: =+BU21*BV24 -> 0 | CA24: =+SUM(BX24:BZ24) -> 0
A25: =+'Consumo eléctrico'!E9 -> Consumos eléctricos anuales Casa en Su Lugar(MWh)=7.27 | F25: Porc. BC.= | G25: =+BF17 -> %AA | Z25: =+SUM(J12:W12)+Z12 -> 4273.433291 | AA25: =+SUM(J12:W12)+Z12 -> 4273.433291 | AB25: =+SUM(J24:AA24) -> 7272.873 | AH25: =+SUM(AC24:AG24) -> 7817.320117 | BH25: =+'Consumo eléctrico'!BM7 -> 2.160043281 | BI25: =+'Consumo eléctrico'!BN7 -> 1.579098664 | BJ25: =+'Consumo eléctrico'!BI7 -> 7.272873 | BK25: =+'Consumo eléctrico'!BJ7 -> 7.817320117 | BL25: =+'Consumo eléctrico'!BK7 -> 16.88755892 | BM25: =+'Consumo eléctrico'!BL7 -> 31.97775204 | BN25: =+'Consumo eléctrico'!BM7 -> 2.160043281 | BO25: =+'Consumo eléctrico'!BN7 -> 1.579098664
BT26: =+Transporte!$N$17 -> Tn(CO2)/año | BU26: =+Transporte!$N$17 -> Tn(CO2)/año | BV26: =+Transporte!$N$17 -> Tn(CO2)/año | BW26: =+Transporte!$N$17 -> Tn(CO2)/año | BX26: =+Transporte!$N$17 -> Tn(CO2)/año | BY26: =+Transporte!$N$17 -> Tn(CO2)/año | BZ26: =+Transporte!$N$17 -> Tn(CO2)/año | CA26: =+Transporte!$N$17 -> Tn(CO2)/año
A27: =+$D$30&"="& ROUND(E30,2)&" "&$F$30& F24 -> Total Electr.=7.27 MWh/año Su Nombre | D27: Electrico | E27: =+E30 -> 7.272873 | F27: AT/m2= | G27: =+AZ24 -> 51.70467587 | H27: kWh/m2/año | J27: =+J23 -> Heladera | K27: =+K23 -> Lava. | L27: Ilum. | M27: Refr.Calf. AA | N27: Calef. EE | O27: Microon. | P27: Cafetera | Q27: TV+Electr. | R27: Inform. | S27: Stand By | T27: Plancha | U27: Bomba | V27: Secador Pelo | W27: Horno Eléctrico | X27: Termotanq_EE | Y27: Cocina_EE | Z27: Otros | AA27: Extras | AB27: =+AC23 -> Cocción_Gas | AC27: ACS_Gas | AD27: Piloto_GN | AE27: Calef._Gas | BS27: =+BR27/P25 -> 
A28: =+$D$31&"="& ROUND(E31,1)&" "&$F$31& F24 -> Total Gas+Electr.=15.1 MWh/año Su Nombre | D28: Todos | E28: =+E31 -> 15.09019312 | F28: Calef/m2 | G28: =+BA24 -> 50.39056841 | H28: kWh/m2/año | J28: =+J24 -> 730 | K28: =+K24 -> 336.5643669 | L28: 86.7628 | M28: 264.4 | N28: 0 | O28: 328.5 | P28: 524.135 | Q28: 173.5575 | R28: 468.4166667 | S28: 122.64 | T28: 114.975 | U28: 87.6 | V28: 1.825 | W28: 137.25 | X28: 2007.5 | Y28: 912.5 | Z28: 976.2466667 | AA28: 0 | AB28: 1657.76065 | AC28: 986.2216 | AD28: 1973.524583 | AE28: 3199.813283
A29: Acond.Term.= | C29: Cons. Total- | F29: Porc. BC.= | G29: =+BF24 -> 0.07632324524 | H29: =+'Consumo eléctrico'!G107 -> Total Electr. | I29: =+'Consumo eléctrico'!H107 -> 4.215623 | J29: =+'Consumo eléctrico'!I107 -> MWh/año
A30: =+$A$29&ROUND(G27,0)&" kWh/m2.año" -> Acond.Term.=52 kWh/m2.año | D30: Total Electr. | E30: =SUM(J24:AA24)/1000 -> 7.272873 | F30: MWh/año | H30: =+'Consumo eléctrico'!G108 -> Total Gas+Electr. | I30: =+'Consumo eléctrico'!H108 -> 18.7748064 | J30: =+'Consumo eléctrico'!I108 -> MWh/año
A31: =+$F$29&ROUND(G29*100,1)&" % " -> Porc. BC.=7.6 % | D31: Total Gas+Electr. | E31: =(AB25+AH25)/1000 -> 15.09019312 | F31: MWh/año | H31: =+'Consumo eléctrico'!G109 -> Transp. | I31: =+'Consumo eléctrico'!H109 -> 3.892473073 | J31: =+'Consumo eléctrico'!I109 -> MWh/año
H32: =+'Consumo eléctrico'!G110 -> Total (T.G.EE)= | I32: =+'Consumo eléctrico'!H110 -> 26.88290247 | J32: =+'Consumo eléctrico'!I110 -> MWh/año
AB74: Consumo domésticos en RA Total= | AE74: =+AB74&ROUND(D6/1000,1)&" MWh/año" -> Consumo domésticos en RA Total=16 MWh/año

Sheet Consumo eléctrico
A1: Corregido por | B1: S.G. | J1: # Persona | K1: Autor o Resposable: | L1: Sup (m2) | M1: Cond.Soc.Econ. | O1: Heladera | P1: Lavarropa | Q1: Iluminacion | R1: Refrigeración Aire Acond. | S1: Calefacción Electr. | T1: Microonda | U1: Cafetera+Tostadora + batidora | V1: TV+Radio+DVD | W1: Informatica | X1: Stand By | Y1: Plancha | Z1: Bomba | AA1: Secador Pelo | AB1: Horno Eléctrico | AC1: Termotanq_EE | AE1: Otros | AF1: Extras | AG1: Todo Electicidad | AH1: Cocción_Gas | AI1: ACS_Gas | AJ1: Piloto_GN | AK1: Calef._Gas
A2: Aprobado | C2: Por favor llenar solo los casilleros en Azul con fondo Verde | J2: Cosumos estimados | K2: Si/No | AN2: =+'Tabla 1y2'!AG2 -> Coccion (kWh) | AP2: =+'Tabla 1y2'!AH2 -> EE Cocina | AQ2: =+'Tabla 1y2'!AI2 -> ACS (kWh) | AR2: =+'Tabla 1y2'!AJ2 -> AT | AS2: =+'Tabla 1y2'!AK2 -> Refrig.T (kWh) | AT2: =+'Tabla 1y2'!AL2 -> ACS/Pers | AU2: =+'Tabla 1y2'!AM2 -> AT/m2
J3: Consumos medidos | K3: Si/NO | BI3: Sintesis Final | BK3: Sintesis Final | BM3: Sintesis Final
E4: No Modificar esta parte | G4: No Modificar esta parte | J4: No Modificar esta parte | O4: No Modificar esta parte | R4: No Modificar esta parte | U4: No Modificar esta parte | X4: No Modificar esta parte | AA4: No Modificar esta parte | AF4: No Modificar esta parte | AI4: No Modificar esta parte | AK4: No Modificar esta parte | BB4: wcal= | BC4: =1-BD4 -> 0.8333333333 | BD4: =125/750 -> 0.1666666667 | BM4: 0.297 | BN4: 0.202 | BO4: 0.267 | BP4: kg(CO2)/MWh
A5: Auditoria de Consumo | C5: Autor o Resposable: | E5: =+nombre -> Su Nombre | G5: Superficie Cubierta (m2) | I5: =+Area_v -> 67 | O5: ELECTRICIDAD | AH5: GAS | AI5: GAS | AJ5: GAS | AK5: GAS | AL5: GAS | AW5: Cocina T. | AX5: Helad. | AY5: Ac.Term | AZ5: ACS_T | BA5: Pasivo | BB5: Casa_Electr. | BC5: Otros | BI5: MWh/año | BJ5: MWh/año | BK5: MWh/año | BL5: MWh/año | BM5: kg(CO2)/MWh | BO5: kg(CO2)/MWh
A6: Las celdas con este color se puede modificar | C6: e:mail: | E6: =+Vivienda!C6 -> mail@unsam.edu.ar | G6: Número de personas en la Vivienda | I6: =+n_pers -> 4 | J6: # Persona | K6: =+C5 -> Autor o Resposable: | L6: Sup (m2) | M6: Cond.Soc.Econ. | N6: # de Heladeras | O6: Heladera | P6: Lavarropa | Q6: Iluminacion | R6: =A85 -> Refr.Calf. AA | S6: =A86 -> Calef. Electr. | T6: Microonda | U6: Cafetera+Tostadora + batidora | V6: TV+Radio+DVD | W6: Informatica | X6: Stand By | Y6: Plancha | Z6: Bomba | AA6: Secador Pelo | AB6: Horno Eléctrico | AC6: Termotanq_EE | AD6: Cocina_EE | AE6: Otros | AF6: Extras | AG6: =+A110 -> Todo Electicidad | AH6: =+A104 -> Cocción_Gas | AI6: =+A105 -> ACS_Gas | AJ6: =+A106 -> Piloto_GN | AK6: =+A107 -> Calef._Gas | AL6: Otro_gas | AM6: =+A111 -> Total Gas | AN6: Coccion (kWh) | AO6: EE Cocina | AP6: ACS (kWh) | AQ6: AT | AR6: Refrig.T (kWh) | AS6: ACS/Pers | AT6: AT/m2 | AU6: EE/N_pers | AV6: =+A109 -> Consumo Totales Gas+Electricidad | AW6: Total Cocina (kWh) | AX6: Heladera (kWh) | AY6: AT (kWh) | AZ6: ACS (kWh) | BA6: Pasivo | BB6: Casa EE | BC6: Otros | BD6: Todos | BE6: AT/m2 | BF6: EE/N_pers | BG6: Calef.T. (kWh) | BH6: Calf/m2 | BI6: Electr. | BJ6: Gas | BK6: Transp | BL6: Total | BM6: Electr. | BN6: Gas | BO6: Transp | BP6: Total
A7: Las otras NO las modifique por favor | C7: Fecha de ensayo: | E7: =+Vivienda!C7 -> 2016-02-01 | G7: Dieccion | I7: =+Vivienda!F10 -> Italia xxx | J7: =+n_pers -> 4 | K7: =+nombre -> Su Nombre | L7: =+Area_v -> 67 | M7: =+Vivienda!F15 -> B2 | N7: =+I11 -> 1 | O7: =+C82 -> 730 | P7: =+C83 -> 336.5643669 | Q7: =+C84 -> 86.7628 | R7: =+C85 -> 264.4 | S7: =C86 -> 0 | T7: =+C87 -> 328.5 | U7: =+C88 -> 524.135 | V7: =+C90 -> 173.5575 | W7: =+C89 -> 468.4166667 | X7: =+C91 -> 122.64 | Y7: =+C93 -> 114.975 | Z7: =+C94 -> 87.6 | AA7: =+C92 -> 1.825 | AB7: =+C96 -> 137.25 | AC7: =+C97 -> 2007.5 | AD7: =+I51 -> 912.5 | AE7: =+C98 -> 976.2466667 | AF7: =+C99 -> 0 | AG7: =+SUM(O7:AF7) -> 7272.873 | AH7: =+C104 -> 1657.76065 | AI7: =+C105 -> 986.2216 | AJ7: =+C106 -> 1973.524583 | AK7: =+C107 -> 3199.813283 | AL7: =+D107 -> 0 | AM7: =+SUM(AH7:AL7) -> 7817.320117 | AN7: =+AB7+AD7+AH7 -> 2707.51065 | AO7: =+T7+U7 -> 852.635 | AP7: =+AI7+AJ7+AC7 -> 4967.246183 | AQ7: =+AK7+S7+R7*0.667 -> 3376.168083 | AR7: =+R7*0.333 -> 88.0452 | AS7: =+AP7/J7 -> 1241.811546 | AT7: =+AQ7/L7 -> 50.39056841 | AU7: =+(AG7-AC7-AD7-S7-R7)/J7 -> 1022.11825 | AV7: =+AG7+AM7 -> 15090.19312 | AW7: =+AH7+AD7+AB7+U7+T7 -> 3560.14565 | AX7: =+O7 -> 730 | AY7: =+AK7+S7+R7 -> 3464.213283 | AZ7: =+AI7+AC7 -> 2993.7216 | BA7: =+AJ7 -> 1973.524583 | BB7: =+(P7+Q7+V7+W7+X7+Z7+Y7+AA7) -> 1392.341334 | BC7: =+AE7+AF7 -> 976.2466667 | BD7: =+SUM(AW7:BC7) -> 15090.19312 | BE7: =+AY7/L7 -> 51.70467587 | BF7: =+(BB7)/J7 -> 348.0853334 | BG7: =+AK7+S7+R7*wcal -> 3420.146617 | BH7: =+BG7/L7 -> 51.04696443 | BI7: =+AG7/1000 -> 7.272873 | BJ7: =+AM7/1000 -> 7.817320117 | BK7: =+Transporte!L20+Transporte!L21 -> 16.88755892 | BL7: =SUM(BI7:BK7) -> 31.97775204 | BM7: =+BM4*BI7 -> 2.160043281 | BN7: =+BN4*BJ7 -> 1.579098664 | BO7: 4.508978232 | BP7: =+SUM(BM7:BO7) -> 8.248120176
A8: Auditoria de Consumo | C8: Tipo de vivienda | E8: =+Vivienda!C9 -> Casa | F8: Casa/Dpto | G8: Localidad: | I8: =+Vivienda!F11 -> Su Lugar | J8: # Persona | K8: Autor o Resposable: | L8: Sup (m2) | M8: Cond.Soc.Econ. | N8: # de Heladeras | O8: Heladera | P8: Lavarropa | Q8: Iluminacion | R8: Refrigeración Aire Acond. | S8: Calefacción Electr. | T8: Microonda | U8: Cafetera+Tostadora + batidora | V8: TV+Radio+DVD | W8: Informatica | X8: Stand By | Y8: Plancha | Z8: Bomba | AA8: Secador Pelo | AB8: Horno Eléctrico | AC8: Termotanq_EE | AE8: Otros | AF8: Extras | AG8: Todo Electicidad | AH8: Cocción_Gas | AI8: ACS_Gas | AJ8: Piloto_GN | AK8: Calef._Gas | AL8: Otro_gas | AM8: Total Gas | AN8: Total Cocina (kWh) | AP8: ACS (kWh) | AQ8: Calef.T. (kWh) | AR8: Refrig.T (kWh) | AT8: Calf/m2 | AU8: EE/N_pers | BI8: =+Transporte!$N$17 -> Tn(CO2)/año | BJ8: =+Transporte!$N$17 -> Tn(CO2)/año | BK8: =+Transporte!$N$17 -> Tn(CO2)/año | BL8: =+Transporte!$N$17 -> Tn(CO2)/año | BM8: =+Transporte!$N$17 -> Tn(CO2)/año | BN8: =+Transporte!$N$17 -> Tn(CO2)/año | BO8: =+Transporte!$N$17 -> Tn(CO2)/año | BP8: =+Transporte!$N$17 -> Tn(CO2)/año
C9: Consumos Electricos | E9: =+"Consumos eléctricos anuales"&" "&E8&" en "&I8&"(MWh)="&ROUND(I74/1000,2) -> Consumos eléctricos anuales Casa en Su Lugar(MWh)=7.27 | BI9: =+BI7*BM4 -> 2.160043281 | BJ9: =+BJ7*BN4 -> 1.579098664 | BK9: =+BK7*BO4 -> 4.508978232 | BL9: =SUM(BI9:BK9) -> 8.248120176
A10: =+"Consumos gas+Eletrc.+Tran. anuales"&" "&E8&" en "&I8&"(MWh)="&ROUND(H107/1000,2) -> Consumos gas+Eletrc.+Tran. anuales Casa en Su Lugar(MWh)=0 | E10: =+"Consumos gas+Eletrc. anuales"&" "&E8&" en "&I8&"(MWh)="&ROUND(H107/1000,2) -> Consumos gas+Eletrc. anuales Casa en Su Lugar(MWh)=0
A11: =+C9&"de "&E8&" de "&I5&" mts.2"&" en "&I8&" con "&I6&" personas adultas" -> Consumos Electricos de Casa de 67 mts.2 en Su Lugar con 4 personas adultas | I11: =+COUNTIF(I15:I18,">1") -> 1 | AU11: Acond.Term.= | AW11: Cons. Total- | AX11: =+AW11&E5&ROUND(AV7/1000,1)&" MWh/año" -> Cons. Total- Su Nombre15.1 MWh/año
C12: [W] | D12: [W] | E12: [h] | F12: [Wh] | G12: [kWh] | I12: [kWh] | O12: Wh | AU12: =+AU11&ROUND(BE7,1)&" kWh/m2.año" -> Acond.Term.=51.7 kWh/m2.año
B13: Caracteristicas | C13: Potencia Nominal unitaria | D13: Pot_medida unitario | E13: hs_Uso/dia | F13: Consumo diario | G13: Consumo diario | H13: Dias al año utilizado | I13: Consumo Annual [kWh] | J13: Comentarios | K13: Comentarios y Sugerencia | L13: Antiguedad Años | M13: =+E5 -> Su Nombre | O13: Consumo dia/cilclo | P13: Años
A14: Artefacto | B14: Marca y Clase | K14: Marca, u otro dato útil | M14: =+A14 -> Artefacto | N14: Marca y Clase
A15: Heladera A | B15: Electrolux Clase A | D15: =+F15/E15 -> 83.33333333 | E15: 24 | F15: 2000 | G15: =F15/1000 -> 2 | H15: 365 | I15: =+G15*H15 -> 730 | J15: =+IF(AND(F15>0,OR(F15<650,F15>4500)), " Ojo Valor muy Raro, Revisar","") ->  | L15: Antiguedad? | M15: Heladera A | N15: Electrolux Clase A | O15: =+F15 -> 2000 | P15: =+L15 -> Antiguedad?
A16: Heladera B | B16: Acme 0 | D16: =+F16/E16 -> 0 | E16: 25 | F16: 0 | G16: =F16/1000 -> 0 | H16: 365 | I16: =+G16*H16 -> 0 | J16: =+IF(AND(F16>0,OR(F16<650,F16>4500)), " Ojo Valor muy Raro, Revisar","") ->  | L16: Antiguedad? | M16: Heladera B | N16: Acme 0 | O16: 0 | P16: Antiguedad?
A17: Heladera C | B17: Acme 2 | D17: =+F17/E17 -> 0 | E17: 25 | F17: 0 | G17: =F17/1000 -> 0 | H17: 365 | I17: 0 | K17: g | L17: Antiguedad? | M17: Heladera C | N17: Acme 2 | O17: 0 | P17: Antiguedad?
A18: Heladera D | B18: Acme 3 | D18: =+F18/E18 -> 0 | E18: 25 | F18: 0 | G18: =F18/1000 -> 0 | H18: 366 | I18: =+G18*H18 -> 0 | J18: =+IF(AND(F18>0,OR(F18<650,F18>4500)), " Ojo Valor muy Raro, Revisar","") ->  | K18: g | L18: Antiguedad? | M18: Heladera D | N18: Acme 3 | O18: 0 | P18: Antiguedad?
A19: Lavarropa | B19: Acme 2 | C19: 1800 | F19: 272.0941558 | G19: 0.2720941558 | H19: 365 | I19: 99.31436688 | J19: =+IF(AND(F19>0,OR(F19<50,F19>1200)), " Ojo Valor muy Raro, Revisar","") ->  | K19: g | L19: Antiguedad? | M19: Lavarropa | N19: Acme 2 | O19: 272.0941558 | P19: Antiguedad?
A20: Lavavajilla | B20: Acme 3 | F20: 650 | G20: =F20/1000 -> 0.65 | H20: 365 | I20: 237.25 | J20: =+IF(AND(F20>0,OR(F20<500,F20>1600)), " Ojo Valor muy Raro, Revisar","") ->  | L20: Antiguedad? | M20: Lavavajilla | N20: Acme 3 | O20: 650 | P20: Antiguedad?
A21: Luces principles | B21: Las que más frecuentemente se encienden | C21: =5*12 -> 60 | D21: 40 | E21: 4 | F21: =+D21*E21 -> 160 | G21: 0.16 | H21: 365 | I21: 58.4 | J21: =+IF(AND(F21>0,OR(F21<20,F21>300)), " Ojo Valor muy Raro, Revisar","") ->  | L21: Antiguedad? | M21: =+A59 -> Agua Cal. Sanit.(TTQ_Electrico) | N21: =+B59 -> Acme 4 | O21: =+I59 -> 2007.5 | P21: =+L59 -> 1
A22: Luces ocacionales | B22: Encendido especial | C22: =14*12 -> 168 | D22: 129.3333333 | E22: 0.3 | F22: =+D22*E22 -> 38.8 | G22: 0.0388 | H22: 365 | I22: 14.162 | J22: =+IF(AND(F22>0,OR(F22<20,F22>300)), " Ojo Valor muy Raro, Revisar","") ->  | L22: Antiguedad? | M22: =+A51 -> Cocina Electr. | N22: =+B51 -> LongVie | O22: =+F51 -> 2500 | P22: =+L51 -> Antiguedad?
A23: Luces extras | B23: Encendido Ocacional | D23: 129.3333333 | E23: 0.3 | F23: =+D23*E23 -> 38.8 | G23: =F23/1000 -> 0.0388 | H23: 366 | I23: =+G23*H23 -> 14.2008 | J23: =+IF(AND(F23>0,OR(F23<20,F23>300)), " Ojo Valor muy Raro, Revisar","") -> 
A24: Ventilador Techo o Pie | B24: xx | D24: 60 | E24: 2 | F24: 120 | G24: 0.12 | H24: 100 | I24: 12 | J24: =+IF(AND(F24>0,OR(D24<40,D24>150)), " Ojo Valor muy Raro, Revisar","") ->  | L24: Antiguedad?
A25: Ventilador Techo o Pie | B25: yy | D25: 50 | E25: 2 | F25: =+D25*E25 -> 100 | G25: =F25/1000 -> 0.1 | H25: 100 | I25: =+G25*H25 -> 10 | J25: =+IF(AND(F25>0,OR(D25<40,D25>150)), " Ojo Valor muy Raro, Revisar","") -> 
A26: Aire Acondicionado 1 | B26: AA# | D26: 1200 | E26: 0 | F26: 0 | G26: 0 | H26: 100 | I26: 0 | J26: =+IF(AND(F26>0,OR(D26<500,D26>2000)), " Ojo Valor muy Raro, Revisar","") ->  | L26: Antiguedad?
A27: Aire Acondicionado 2 | B27: AA# | D27: 1200 | E27: 0 | F27: =+D27*E27 -> 0 | G27: =F27/1000 -> 0 | H27: 100 | I27: 0 | J27: =+IF(AND(F27>0,OR(D27<500,D27>2000)), " Ojo Valor muy Raro, Revisar","") ->  | L27: Antiguedad?
A28: Aire Acondicionado 3 | B28: AA# | D28: 1200 | E28: 0 | F28: 0 | G28: 0 | H28: 100 | I28: 0 | L28: Antiguedad?
A29: Aire Acondicionado 4 | B29: AA# | D29: 1200 | E29: 2 | F29: =+D29*E29 -> 2400 | G29: =F29/1000 -> 2.4 | H29: 101 | I29: =+G29*H29 -> 242.4 | L29: Antiguedad?
A30: Estufas Electricas 1 | B30: EE # | C30: 2000 | D30: 2500 | E30: 0 | F30: 0 | G30: 0 | H30: 150 | I30: 0 | J30: =+IF(AND(F30>0,OR(D30<300,D30>3000)), " Ojo Valor muy Raro, Revisar","") ->  | L30: Antiguedad?
A31: Estufas Electricas 2 | B31: EE # | C31: 2000 | D31: 2500 | E31: 0 | F31: =+D31*E31 -> 0 | G31: =F31/1000 -> 0 | H31: 150 | I31: 0 | J31: =+IF(AND(F31>0,OR(D31<300,D31>3000)), " Ojo Valor muy Raro, Revisar","") ->  | L31: Antiguedad?
A32: Estufas Electricas 3 | B32: EE # | C32: 2000 | D32: 2500 | E32: 0 | F32: 0 | G32: 0 | H32: 150 | I32: 0 | L32: Antiguedad?
A33: Estufas Electricas 4 | B33: EE # | C33: 2000 | D33: 2500 | E33: 0 | F33: 0 | G33: 0 | H33: 150 | I33: 0 | L33: Antiguedad?
A34: PC ´s (monit+CPU) | C34: 40 | D34: 40 | E34: 2 | F34: 80 | G34: 0.08 | H34: 365 | I34: =+G34*H34 -> 29.2 | J34: =+IF(AND(F34>0,OR(D34<30,D34>300)), " Ojo Valor muy Raro, Revisar","") ->  | L34: Antiguedad?
A35: Laptop | C35: 160 | D35: 154 | E35: 0 | F35: 0 | G35: 0 | H35: 365 | I35: 0 | J35: =+IF(AND(F35>0,OR(D35<30,D35>300)), " Ojo Valor muy Raro, Revisar","") ->  | L35: Antiguedad?
A36: Impresoras | B36: Laser HP1022 | C36: 50 | D36: 100 | E36: 0.03333333333 | F36: 3.333333333 | G36: 0.003333333333 | H36: 365 | I36: 1.216666667 | J36: =+IF(AND(F36>0,OR(D36<30,D36>300)), " Ojo Valor muy Raro, Revisar","") ->  | L36: Antiguedad?
A37: WiFi +Router | C37: 50 | D37: 50 | E37: 24 | F37: 1200 | G37: 1.2 | H37: 365 | I37: 438 | J37: =+IF(AND(F37>0,OR(D37<15,D37>70)), " Ojo Valor muy Raro, Revisar","") ->  | L37: Antiguedad?
A38: Radio | C38: 20 | D38: 12 | E38: 24 | F38: 288 | G38: 0.288 | H38: 365 | I38: 105.12 | J38: =+IF(AND(F38>0,OR(D38<10,D38>100)), " Ojo Valor muy Raro, Revisar","") ->  | L38: Antiguedad?
A39: TV 1 | B39: LG (LED 35") | C39: 70 | D39: 90 | E39: 2 | F39: 180 | G39: 0.18 | H39: 365 | I39: 65.7 | J39: =+IF(AND(F39>0,OR(D39<15,D39>140)), " Ojo Valor muy Raro, Revisar","") ->  | L39: Antiguedad?
A40: TV 2 | B40: Samsung (30") | C40: 70 | D40: 0 | E40: 2 | F40: =+D40*E40 -> 0 | G40: =F40/1000 -> 0 | H40: 366 | I40: =+G40*H40 -> 0 | J40: =+IF(AND(F40>0,OR(D40<15,D40>140)), " Ojo Valor muy Raro, Revisar","") ->  | L40: Antiguedad?
A41: TV 3 | B41: Acme 0 | C41: 70 | D41: 0 | E41: 2 | F41: 0 | G41: 0 | H41: 367 | I41: 0 | L41: Antiguedad?
A42: TV 4 | B42: Acme 1 | C42: 70 | D42: 0 | E42: 2 | F42: 0 | G42: 0 | H42: 368 | I42: 0 | L42: Antiguedad?
A43: TV 5 | B43: Acme 2 | C43: 70 | D43: 0 | E43: 2 | F43: 0 | G43: 0 | H43: 369 | I43: 0 | J43: =+IF(AND(F43>0,OR(D43<2,D43>60)), " Ojo Valor muy Raro, Revisar","") ->  | L43: Antiguedad?
A44: TV Stand By | B44: (todos) | C44: 0.35 | D44: 0 | E44: 24 | F44: =+D44*E44 -> 0 | G44: =F44/1000 -> 0 | H44: 365 | I44: =+G44*H44 -> 0 | J44: =+IF(AND(F44>0,OR(D44<2,D44>60)), " Ojo Valor muy Raro, Revisar","") ->  | L44: Antiguedad?
A45: DVD | B45: (panasonic S 700) | C45: 15 | D45: 15 | E45: 0.5 | F45: 7.5 | G45: 0.0075 | H45: 365 | I45: 2.7375 | J45: =+IF(AND(F45>0,OR(D45<15,D45>140)), " Ojo Valor muy Raro, Revisar","") ->  | L45: Antiguedad?
A46: Stand By Teléfono | B46: Acme 0 | C46: 5 | D46: 5 | E46: 24 | F46: 120 | G46: 0.12 | H46: 365 | I46: 43.8 | J46: =+IF(AND(F45>0,OR(D45<15,D45>140)), " Ojo Valor muy Raro, Revisar","") ->  | L46: Antiguedad?
A47: Stand By otros | B47: Acme 1 | C47: 3 | D47: 3 | E47: 24 | F47: 72 | G47: 0.072 | H47: 365 | I47: 26.28 | L47: Antiguedad?
A48: TV-Cable (modulo) | B48: Acme 2 | C48: 12 | D48: 6 | E48: 24 | F48: 144 | G48: 0.144 | H48: 365 | I48: 52.56 | L48: Antiguedad?
A49: Secador Pelo | B49: Acme 3 | C49: 300 | D49: 300 | E49: =1/60 -> 0.01666666667 | F49: 5 | G49: 0.005 | H49: 365 | I49: 1.825 | J49: =+IF(AND(F49>0,OR(D49<200,D49>2000)), " Ojo Valor muy Raro, Revisar","") ->  | L49: Antiguedad?
A50: Plancha | B50: Acme 4 | C50: 1000 | D50: 900 | E50: 0.35 | F50: 315 | G50: 0.315 | H50: 365 | I50: 114.975 | J50: =+IF(AND(F50>0,OR(D50<200,D50>2000)), " Ojo Valor muy Raro, Revisar","") ->  | L50: Antiguedad?
A51: Cocina Electr. | B51: LongVie | D51: 2500 | E51: 1 | F51: 2500 | G51: 2.5 | H51: 365 | I51: 912.5 | J51: =+IF(AND(F51>0,OR(D51<700,D51>5000)), " Ojo Valor muy Raro, Revisar","") ->  | L51: Antiguedad?
A52: Microondas | B52: Phillips | D52: 900 | E52: 1 | F52: 900 | G52: 0.9 | H52: 365 | I52: 328.5 | J52: =+IF(AND(F52>0,OR(D52<500,D52>1500)), " Ojo Valor muy Raro, Revisar","") ->  | L52: Antiguedad?
A53: Tostador | B53: Liliana | D53: 750 | E53: 1 | F53: 750 | G53: 0.75 | H53: 365 | I53: 273.75 | J53: =+IF(AND(F53>0,OR(D53<500,D53>1500)), " Ojo Valor muy Raro, Revisar","") ->  | L53: Antiguedad?
A54: Batidora | B54: Acme 1 | C54: 25 | D54: 25 | E54: 1 | F54: 25 | G54: 0.025 | H54: 365 | I54: 9.125 | J54: =+IF(AND(F54>0,OR(D54<20,D54>600)), " Ojo Valor muy Raro, Revisar","") ->  | L54: Antiguedad?
A55: Cafetera | B55: Acme 0 | D55: 1500 | E55: 0.2 | F55: 300 | G55: 0.3 | H55: 365 | I55: 109.5 | J55: =+IF(AND(F55>0,OR(D55<500,D55>2000)), " Ojo Valor muy Raro, Revisar","") ->  | L55: Antiguedad?
A56: Pava Electrica | B56: Acme 1 | D56: 1200 | E56: 0.3 | F56: 360 | G56: 0.36 | H56: 366 | I56: 131.76 | J56: =+IF(AND(F56>0,OR(D56<500,D56>2200)), " Ojo Valor muy Raro, Revisar","") ->  | L56: Antiguedad?
A57: Dispenser Agua | B57: Acme 2 | F57: 1230 | G57: 1.23 | H57: 365 | I57: 448.95 | J57: =+IF(AND(F57>0,OR(F57<500,F57>2800)), " Ojo Valor muy Raro, Revisar","") ->  | L57: Antiguedad?
A58: Horno Electrico | B58: Acme 3 | D58: 1500 | E58: 0.25 | F58: 375 | G58: =F58/1000 -> 0.375 | H58: 366 | I58: 137.25 | J58: =+IF(AND(F58>0,OR(D58<500,D58>2500)), " Ojo Valor muy Raro, Revisar","") -> 
A59: Agua Cal. Sanit.(TTQ_Electrico) | B59: Acme 4 | F59: 5500 | G59: 5.5 | H59: 365 | I59: 2007.5 | J59: =+IF(AND(F59>0,OR(F59<1000,F59>6000)), " Ojo Valor muy Raro, Revisar","") ->  | L59: 1
A60: Bomba Agua | D60: 240 | E60: 1 | F60: =+D60*E60 -> 240 | G60: 0.24 | H60: 365 | I60: 87.6 | J60: =+IF(AND(F60>0,OR(F60<400,F60>800)), " Ojo Valor muy Raro, Revisar","") -> Ojo Valor muy Raro, Revisar | L60: Antiguedad?
A61: Otros 1(Plancha para el pelo) | C61: 200 | D61: 200 | E61: =1/60 -> 0.01666666667 | F61: =+D61*E61 -> 3.333333333 | G61: 0.003333333333 | H61: 365 | I61: 1.216666667 | L61: Antiguedad?
A62: Otros 2 (aspiradora) | D62: 20 | E62: 24 | F62: =+D62*E62 -> 480 | G62: 0.48 | H62: 365 | I62: 175.2 | L62: Antiguedad?
A63: Otros 3 | D63: 20 | E63: 24 | F63: =+D63*E63 -> 480 | G63: 0.48 | H63: 365 | I63: 175.2 | L63: Antiguedad?
A64: Otros 4 | D64: 20 | E64: 24 | F64: =+D64*E64 -> 480 | G64: =F64/1000 -> 0.48 | H64: 366 | I64: =+G64*H64 -> 175.68 | L64: Antiguedad?
A65: Otros 5 | D65: 0 | E65: 24 | F65: 0 | G65: 0 | H65: 367 | I65: 0 | L65: Antiguedad?
A66: Otros 6 | D66: 0 | E66: 24 | F66: 0 | G66: 0 | H66: 368 | I66: 0 | L66: Antiguedad?
A67: Otros 7 | D67: 0 | E67: 24 | F67: 0 | G67: 0 | H67: 369 | I67: 0 | L67: Antiguedad?
A68: Otros 8 | D68: 0 | E68: 24 | F68: 0 | G68: 0 | H68: 370 | I68: 0 | L68: Antiguedad?
A69: Otros 9 | D69: 0 | E69: 24 | F69: 0 | G69: 0 | H69: 371 | I69: 0 | L69: Antiguedad?
A70: Otros 10 | D70: 0 | E70: 24 | F70: 0 | G70: 0 | H70: 372 | I70: 0 | L70: Antiguedad?
A71: Otros 11 | D71: 0 | E71: 24 | F71: 0 | G71: =F71/1000 -> 0 | H71: 365 | I71: =+G71*H71 -> 0 | L71: Antiguedad?
A72: Extras | D72: 0 | E72: 24 | G72: =F72/1000 -> 0 | H72: 365 | I72: =+G72*H72 -> 0 | L72: Antiguedad?
A73: Total - auditoria | K73: Diferencia
A74: Todos los consumo electrico - Medición | F74: =SUM(F15:F72) -> 21817.86082 | G74: =SUM(G15:G71) -> 21.81786082 | I74: =SUM(I15:I71) -> 7272.873 | K74: =+(I74-I75)/I75 -> 2.605787308
A75: Total - Facturación | G75: Según Factura Luz | I75: =+K112 -> 2017
I76: =+Vivienda!Q4 -> 2017
A77: Cons. Electr./Total= | B77: =+I75/C109 -> 0.133662968 | H77: Refrigeración: | I77: =+SUM(I24:I29) -> 264.4 | J77: =+I77/I74 -> 0.03635427155
A78: =+A77&ROUND(100*B77,1)&" %" -> Cons. Electr./Total=13.4 % | H78: Calefacción: | I78: =+SUM(I30:I33)+C107 -> 3199.813283
G79: [kWh] | H79: AT | I79: =+I77+I78 -> 3464.213283 | J79: AT:
A80: Resumen eléctrico | B80: [kWh] | C80: [kWh] | H80: =+C81 -> Consumo Annual [kWh] | I80: AT= | J80: =+I79/Area_eff -> 57.73688806 | K80: kWh/m2.año | L80: # personas | M80: =+J7 -> 4 | N80: =+Vivienda!$M$11 -> 4
A81: Aterfacto | B81: =+G13 -> Consumo diario | C81: =+I13 -> Consumo Annual [kWh] | G81: Calef. GAS | H81: =C107 -> 3199.813283 | I81: =+I80&ROUND(J80,1)&K80 -> AT= 57.7 kWh/m2.año | L81: Calculo de ACS | M81: Minimo
A82: Heladera | B82: =+G14+G15+G16+G17+G18 -> 2 | C82: =+I14+I15+I16+I17+I18 -> 730 | G82: Calef._EE | H82: =+SUM(I29:I33) -> 242.4 | L82: Consumo de ACS | M82: =+M80*45 -> 180 | N82: =+M82 -> 180
A83: Lavarropa (Vaj.) | B83: =+G20+G19 -> 0.9220941558 | C83: =+I19+I20 -> 336.5643669 | G83: Calef_Total | H83: =+H81+H82 -> 3442.213283 | L83: DT= | M83: 25 | N83: 25
A84: Iluminacion | B84: =+G21+G22+G23 -> 0.2376 | C84: =+I21+I22+I23 -> 86.7628 | G84: =A105 -> ACS_Gas | H84: =C105 -> 986.2216 | L84: eff= | M84: 0.95 | N84: 0.97
A85: Refr.Calf. AA | B85: =+G22+G24+G25+G26+G27+G28+G29 -> 2.6588 | C85: =+I24+I25+I26+I27+I28+I29 -> 264.4 | G85: =A106 -> Piloto_GN | H85: =C106 -> 1973.524583 | L85: Q(kcal/d)= | M85: =+M82*M83/M84 -> 4736.842105 | N85: =+N82*N83/N84 -> 4639.175258
A86: Calef. Electr. | B86: =G30+G31+G32+G33 -> 0 | C86: =I30+I31+I32+I33 -> 0 | G86: =A104 -> Cocción_Gas | H86: =C104 -> 1657.76065 | L86: Q(kWh/d)= | M86: =+M85*10.8/9300 -> 5.500848896 | N86: =+N85*10.8/9300 -> 5.387429332 | O86: =+(M85/M80)*10.8/9300 -> 1.375212224 | P86: =+(N85/N80)*10.8/9300 -> 1.346857333
A87: Microonda | B87: =+G52 -> 0.9 | C87: =+I52 -> 328.5 | G87: =+A95 -> Cocina_EE | H87: =+C95 -> 912.5 | L87: Q_Pasivo(kWh/dia)= | M87: 2.5 | N87: 0.97 | Q87: Si desenchufa despues de
A88: Cafetera+Tostadora + batidora | B88: =+G55+G53+G54+G56 -> 1.435 | C88: =+I55+I53+I54+I56 -> 524.135 | G88: =+A97 -> ACS_EE | H88: =+C97 -> 2007.5 | L88: Q_total (kWh/día) | M88: =+M86+M87 -> 8.000848896 | N88: =+N86+N87 -> 6.357429332 | Q88: ducharse
A89: Informatica | B89: =+G37+G36+G35+G34 -> 1.283333333 | C89: =+I37+I36+I35+I34 -> 468.4166667 | G89: =A96 -> Horno Electr. | H89: =C96 -> 137.25 | Q89: Si no desenchufa
A90: TV+Radio_Electr. | B90: =+G39+G38+G40+G41+G42+G43+G44+G45 -> 0.4755 | C90: =+I38+I39+I40+I41+I42+I43+I44+I45 -> 173.5575 | G90: =A82 -> Heladera | H90: =C82 -> 730 | L90: Calculo de ACS | M90: Mejorado | O90: =+n_pers -> 4 | P90: persinas
A91: Stand By | B91: =+G46+G47+G48 -> 0.336 | C91: =+I46+I47+I48 -> 122.64 | G91: =+A85 -> Refr.Calf. AA | H91: =C85 -> 264.4 | L91: Personas | M91: Equipo "C" | N91: Equipo "A" | O91: Equipo "C" | P91: Equipo "A"
A92: Secador Pelo | B92: =+G49 -> 0.005 | C92: =+I49 -> 1.825 | G92: =A83 -> Lavarropa (Vaj.) | H92: =C83 -> 336.5643669 | L92: ACS | M92: Consumo Mínimo por personas | W92: Consumo de ACS - TTQ Eléctricos
A93: Plancha | B93: =+G50 -> 0.315 | C93: =+I50 -> 114.975 | G93: =A84 -> Iluminacion | H93: =C84 -> 86.7628 | L93: =+M80 -> 4 | M93: =+$L$93&" "&$L$91 -> 4 Personas | N93: =+M93 -> 4 Personas | O93: =+n_pers -> 4 | P93: =+n_pers -> 4 | Q93: personas | W93: Equipo Clase C | X93: Equipo Clase A
A94: Bomba | B94: =+G60 -> 0.24 | C94: =+I60 -> 87.6 | G94: Calef.EE. | H94: =C86 -> 0 | L94: DT= | M94: 25 | N94: =+M94 -> 25 | O94: =+N94 -> 25 | P94: =+O94 -> 25 | Q94: 25 | V94: N0 Personasa | W94: Consumo (kWh/día) | X94: Consumo (kWh/día)
A95: Cocina_EE | B95: =+G51 -> 2.5 | C95: =+I51 -> 912.5 | D95: 8 | E95: 1 | F95: =+E95+D95 -> 9 | G95: =A90 -> TV+Radio_Electr. | H95: =C90 -> 173.5575 | V95: 1 | W95: =+$M$100+$V95*$O$86 -> 4.875212224 | X95: =+$N$100+V95*$P$86 -> 2.316857333
A96: Horno Electr. | B96: =+G57 -> 1.23 | C96: =+I58 -> 137.25 | D96: Calefacción | E96: Refrigeración | G96: =A91 -> Stand By | H96: =C91 -> 122.64 | L96: Vol_Agua | M96: 50 | N96: =+M96 -> 50 | O96: =+O93*M96 -> 200 | P96: =+P93*N96 -> 200 | Q96: =+P96 -> 200 | R96: litros/dia | S96: Equipo "D" | T96: Equipo "A" | V96: 2 | W96: =+$M$100+$V96*$O$86 -> 6.250424448 | X96: =+$N$100+V96*$P$86 -> 3.663714666
A97: ACS_EE | B97: =+G59 -> 5.5 | C97: =+I59 -> 2007.5 | D97: =+(D95/$F$95)*$C$97 -> 1784.444444 | E97: =+(E95/$F$95)*$C$97 -> 223.0555556 | F97: =+E97+D97 -> 2007.5 | G97: Cafet.PavaEE | H97: =C88 -> 524.135 | L97: Eff= | M97: 0.95 | N97: 0.97 | O97: 0.95 | P97: 0.97 | V97: 3 | W97: 7.625636672 | X97: 5.010571999
A98: Otros | B98: =+G62+G61+G63+G64+G65+G66+G71+G67+G68+G69+G70 -> 1.443333333 | C98: =+I61+I62+I63+I64+I65+I66+I67+I68+I69+I70+I71+I57 -> 976.2466667 | G98: =A89 -> Informatica | H98: =C89 -> 468.4166667 | L98: Q_ACS(kcal/d)= | M98: =+$L$93*M94*M96/M97 -> 5263.157895 | N98: =+L93*N94*N96/N97 -> 5154.639175 | O98: =+M98*n_pers -> 21052.63158 | P98: =+N98*n_pers -> 20618.5567 | R98: =+N94 -> 25 | V98: 4 | W98: 9.000848896 | X98: 6.357429332
A99: Extras | B99: =G72 -> 0 | C99: =I72 -> 0 | G99: =A87 -> Microonda | H99: =C87 -> 328.5 | L99: Q_ACS(kWh/d)= | M99: =+M98*10.8/9300 -> 6.112054329 | N99: =+N98*10.8/9300 -> 5.986032591 | O99: =+O98*10.8/9300 -> 24.44821732 | P99: =+P98*10.8/9300 -> 23.94413036 | V99: 5 | W99: 10.37606112 | X99: 7.704286664
A100: TOTAL | B100: =SUM(B82:B98) -> 21.48166082 | C100: =SUM(C82:C98) -> 7272.873 | G100: =A92 -> Secador Pelo | H100: =C92 -> 1.825 | L100: Q_Mant(kWh/d)= | M100: 3.5 | N100: 0.97 | O100: =+M100 -> 3.5 | P100: =+N100 -> 0.97 | R100: =+M96*O93 -> 200 | S100: =+R100 -> 200 | T100: litros/dia | V100: 6 | W100: 11.75127334 | X100: 9.051143997
G101: =A93 -> Plancha | H101: =C93 -> 114.975 | L101: Q_mant(m3/d)= | M101: =+M100/10.8 -> 0.3240740741 | N101: =+N100/10.8 -> 0.08981481481 | O101: =+O100/10.8 -> 0.3240740741 | P101: =+P100/10.8 -> 0.08981481481 | R101: 0.95 | S101: 0.97 | V101: 7 | W101: 13.12648557 | X101: =+$N$100+V101*$P$86 -> 10.39800133
B102: Diario | C102: Anual | G102: =A94 -> Bomba | H102: =C94 -> 87.6 | L102: E_dia(KWh/d)= | M102: =+M99+M100 -> 9.612054329 | N102: =+N99+N100 -> 6.956032591 | O102: =+O99+O100 -> 27.94821732 | P102: =+P99+P100 -> 24.91413036 | V102: 8 | W102: 14.50169779 | X102: 11.74485866
A103: Resumen GAS | B103: [kWh] | C103: [kWh] | G103: =A98 -> Otros | H103: =C98 -> 976.2466667 | L103: E_Tot(kWh/año)= | M103: =+M102*365 -> 3508.39983 | N103: =+N102*365 -> 2538.951896 | O103: =+O102*365 -> 10201.09932 | P103: =+P102*365 -> 9093.657582 | R103: =+R98*S100/S101 -> 5154.639175 | V103: 9 | W103: 15.87691002 | X103: 13.091716
A104: Cocción_Gas | B104: ='Consumo de Gas'!D27 -> 4.54181 | C104: =+'Consumo de Gas'!E27 -> 1657.76065 | D104: =+G107&"="& ROUND(H107,2)&" "&I107 -> Total Electr.=4.22 MWh/año | G104: Electrico | H104: =SUM(H87:H103) -> 7272.873 | I104: kWh/año | L104: E_Tot_año (MWh/año)= | M104: =+M103/1000 -> 3.50839983 | N104: =+N103/1000 -> 2.538951896 | O104: =+O103/1000 -> 10.20109932 | P104: =+P103/1000 -> 9.093657582 | R104: =+R103*10.8/9300 -> 5.986032591 | V104: 10 | W104: 17.25212224 | X104: 14.43857333
A105: ACS_Gas | B105: ='Consumo de Gas'!D28 -> 2.701976986 | C105: =+'Consumo de Gas'!E28 -> 986.2216 | D105: =+G108&"="& ROUND(H108,1)&" "&I108 -> Total Gas+Electr.=18.8 MWh/año | G105: Todos (G+EE) | H105: =SUM(H81:H103) -> 18774.8064 | I105: kWh/año | R105: =+N100 -> 0.97 | V105: 11 | W105: 18.62733447 | X105: 15.78543066
A106: Piloto_GN | B106: ='Consumo de Gas'!D29 -> 5.406916667 | C106: =+'Consumo de Gas'!E29 -> 1973.524583 | P106: =+P103+P104 -> 9102.75124 | R106: =+R105/10.8 -> 0.08981481481 | V106: 12 | W106: 20.00254669 | X106: 17.13228799
A107: Calef._Gas | B107: =+C107/365 -> 8.766611735 | C107: =+'Consumo de Gas'!E30 -> 3199.813283 | G107: Total Electr. | H107: =SUM(H90:H103)/1000 -> 4.215623 | I107: MWh/año | P107: =+P106*365 -> 3322504.203 | R107: =+R104+R105 -> 6.956032591
A108: Otro_gas | B108: =+'Consumo de Gas'!D31 -> 0 | C108: =+'Consumo de Gas'!E31 -> 0 | G108: Total Gas+Electr. | H108: =SUM(H81:H103)/1000 -> 18.7748064 | I108: MWh/año | P108: =+P107/1000 -> 3322.504203 | R108: =+R107*365 -> 2538.951896
A109: Consumo Totales Gas+Electricidad | B109: =SUM(B82:B108) -> 64.38063703 | C109: =+C110+C111 -> 15090.19312 | G109: Transp. | H109: =+Transporte!N20+Transporte!N21 -> 3.892473073 | I109: MWh/año | R109: =+R108/1000 -> 2.538951896
A110: Todo Electicidad | B110: =SUM(B82:B98) -> 21.48166082 | C110: =SUM(C82:C98) -> 7272.873 | G110: Total (T.G.EE)= | H110: =+H107+H108+H109 -> 26.88290247 | I110: MWh/año | L110: Poner Su factura de Electricidad en Vivienda
A111: Total Gas | B111: =SUM(B104:B107) -> 21.41731539 | C111: =SUM(C104:C107) -> 7817.320117 | F111: Calef.= | G111: =+"Consumos total gas+electricidad"&" "&E8&" en "&I8&" (kWh)="&ROUND(C109,0) -> Consumos total gas+electricidad Casa en Su Lugar (kWh)=15090
F112: =+F111&ROUND(J80,1)&K80 -> Calef.=57.7 kWh/m2.año | H112: kWh/m2.año | J112: Annual | K112: =SUM(K114:K119) -> 2017 | L112: kWh
I114: 1 | J114: =+Vivienda!P6 -> 18/05 | K114: =+Vivienda!Q6 -> 346
I115: 2 | J115: =+Vivienda!P7 -> 18/06 | K115: =+Vivienda!Q7 -> 268
I116: 3 | J116: =+Vivienda!P9 -> 19/01 | K116: =+Vivienda!Q9 -> 294
I117: 4 | J117: =+Vivienda!P10 -> 19/02 | K117: =+Vivienda!Q10 -> 282
I118: 5 | J118: =+Vivienda!P11 -> 19/03 | K118: =+Vivienda!Q11 -> 365
I119: 6 | J119: =+Vivienda!P12 -> 19/04 | K119: =+Vivienda!Q12 -> 462
I120: 7
I121: 8 | J121: =+Vivienda!P14 -> 19/05 | K121: =+Vivienda!Q14 -> 400
A125: Algunos Consumos de refenrecia | C125: Ver Tambien hoja: | E125: Conusmos_Caract_2023 | I125: Base: | J125: =+MIN(K114:K121) -> 268
I126: Refrig: | J126: =+K112-6*J125 -> 409 | K126: =+J126/K112 -> 0.2027764006
AJ761: medida kW | AK761: medida W
AJ763: =0.05 -> 0.05 | AK763: =+AJ763*1000 -> 50
AJ764: 0.01 | AK764: 10
AJ765: 0.9 | AK765: 900
AK766: 0
AJ767: 0.4 | AK767: 400
AJ768: 1.09 | AK768: 1090
AK769: 0
AJ770: =+AH770-AH769 -> 0 | AK770: 0
AJ771: =+AH771-AH769 -> 0 | AK771: 0
AJ772: =+AH772-AH770 -> 0 | AK772: 0

Sheet Consumo de Gas
A1: Auditoría de Gas | E1: Por favor llenar solo los casilleros en Azul con fondo Verde | K1: 65
I2: A_Total | J2: Afect (m2)
C3: Autor o Resposable: | E3: =+nombre -> Su Nombre | G3: Superficie Cubierta (m2) | I3: =+Area_v -> 67 | J3: =+area_ef -> 60 | K3: Superficie efectivamente calefaccionada
C4: e:mail: | E4: =+Vivienda!C6 -> mail@unsam.edu.ar | G4: Número de personas en la Vivienda | I4: =+n_pers -> 4 | J4: =+K1/100 -> 0.65
C5: Fecha de ensayo: | E5: =+Vivienda!C5 -> Su Nombre | G5: Dirección vivienda | I5: =+Vivienda!F10 -> Italia xxx
C6: Tipo de vivienda | E6: =+Vivienda!C9 -> Casa | G6: Localidad: | I6: =+Vivienda!F11 -> Su Lugar
C7: Duracion del Invierno (días) | E7: 120 | F7: AMBA
C8: Como calienta el ACS | D8: (calefon, Termot.Cald.) | E8: =+Vivienda!D17 -> TERMO | F8: Solo Equip. a gas | G8: Estufas (Número de estufas a gas) | I8: =+N_est -> 2
C9: Antiguedad del Equip de ACS ( # de Años) | G9: Estufas (Potencia Total) | J9: (kCal/h)
D10: \ | E10: ="Consumo de Gas"&" ="&C25&" m3/año" -> Consumo de Gas =727.9 m3/año | I10: 80
A11: ="Consumo de Gas"&" ="&ROUND(E44/1000,2)&" MWh/año"&" ="&C25&" m3/año" -> Consumo de Gas =7.82 MWh/año =727.9 m3/año | E11: cocc.+ACS+Pil. | F11: Calef. | G11: Horas de uso | I11: 40
C12: Dias en un bimestre | D12: =365/6 -> 60.83333333 | F12: =+AVERAGE(F19:F21) -> 0.4496986301 | H12: Base= | I12: =+I10*(I14/100) -> 72
A14: Su sistema de calentamieto de agua tiene Piloto? Cuantos? | F14: =+N_pil -> 1 | G14: =+I12 -> 72 | I14: 90
A15: Bimestre | B15: Bimestre | C15: (m3/bimestre) | D15: diario | E15: base (diario) | F15: Calefacción (m3/día) | G15: base (bim) | H15: Calefacción (Bim) | I15: Base(Nominal) | J15: Base Nominal)
A16: ener-febr | B16: 1 | C16: =+G62 -> 162.22 | D16: =+C16/$D$12 -> 2.666630137 | E16: =+G16/$D$12 -> 1.183561644 | F16: =+IF(D16>E16,D16-E16,0) -> 1.483068493 | G16: =+IF(C16<$G$14,C16,$G$14) -> 72 | H16: =+IF(C16>G16,C16-G16,0) -> 90.22 | I16: =+I12 -> 72 | J16: =+I16/$D$12 -> 1.183561644
A17: Mar-Abr | B17: 2 | C17: =+G63 -> 166.5 | D17: 2.736986301 | E17: 1.183561644 | F17: =+IF(D17>E17,D17-E17,0) -> 1.553424658 | G17: =+IF(C17<$G$14,C17,$G$14) -> 72 | H17: =+IF(C17>G17,C17-G17,0) -> 94.5 | I17: =+I16 -> 72 | J17: =+J16 -> 1.183561644
A18: Mayo-Jun | B18: 3 | C18: 101.11 | D18: 1.662082192 | E18: 1.183561644 | F18: 0.4785205479 | G18: 72 | H18: 29.11 | I18: =+I17 -> 72 | J18: 1.183561644
A19: Jul-Agos | B19: 4 | C19: 75.13 | D19: 1.235013699 | E19: 1.183561644 | F19: 0.05145205479 | G19: 72 | H19: 3.13 | I19: 72 | J19: =+J18 -> 1.183561644
A20: Sept-Oct | B20: 5 | C20: 100.37 | D20: 1.649917808 | E20: 1.183561644 | F20: 0.4663561644 | G20: 72 | H20: 28.37 | I20: 72 | J20: 1.183561644
A21: Nov-Dic | B21: 6 | C21: 122.57 | D21: 2.014849315 | E21: 1.183561644 | F21: 0.8312876712 | G21: 72 | H21: 50.57 | I21: 72 | J21: 1.183561644
A22: ener-febr | B22: 1 | C22: 181.67 | D22: 2.986356164 | E22: 1.183561644 | F22: 1.802794521 | G22: 72 | H22: 109.67 | I22: 72 | J22: 1.183561644
A23: TOTALES | B23: =+G23+H23 -> 727.9 | C23: =SUM(C16:C21) -> 727.9 | G23: =SUM(G16:G21) -> 432 | H23: =SUM(H16:H21) -> 295.9
B24: Equivalencia | C24: 1 m3 (GN) | D24: 10.81383333 | E24: Kwh
A25: Total Anual | C25: =SUM(C16:C21) -> 727.9 | E25: base-piloto= | F25: =+E16-C29 -> 0.6835616438 | G25: Observaciones
B26: m3/año | C26: m3/día | D26: kWh /dia | E26: kWh/Año
A27: Cocción | B27: =365*C27 -> 153.3 | C27: =+IF(I4>2,0.22+0.1*(I4-2),0.22) -> 0.42 | D27: =$D$24*C27 -> 4.54181 | E27: =$D$24*B27 -> 1657.76065 | F27: =+Vivienda!M12 -> 4.4 | G27: =+IF(AND(D27>0,OR(D27<F27*0.7,D27>F27*1.3)), " Ojo Valor muy Raro, Revisar","") -> 
A28: ACS_GN | B28: =+G23-B27-B29-B32 -> 91.2 | C28: =+B28/365 -> 0.2498630137 | D28: =$D$24*C28 -> 2.701976986 | E28: =$D$24*B28 -> 986.2216 | F28: =+Vivienda!J27 -> 5.500848896 | G28: =+IF(AND(D28>0,OR(D28<F28*0.7,D28>F28*1.3)), " Ojo Valor muy Raro, Revisar","") -> Ojo Valor muy Raro, Revisar
A29: Piloto | B29: =365*C29 -> 182.5 | C29: =+F14*0.5 -> 0.5 | D29: =$D$24*C29 -> 5.406916667 | E29: =$D$24*B29 -> 1973.524583 | G29: =+IF(AND(D29>0,OR(D29>7)), " Ojo Valor muy Raro, Revisar","") -> 
A30: Calef. | B30: =+H23 -> 295.9 | C30: =+B30/d_inv -> 2.465833333 | D30: =$D$24*C30 -> 26.66511069 | E30: =$D$24*B30 -> 3199.813283 | F30: =+Area_v*80 -> 5360 | G30: =+IF(AND(E30>0,OR(E30<F30*0.5,E30>F30*1.4)), " Ojo Valor muy Raro, Revisar","") -> 
A31: Otro
A32: Pérdidas | B32: =+F32 -> 5 | C32: =+B32/365 -> 0.01369863014 | F32: 5
A33: TOTALES | B33: =SUM(B27:B31) -> 722.9 | C33: =SUM(C27:C30) -> 3.635696347 | D33: =SUM(D27:D31) -> 39.31581435 | E33: =SUM(E27:E31) -> 7817.320117
A34: =+D34&ROUND(E34,1)&F34 -> Calef.=53.3 kWh/m2/año | D34: Calef.= | E34: =+E30/Area_eff -> 53.33022139 | F34: kWh/m2/año
C35: USO de ACS | F35: Usar si hay sopecha de predidas
A36: Efic= | B36: 0.7 | C36: Litros de Agua Caliente Total= | E36: =+C28*B36*9300/B37 -> 65.06432877 | F36: de gas
A37: DT= | B37: 25 | C37: Litros de Agua Caliente/Pers= | E37: =+E36/I4 -> 16.26608219 | F37: Un indicador e un valor alto del consumo de ACS
B38: Valores normales de referencia | D38: entre | E38: 40 y 65 | F38: litros/día/persona
A39: =+E39&ROUND(E37,0)&" l/día/pers." -> Cons.ACS/pers.=16 l/día/pers. | E39: Cons.ACS/pers.=
B42: km/mes | C42: lit/mes | D42: kWh/mes | E42: kWh/año
A43: Transporte | B43: 1000 | C43: =+B43/15 -> 66.66666667 | D43: =9.6*C43 -> 640 | E43: =12*D43 -> 7680 | G43: años
A44: Gas | E44: =E33 -> 7817.320117
A45: Electricidad | E45: ='Consumo eléctrico'!I75 -> 2017 | F45: =+E44+E45 -> 9834.320117 | G45: ="Consumo Total "&ROUND('Consumo de Gas'!$E$46/1000,1)&" MWh/año" -> Consumo Total 17.5 MWh/año
A46: TOTAL | E46: =SUM(E43:E45) -> 17514.32012
H57: Poner Su factura de gas en Hoja de Viviena
F59: Annual= | G59: =+SUM(G62:G67) -> 727.9
N60: =SUM(N63:N68) -> 659.89
E62: 1 | F62: =+Vivienda!Q28 -> 21/5 | G62: =+Vivienda!R28 -> 162.22
E63: 2 | F63: =+Vivienda!Q29 -> 21/6 | G63: =+Vivienda!R29 -> 166.5 | N63: 43
E64: 3 | F64: =+Vivienda!Q30 -> 22/1 | G64: =+Vivienda!R30 -> 101.11 | N64: 135.7
E65: 4 | F65: =+Vivienda!Q31 -> 22/2 | G65: =+Vivienda!R31 -> 75.13 | N65: 225.42
E66: 5 | F66: =+Vivienda!Q32 -> 22/3 | G66: =+Vivienda!R32 -> 100.37 | N66: 135.53
E67: 6 | F67: =+Vivienda!Q33 -> 22/4 | G67: =+Vivienda!R33 -> 122.57 | N67: 84.24
E68: 7 | F68: =+Vivienda!Q34 -> 22/5 | G68: =+Vivienda!R34 -> 181.67 | N68: 36
N70: 56.88

Sheet Transporte
L1: Ref: | Q1: Ref: | R1: EPA | S1: https://greengroundswell.com/epa-clean-power-plan-existing-power-plant-co2-emissions/2014/10/16/
R2: g(CO2)/kWh | S2: kWh/l o m3 | V2: Buses CABA | Y2: https://es.wikipedia.org/wiki/Colectivos_de_Buenos_Aires | AC2: Reference:
C3: Promedio | Q3: Gas Nat Natural | R3: 202 | S3: 10.8 | T3: kWh/m3 | X3: Ref: | Y3: https://www.infobae.com/2007/08/28/334279-el-tope-gente-que-puede-viajar-parada-colectivo/
A4: Automoviles | B4: Transporte | C4: Person/viaje | D4: km/mes | E4: km/vacaciones | F4: km/año | G4: km/l | H4: kWh/km | I4: J/m/pers | J4: litro/año | K4: kWh/mes | L4: kWh/año | M4: kg(CO2)/kWh | N4: kg(CO2)/año | O4: km/hora | Q4: GLP | R4: 244 | S4: =+S3*1.17 -> 12.636 | T4: kWh/kg | V4: 30 litros de gasoil cada 100 kilometros | Z4: Eficacia | AA4: Wh/km/pers | AB4: g(CO2)/km | AC4: Wh/km/pers | AD4: g(CO2)/km
A5: Auto1 | B5: Automivil | C5: 1 | D5: 800 | E5: 2000 | F5: =+D5*12+E5 -> 11600 | G5: 14 | H5: =10/G5 -> 0.7142857143 | I5: =3600*H5/C5 -> 2571.428571 | J5: =+F5/G5 -> 828.5714286 | K5: =9.6*G5 -> 134.4 | L5: =+J5*$S$5 -> 7931.074667 | M5: 0.249 | N5: =+L5*M5 -> 1974.837592 | Q5: Gasolina | R5: 249 | S5: =+S16 -> 9.571986667 | T5: kWh/l | V5: =100/30 -> 3.333333333 | W5: km/litro | Y5: 20 | Z5: Pasajeros/Bus | AA5: =1000/Y6 -> 160.6551917 | AB5: =+(AA5/1000)*$R$9 -> 42.89493617 | AC5: 11.11111111 | AD5: 2.966666667 | AE5: Bus Urb
A6: Auto2 | B6: Automivil | C6: 1 | G6: 10 | H6: =10/G6 -> 1 | I6: =3600*H6/C6 -> 3600 | J6: =+F6/G6 -> 0 | K6: =9.6*G6 -> 96 | L6: =+J6*$S$5 -> 0 | M6: 0.249 | N6: =+L6*M6 -> 0 | Q6: Biodiesel | R6: 255 | S6: =8248*10.8/9300 -> 9.578322581 | T6: kWh/l | V6: Por pasajero | W6: =+V5*Y5 -> 66.66666667 | X6: km/litro | Y6: =+W6/$S$9 -> 6.224510952 | Z6: km/kWh
A7: Auto3 | B7: Automivil | C7: 1 | G7: 10 | H7: =10/G7 -> 1 | I7: =3600*H7/C7 -> 3600 | J7: =+F7/G7 -> 0 | K7: =9.6*G7 -> 96 | L7: =+J7*$S$5 -> 0 | M7: 0.249 | N7: =+L7*M7 -> 0 | Q7: Kerosene | R7: 259 | S7: =+S17 -> 10.40104722 | T7: kWh/l | V7: =100/20 -> 5 | W7: km/litro | Y7: 20 | Z7: Pasajeros/Bus Urb | AA7: =1000/Y8 -> 107.1034611 | AB7: =+(AA7/1000)*$R$9 -> 28.59662412 | AC7: 16.66666667 | AD7: 4.45 | AE7: Bus Urb
A8: SubTotal | I8: =3600*H8 -> 0 | J8: =SUM(J5:J7) -> 828.5714286 | K8: =SUM(K5:K7) -> 326.4 | L8: =SUM(L5:L7) -> 7931.074667 | N8: =SUM(N5:N7) -> 1974.837592 | Q8: Petróleo | R8: 264 | S8: =+S14 -> 10.80569389 | T8: kWh/l | V8: Por pasajero | W8: =+V7*Y7 -> 100 | X8: km/litro | Y8: =+W8/$S$9 -> 9.336766428 | Z8: km/kWh
Q9: Gasoil | R9: 267 | S9: =+S18 -> 10.71034611 | T9: kWh/l | AY9: https://en.wikipedia.org/wiki/Energy_efficiency_in_transport
C10: Horas/semana | N10: =+L10*M10 -> 0 | Q10: Carbón Min. | R10: 346 | S10: 8.7 | T10: kWh/kg | V10: =100/20 -> 5 | W10: km/litro | Y10: 40 | Z10: Pasajeros/Bus InterUr. | AA10: =1000/Y11 -> 53.55173056 | AB10: =+(AA10/1000)*$R$9 -> 14.29831206 | AC10: 8.333333333 | AD10: 2.225 | AE10: Bus Inter Urb | AY10: e of transport | AZ10: Energy Efficiency | BA10: Energy consumption | BB10: Average number of passengers per vehicle | BD10: Energy Efficiency | BE10: Energy consumption
A11: Colectivos | B11: Bus | C11: 5 | D11: =+C11*O11*365/(7) -> 7821.428571 | F11: =+C11*O11*52.14 -> 7821 | G11: =+W6 -> 66.66666667 | H11: =+AA5/1000 -> 0.1606551917 | I11: =3600*H11 -> 578.35869 | J11: =+F11/G11 -> 117.315 | L11: =+H11*F11 -> 1256.484254 | M11: =+$R$9/1000 -> 0.267 | N11: =+L11*M11/1000 -> 0.3354812958 | O11: 30 | Q11: Leña | R11: 403 | S11: 5.5 | T11: kWh/kg | V11: Por pasajero | W11: =+V10*Y10 -> 200 | X11: km/litro | Y11: =+W11/$S$9 -> 18.67353286 | Z11: km/kWh | AY11: mpg(US) of petrol | AZ11: mpg(imp) of petrol | BA11: km/L of petrol | BB11: km/MJ | BC11: W/km | BD11: m/J | BE11: L(petrol)/ 100 km | BF11: kWh/100 km | BG11: Cal/km | BH11: MJ/100 km | BI11: J/m | BJ11: (m·pax)/J | BK11: (m·pax)/J | BL11: (m·pax)/J | BM11: J/(m·pax) | BN11: J/(m·pax) | BO11: W/km/pas
A12: Tren_EE | B12: Tren | C12: 0 | D12: =+C12*O12*365/(7) -> 0 | F12: =+C12*O12*52.1428571428571 -> 0 | H12: 0.0085 | I12: =3600*H12 -> 30.6 | L12: =+H12*F12 -> 0 | M12: =+$R$13/1000 -> 0.327 | N12: =+L12*M12 -> 0 | O12: 45 | Q12: Usina CC GN (CC) | R12: 550 | S12: 1 | T12: kWh (EE) | U12: Ref: | V12: Factores de comparación energéticos Factores de corrección de eficiencia para distintos insumos energéticos en Argentina, de P. Sinsini, J. Fiora, L. Iannelli y S.Gil- Revista Energías Renovables y Medio Ambiente, ASADES, Vol. 42, pp. 1 - 13, 2018 ISSN 0328-932X | AU12: W/km/Pers | AV12: J/m/pas | AX12: W/km/Pers | AY12: Human propelled
A13: Buses InterUrb | B13: Bus | C13: 0 | D13: 0 | F13: =+C13*O13*52.1428571428571 -> 0 | G13: =+W6 -> 66.66666667 | H13: =+AA5/1000 -> 0.1606551917 | I13: =3600*H13 -> 578.35869 | J13: =+F13*W8 -> 0 | L13: =+H13*F13 -> 0 | M13: =+$R$9/1000 -> 0.267 | N13: =+L13*M13 -> 0 | O13: 60 | Q13: Electricidad RA (RA) | R13: 327 | S13: 1 | T13: kWh (EE) | AA13: =50/34 -> 1.470588235 | AT13: Velomovil | AU13: 5 | AV13: =+AU13*3.6 -> 18 | AW13: caminar | AX13: =+BN13/3.6 -> 61.11111111 | AY13: Walking | BD13: 4.55 | BE13: 0.00455 | BH13: 52,58[17] | BI13: 22 | BJ13: 220 | BK13: 1 | BL13: 0.00455 | BM13: =1/BL13 -> 219.7802198 | BN13: 220 | BO13: =+BM13/3.6 -> 61.05006105 | BP13: =+AY13 -> Walking
A14: Transporte Terrestre | K14: =+A14 -> Transporte Terrestre | L14: =SUM(L11:L13)+L8 -> 9187.558921 | N14: =SUM(N11:N13)+N8 -> 1975.173073 | Q14: Petróleo Crudo | R14: =+R8 -> 264 | S14: 10.80569389 | T14: kWh/l
A15: Avion | B15: Avion | F15: 7000 | H15: 1.1 | I15: =3600*H15 -> 3960 | J15: =+L15/10 -> 770 | K15: =+A15 -> Avion | L15: =+H15*F15 -> 7700 | M15: 0.249 | N15: =+L15*M15 -> 1917.3 | Q15: Aeronaftas | S15: 9.316175556 | T15: kWh/l
A16: Total Transporte | L16: =+L14+L15 -> 16887.55892 | N16: =+N14+N15 -> 3892.473073 | Q16: Naftas | R16: =+R5 -> 249 | S16: 9.571986667 | T16: kWh/l
L17: MWh/año | N17: Tn(CO2)/año | Q17: Kerosene y Comb. Jets | R17: =+R7 -> 259 | S17: 10.40104722 | T17: kWh/l
B18: Gas | L18: =+'Consumo de Gas'!E33/1000 -> 7.817320117 | M18: =+R3/1000 -> 0.202 | N18: =+L18*M18 -> 1.579098664 | O18: =+B18 -> Gas | Q18: Gas Oil | R18: =+R9 -> 267 | S18: 10.71034611 | T18: kWh/l
B19: Electricidad | L19: =+'Consumo eléctrico'!I75/1000 -> 2.017 | M19: =+R13/1000 -> 0.327 | N19: =+L19*M19 -> 0.659559 | O19: =+B19 -> Electricidad | Q19: Diesel Oil | R19: =+R9 -> 267 | S19: 10.94871556 | T19: kWh/l
B20: Trans. Terr. | L20: =+L14/1000 -> 9.187558921 | N20: =+N14/1000 -> 1.975173073 | O20: =+B20 -> Trans. Terr. | Q20: Fuel Oil | S20: 11.53824389 | T20: kWh/l
B21: Transp. Aereo | L21: =+L15/1000 -> 7.7 | N21: =+N15/1000 -> 1.9173 | O21: =+B21 -> Transp. Aereo | Q21: Mezcla 70-30 | R21: =+R4 -> 244 | S21: 11.20685222 | T21: kWh/l
B22: TOTAL | L22: =SUM(L18:L21) -> 26.72187904 | N22: =SUM(N18:N21) -> 6.131130737 | O22: =+B22 -> TOTAL
C23: =+G23&ROUND(D33,1)&" MWh/año" -> Consumo de Energía=26.7 MWh/año | G23: Consumo de Energía= | J23: =+G23&ROUND(L22,2)&" MWh/año" -> Consumo de Energía=26.72 MWh/año
C24: =+G24&ROUND(E33,1)&" Tn(CO2)/año" -> Emisiones de CO2 =6.1 Tn(CO2)/año | G24: Emisiones de CO2 = | J24: =+G24&ROUND(N22,2)&" Tn(CO2)/año" -> Emisiones de CO2 =6.13 Tn(CO2)/año
D25: MWh/año | E25: Tn(CO2/año) | G25: Consumo de Energía Anual = | J25: =+G25&ROUND(D33,1)&" MWh/año" -> Consumo de Energía Anual =26.7 MWh/año
B26: Transp.Auto | D26: =+(L5+L6+L7)/1000 -> 7.931074667 | E26: =+(N5+N6+N7)/1000 -> 1.974837592
B27: Tranp. Aereo | D27: =+(L15)/1000 -> 7.7 | E27: =+(N15)/1000 -> 1.9173
B28: Tranp. Bus | D28: =+(L11+L13)/1000 -> 1.256484254 | E28: =+(N11+N12+N13)/1000 -> 0.0003354812958
B29: Tranp. Tren | D29: =+(L12/1000) -> 0 | E29: =+(N12/1000) -> 0 | F29: =SUM(E26:E29) -> 3.892473073
B30: Gas | D30: =+(L18) -> 7.817320117 | E30: =+(N18) -> 1.579098664
B31: Electr. | D31: =+(L19) -> 2.017 | E31: =+(N19) -> 0.659559 | U31: =+Z31 -> 0 | V31: =+AC31 -> 0
U32: =+Z32 -> 0 | V32: =+AC32 -> 0
B33: Total | D33: =SUM(D26:D32) -> 26.72187904 | E33: =SUM(E26:E32) -> 6.131130737 | U33: =+Z33 -> 0 | V33: =+AC33 -> 0
U34: Bicy_EE | V34: 15
U35: Subte | V35: 8.333333333
U36: Tranvia | V36: 8.611111111
U37: EE_Bus | V37: 24.16666667
U38: EE_Scoot | V38: 35
U39: Tren | V39: 50
U40: Bus | V40: 121
U41: Mini_Car_EE | V41: 150
U42: EE_Auto | V42: 200
U43: Avión | V43: 354.7222222
U44: Auto conv. | V44: 1300
U45: Auto Sport | V45: 1500
U48: Vehículos | V48: Costo Inic.
V49: Vehículo
U50: Convencional a Gasolina | V50: 20
U51: Convencional a GNC | V51: 21.2 | W51: 1240 | X51: 165 | Y51: 315.7894737 | Z51: 2.105263158 | AQ51: Bus | AR51: 11 | AT51: =+AR51*1000/$AR$48 -> 
U52: HEV Gasolina | V52: 24 | W52: 520.4924029 | X52: 129.5097132 | Y52: 600 | Z52: 4 | AQ52: EE_Tren | AR52: 24 | AT52: =+AR52*1000/$AR$48 -> 
U53: HEV GNC | V53: 25 | W53: 496.0314613 | X53: 116.5673934 | Y53: 189.4736842 | Z53: 1.263157895 | AQ53: Auto | AR53: 44 | AT53: =+AR53*1000/$AR$48 -> 
U54: BEV_21 | V54: 27 | W54: 170 | X54: 50.49 | Y54: 362.3684211 | Z54: 2.415789474 | AQ54: Avion | AR54: 68 | AT54: =+AR54*1000/$AR$48 -> 
U55: BEV_27 | V55: 21 | W55: 220 | X55: 65.34 | Y55: 319.7368421 | Z55: 2.131578947
U56: km/año | V56: 15000 | W56: T_Vida(años) | X56: 15 | Y56: N_Personas | Z56: 1.5 | AP56: `` | AQ56: Wh/km/pers | AR56: J/m/person
AP57: Caminar | AQ57: 0 | AR57: 0
U58: Vehículos | V58: Costo Inic. | W58: W2W | X58: W2W | Y58: Combustible | Z58: Combustible | AP58: Bicy | AQ58: 0 | AR58: 0
V59: Vehículo | W59: [Wh/km] | X59: [g(CO2)/km] | Y59: [U$S/año] | Z59: [USD/100 km] | AP59: Scooter_EE | AQ59: =+AR59*1000/3600 -> 5.555555556 | AR59: 20
U60: m_BEV_0 | V60: 10 | W60: 160 | X60: 47.52 | Y60: 227.3684211 | Z60: 2.273684211 | AP60: Subte | AQ60: =+AR60*1000/3600 -> 8.333333333 | AR60: 30
U61: m_BEV_1 | V61: 4 | W61: 150 | X61: 44.55 | Y61: 213.1578947 | Z61: 2.131578947 | AP61: Tranvia_EE | AQ61: 8.611111111 | AR61: 31
U62: m_BEV_28 | V62: 2 | W62: 150 | X62: 45 | Y62: 213 | Z62: 2.13 | AP62: Bus_EE | AQ62: 24.16666667 | AR62: 87
U63: Moto Conv 150CC | V63: 2.1 | W63: 289.1624461 | X63: 71.94984068 | Y63: 222.2222222 | Z63: 2.222222222 | AP63: Tren | AQ63: 27.22222222 | AR63: 98
U64: Moto EE | V64: 2 | W64: 35 | X64: 10.395 | Y64: 49.73684211 | Z64: 0.4973684211 | AP64: Auto_EE | AQ64: 32.22222222 | AR64: 116
U65: Bicy Conv | V65: 0.75 | W65: 0 | X65: 0 | Y65: 0 | Z65: 0 | AP65: Bus_Conv | AQ65: 75 | AR65: 270
U66: Bicy EE | V66: 1.6 | W66: 15 | X66: 4.455 | Y66: 21.31578947 | Z66: 0.2131578947 | AP66: Auto_Conv | AQ66: 105.5555556 | AR66: 380
U67: km/año | V67: 10000 | W67: T_Vida(años) | X67: 10 | Y67: N_Personas | Z67: 1 | AP67: Aereo | AQ67: 354.7222222 | AR67: 1277
AP68: Auto_Sport | AQ68: 475 | AR68: 1710
AA73: J/m/per | AB73: kWh/km/pers | AC73: Wh/km/pers | AD73: kg(CO2)/km
AA75: 0 | AB75: =+AA75/3600 -> 0 | AC75: =+AB75*1000 -> 0 | AD75: 0
AA76: 0 | AB76: 0 | AC76: 0 | AD76: 0
Z77: EE_Scoot | AA77: 20 | AB77: 0.005555555556 | AC77: 5.555555556
Z78: Subte | AA78: 30 | AB78: 0.008333333333 | AC78: 8.333333333
Z79: Tranvia | AA79: 31 | AB79: 0.008611111111 | AC79: 8.611111111
Z80: EE_Bus | AA80: 87 | AB80: 0.02416666667 | AC80: 24.16666667
Z81: Tren | AA81: 98 | AB81: 0.02722222222 | AC81: 27.22222222
Z82: EE_Auto | AA82: 116 | AB82: 0.03222222222 | AC82: 32.22222222
Z83: Maglev_Tren | AA83: 169 | AB83: 0.04694444444 | AC83: 46.94444444
Z84: Bus | AA84: 270 | AB84: 0.075 | AC84: 75
Z85: Auto conv. | AA85: 380 | AB85: 0.1055555556 | AC85: 105.5555556
Z86: Avión | AA86: 1277 | AB86: 0.3547222222 | AC86: 354.7222222
Z87: Auto Sport | AA87: 1710 | AB87: 0.475 | AC87: 475
AN92: Daniel Bortolin | AO92: jun.2020
AO93: MJ/km | AP93: MJ/km/pasaj | AQ93: Wh/km/Pasaj.
AN94: car | AO94: 0.6 | AP94: 0.286 | AQ94: =+AP94*1000/3.6 -> 79.44444444
AN95: bus | AO95: 1 | AP95: 0.006 | AQ95: 1.666666667
AN96: tram | AO96: 5.5 | AP96: 0.138 | AQ96: 38.33333333
AN97: metro | AO97: 1.3 | AP97: 0.013 | AQ97: 3.611111111
AN98: local Train | AO98: 15 | AP98: 0.152 | AQ98: 42.22222222
AN99: Expre Trein | AO99: 18 | AP99: 0.152 | AQ99: 42.22222222
AN100: Aeroplane | AO100: 10 | AP100: 0.093 | AQ100: 25.83333333
AN101: Ferry | AO101: 56 | AP101: 0.056 | AQ101: 15.55555556

Sheet Tabla 1y2
H1: kWh | I1: kWh | J1: kWh | K1: kWh | L1: kWh | M1: kWh | N1: kWh | O1: kWh | P1: kWh | Q1: kWh | R1: kWh | S1: kWh | T1: kWh | U1: kWh | V1: kWh | W1: kWh | X1: kWh | Y1: kWh | Z1: kWh | AA1: kWh | AB1: kWh | AC1: kWh | AD1: kWh | AE1: kWh | AF1: kWh | AG1: kWh | AH1: kWh | AI1: kWh | AJ1: kWh | AK1: kWh | AL1: kWh | AM1: kWh | AN1: kWh | AO1: kWh | AP1: kWh | AQ1: kWh | AR1: kWh | AS1: kWh | AT1: kWh | AU1: kWh | AV1: kWh | AW1: kWh | AX1: kWh | AY1: kWh | AZ1: kWh | BA1: kWh | BB1: MWh | BC1: MWh | BD1: MWh | BE1: MWh | BF1: kg(CO2)/MWh | BG1: kg(CO2)/MWh | BH1: kg(CO2)/MWh | BI1: kg(CO2)/MWh
A2: Vincular estas | B2: 1 | C2: =+'Consumo eléctrico'!J6 -> # Persona | D2: =+'Consumo eléctrico'!K6 -> Autor o Resposable: | E2: =+'Consumo eléctrico'!L6 -> Sup (m2) | F2: =+'Consumo eléctrico'!M6 -> Cond.Soc.Econ. | G2: =+'Consumo eléctrico'!N6 -> # de Heladeras | H2: =+'Consumo eléctrico'!O6 -> Heladera | I2: =+'Consumo eléctrico'!P6 -> Lavarropa | J2: =+'Consumo eléctrico'!Q6 -> Iluminacion | K2: =+'Consumo eléctrico'!R6 -> Refr.Calf. AA | L2: =+'Consumo eléctrico'!S6 -> Calef. Electr. | M2: =+'Consumo eléctrico'!T6 -> Microonda | N2: =+'Consumo eléctrico'!U6 -> Cafetera+Tostadora + batidora | O2: =+'Consumo eléctrico'!V6 -> TV+Radio+DVD | P2: =+'Consumo eléctrico'!W6 -> Informatica | Q2: =+'Consumo eléctrico'!X6 -> Stand By | R2: =+'Consumo eléctrico'!Y6 -> Plancha | S2: =+'Consumo eléctrico'!Z6 -> Bomba | T2: =+'Consumo eléctrico'!AA6 -> Secador Pelo | U2: =+'Consumo eléctrico'!AB6 -> Horno Eléctrico | V2: =+'Consumo eléctrico'!AC6 -> Termotanq_EE | W2: =+'Consumo eléctrico'!AD6 -> Cocina_EE | X2: =+'Consumo eléctrico'!AE6 -> Otros | Y2: =+'Consumo eléctrico'!AF6 -> Extras | Z2: =+'Consumo eléctrico'!AG6 -> Todo Electicidad | AA2: =+'Consumo eléctrico'!AH6 -> Cocción_Gas | AB2: =+'Consumo eléctrico'!AI6 -> ACS_Gas | AC2: =+'Consumo eléctrico'!AJ6 -> Piloto_GN | AD2: =+'Consumo eléctrico'!AK6 -> Calef._Gas | AE2: =+'Consumo eléctrico'!AL6 -> Otro_gas | AF2: =+'Consumo eléctrico'!AM6 -> Total Gas | AG2: =+'Consumo eléctrico'!AN6 -> Coccion (kWh) | AH2: =+'Consumo eléctrico'!AO6 -> EE Cocina | AI2: =+'Consumo eléctrico'!AP6 -> ACS (kWh) | AJ2: =+'Consumo eléctrico'!AQ6 -> AT | AK2: =+'Consumo eléctrico'!AR6 -> Refrig.T (kWh) | AL2: =+'Consumo eléctrico'!AS6 -> ACS/Pers | AM2: =+'Consumo eléctrico'!AT6 -> AT/m2 | AN2: =+'Consumo eléctrico'!AU6 -> EE/N_pers | AO2: =+'Consumo eléctrico'!AV6 -> Consumo Totales Gas+Electricidad | AP2: =+'Consumo eléctrico'!AW6 -> Total Cocina (kWh) | AQ2: =+'Consumo eléctrico'!AX6 -> Heladera (kWh) | AR2: =+'Consumo eléctrico'!AY6 -> AT (kWh) | AS2: =+'Consumo eléctrico'!AZ6 -> ACS (kWh) | AT2: =+'Consumo eléctrico'!BA6 -> Pasivo | AU2: =+'Consumo eléctrico'!BB6 -> Casa EE | AV2: =+'Consumo eléctrico'!BC6 -> Otros | AW2: =+'Consumo eléctrico'!BD6 -> Todos | AX2: =+'Consumo eléctrico'!BE6 -> AT/m2 | AY2: =+'Consumo eléctrico'!BF6 -> EE/N_pers | AZ2: =+'Consumo eléctrico'!BG6 -> Calef.T. (kWh) | BA2: =+'Consumo eléctrico'!BH6 -> Calf/m2 | BB2: =+'Consumo eléctrico'!BI6 -> Electr. | BC2: =+'Consumo eléctrico'!BJ6 -> Gas | BD2: =+'Consumo eléctrico'!BK6 -> Transp | BE2: =+'Consumo eléctrico'!BL6 -> Total | BF2: =+'Consumo eléctrico'!BM6 -> Electr. | BG2: =+'Consumo eléctrico'!BN6 -> Gas | BH2: =+'Consumo eléctrico'!BO6 -> Transp | BI2: =+'Consumo eléctrico'!BP6 -> Total
A3: dos filas | B3: =+'Consumo eléctrico'!I7 -> Italia xxx | C3: =+'Consumo eléctrico'!J7 -> 4 | D3: GABRIELA AGUAYO Y TEDESCO | E3: =+'Consumo eléctrico'!L7 -> 67 | F3: =+'Consumo eléctrico'!M7 -> B2 | G3: =+'Consumo eléctrico'!N7 -> 1 | H3: =+'Consumo eléctrico'!O7 -> 730 | I3: =+'Consumo eléctrico'!P7 -> 336.5643669 | J3: =+'Consumo eléctrico'!Q7 -> 86.7628 | K3: =+'Consumo eléctrico'!R7 -> 264.4 | L3: =+'Consumo eléctrico'!S7 -> 0 | M3: =+'Consumo eléctrico'!T7 -> 328.5 | N3: =+'Consumo eléctrico'!U7 -> 524.135 | O3: =+'Consumo eléctrico'!V7 -> 173.5575 | P3: =+'Consumo eléctrico'!W7 -> 468.4166667 | Q3: =+'Consumo eléctrico'!X7 -> 122.64 | R3: =+'Consumo eléctrico'!Y7 -> 114.975 | S3: =+'Consumo eléctrico'!Z7 -> 87.6 | T3: =+'Consumo eléctrico'!AA7 -> 1.825 | U3: =+'Consumo eléctrico'!AB7 -> 137.25 | V3: =+'Consumo eléctrico'!AC7 -> 2007.5 | W3: =+'Consumo eléctrico'!AD7 -> 912.5 | X3: =+'Consumo eléctrico'!AE7 -> 976.2466667 | Y3: =+'Consumo eléctrico'!AF7 -> 0 | Z3: =+SUM(H3:Y3) -> 7272.873 | AA3: =+'Consumo eléctrico'!AH7 -> 1657.76065 | AB3: =+'Consumo eléctrico'!AI7 -> 986.2216 | AC3: =+'Consumo eléctrico'!AJ7 -> 1973.524583 | AD3: =+'Consumo eléctrico'!AK7 -> 3199.813283 | AE3: =+'Consumo eléctrico'!AL7 -> 0 | AF3: =+'Consumo eléctrico'!AM7 -> 7817.320117 | AG3: =+'Consumo eléctrico'!AN7 -> 2707.51065 | AH3: =+'Consumo eléctrico'!AO7 -> 852.635 | AI3: =+'Consumo eléctrico'!AP7 -> 4967.246183 | AJ3: =+'Consumo eléctrico'!AQ7 -> 3376.168083 | AK3: =+'Consumo eléctrico'!AR7 -> 88.0452 | AL3: =+'Consumo eléctrico'!AS7 -> 1241.811546 | AM3: =+'Consumo eléctrico'!AT7 -> 50.39056841 | AN3: =+'Consumo eléctrico'!AU7 -> 1022.11825 | AO3: =+'Consumo eléctrico'!AV7 -> 15090.19312 | AP3: =+'Consumo eléctrico'!AW7 -> 3560.14565 | AQ3: =+'Consumo eléctrico'!AX7 -> 730 | AR3: =+'Consumo eléctrico'!AY7 -> 3464.213283 | AS3: =+'Consumo eléctrico'!AZ7 -> 2993.7216 | AT3: =+'Consumo eléctrico'!BA7 -> 1973.524583 | AU3: =+'Consumo eléctrico'!BB7 -> 1392.341334 | AV3: =+'Consumo eléctrico'!BC7 -> 976.2466667 | AW3: =+'Consumo eléctrico'!BD7 -> 15090.19312 | AX3: =+'Consumo eléctrico'!BE7 -> 51.70467587 | AY3: =+'Consumo eléctrico'!BF7 -> 348.0853334 | AZ3: =+'Consumo eléctrico'!BG7 -> 3420.146617 | BA3: =+'Consumo eléctrico'!BH7 -> 51.04696443 | BB3: =+'Consumo eléctrico'!BI7 -> 7.272873 | BC3: =+'Consumo eléctrico'!BJ7 -> 7.817320117 | BD3: =+'Consumo eléctrico'!BK7 -> 16.88755892 | BE3: =+'Consumo eléctrico'!BL7 -> 31.97775204 | BF3: =+'Consumo eléctrico'!BM7 -> 2.160043281 | BG3: =+'Consumo eléctrico'!BN7 -> 1.579098664 | BH3: =+'Consumo eléctrico'!BO7 -> 4.508978232 | BI3: =+'Consumo eléctrico'!BP7 -> 8.248120176
A4: con la hoja Consumos electricosa | B4: =+Vivienda!F11 -> Su Lugar | C4: # Persona | D4: Autor o Resposable: | E4: Sup (m2) | F4: Cond.Soc.Econ. | G4: # de Heladeras | H4: Heladera | I4: Lavarropa | J4: Iluminacion | K4: Refrigeración Aire Acond. | L4: Calefacción Electr. | M4: Microonda | N4: Cafetera+Tostadora + batidora | O4: TV+Radio+DVD | P4: Informatica | Q4: Stand By | R4: Plancha | S4: Bomba | T4: Secador Pelo | U4: Horno Eléctrico | V4: Termotanq_EE | W4: =+'Consumo eléctrico'!AD6 -> Cocina_EE | X4: Otros | Y4: Extras | AA4: Cocción_Gas | AB4: ACS_Gas | AC4: Piloto_GN | AD4: Calef._Gas | AE4: =+AE2 -> Otro_gas | AF4: =+AF2 -> Total Gas | AG4: Coccion (kWh) | AH4: EE Cocina | AI4: ACS (kWh) | AJ4: AT | AK4: Refrig.T (kWh) | AL4: ACS/Pers | AM4: AT/m2 | AN4: EE/N_pers | AO4: Consumo Totales Gas+Electricidad | AP4: =+AP2 -> Total Cocina (kWh) | AQ4: Heladera (kWh) | AR4: AT (kWh) | AS4: ACS (kWh) | AT4: Pasivo | AU4: Casa EE | AV4: Otros | AW4: Todos | AX4: AT/m2 | AY4: EE/N_pers | AZ4: =+AZ2 -> Calef.T. (kWh) | BA4: Calf/m2 | BB4: Electr. | BC4: Gas | BD4: Transp | BE4: Total | BF4: Electr. | BG4: Gas | BH4: Transp | BI4: Total
A5: DE " I6 a AR7 | C5: =+C3 -> 4 | D5: =+D3 -> GABRIELA AGUAYO Y TEDESCO | E5: 67 | F5: B2 | G5: 1 | H5: 730 | I5: 336.5643669 | J5: 86.7628 | K5: 264.4 | L5: 0 | M5: 328.5 | N5: 524.135 | O5: 173.5575 | P5: 468.4166667 | Q5: 122.64 | R5: 114.975 | S5: 87.6 | T5: 1.825 | U5: 137.25 | V5: 2007.5 | W5: 912.5 | X5: 976.2466667 | Y5: 0 | Z5: 7272.873 | AA5: 1657.76065 | AB5: 986.2216 | AC5: 1973.524583 | AD5: 3199.813283 | AE5: 0 | AF5: =+AF3 -> 7817.320117 | AG5: =+AG3 -> 2707.51065 | AH5: 852.635 | AI5: 4967.246183 | AJ5: 3376.168083 | AK5: 88.0452 | AL5: 1241.811546 | AM5: 50.39056841 | AN5: 1022.11825 | AO5: 15090.19312 | AP5: =+AP3 -> 3560.14565 | AQ5: 730 | AR5: 3464.213283 | AS5: 2993.7216 | AT5: 1973.524583 | AU5: 1392.341334 | AV5: 976.2466667 | AW5: 15090.19312 | AX5: 51.70467587 | AY5: 348.0853334 | AZ5: =+AZ3 -> 3420.146617 | BA5: 51.04696443 | BB5: 7.272873 | BC5: 7.817320117 | BD5: 16.88755892 | BE5: 31.97775204 | BF5: 2.160043281 | BG5: 1.579098664 | BH5: 4.508978232 | BI5: 8.248120176
A6: El resto se acomoda solo | B6: Tabla 1 | O6: TRIUNVIRATO 2467 | AE6: =+AE2 -> Otro_gas | AF6: =+AF2 -> Total Gas | AG6: Coccion (kWh) | AH6: EE Cocina | AI6: ACS (kWh) | AJ6: AT | AK6: Refrig.T (kWh) | AL6: ACS/Pers | AM6: AT/m2 | AN6: EE/N_pers | AO6: Consumo Totales Gas+Electricidad | AP6: Cocina T. | AQ6: Helad. | AR6: Ac.Term | AS6: ACS | AT6: Pasivo | AU6: Casa_Electr. | AV6: Otros | AW6: =+AW2 -> Todos | AX6: AT/m2 | AY6: EE/N_pers | AZ6: =+AZ2 -> Calef.T. (kWh) | BA6: Calf/m2 | BB6: Electr. | BC6: Gas | BD6: Transp | BE6: Total | BF6: Electr. | BG6: Gas | BH6: Transp | BI6: Total
AP7: =+'Consumo eléctrico'!AX11 -> Cons. Total- Su Nombre15.1 MWh/año
B8: Item | D8: =+B4 -> Su Lugar | F8: Modelo | G8: Modelo | W8: Tabla 1 | AP8: =+'Consumo eléctrico'!AU12 -> Acond.Term.=51.7 kWh/m2.año
D9: =+B3 -> Italia xxx | F9: Eficiente | G9: BAU
B10: Nro. Persona | D10: =+C3 -> 4 | F10: 3 | G10: 3 | W10: Item | Y10: =+D8 -> Su Lugar | AA10: Macizo | AC10: Modelo | AD10: Modelo BAU
B11: Superficie Propia (m2) | D11: =+E3 -> 67 | F11: 65 | G11: 65 | Y11: =+D9 -> Italia xxx | AA11: =+BI47 -> 0 | AC11: Eficiente
D12: # de Artefactos | F12: # de Artefactos | G12: # de Artefactos | W12: Nro. Persona | Y12: =C5 -> 4 | AA12: 4 | AC12: 3 | AD12: 3
B13: Nro. Heladera | D13: =+G3 -> 1 | F13: 1 | G13: 1 | W13: Superficie Propia (m2) | Y13: =+E5 -> 67 | AA13: 150 | AC13: 65 | AD13: 65
B14: Artefactos | D14: =+D8 -> Su Lugar | F14: Eficiente | G14: Modelo BAU | Y14: # de Artefactos | AA14: # de Artefactos | AC14: # de Artefactos | AD14: # de Artefactos
W15: Nro. Heladera | Y15: =+G5 -> 1 | AA15: 2 | AC15: 1 | AD15: 1
B16: Artefactos | D16: Consumos Anuales | E16: Observación | F16: Consumos Anuales | G16: Consumos Anuales | W16: Artefactos | Y16: =+Y10 -> Su Lugar | AA16: =+AA10 -> Macizo | AC16: Eficiente | AD16: Modelo BAU
B17: Unidades | D17: kWh/año | F17: kWh/año | G17: kWh/año
A18: TTQ_EE | B18: Termotanq_EE | C18: Claves | D18: =+V5 -> 2007.5 | E18: =+IF(D18<1.35*$F18,"OK", "Excesivo" ) -> OK | F18: 2500 | G18: 3100 | W18: Artefactos | Y18: Consumos Anuales | Z18: Observación | AA18: Consumos Anuales | AB18: Observación | AC18: Consumos Anuales | AD18: Consumos Anuales
A19: Heladera | B19: Heladera | D19: =+H5 -> 730 | E19: =+IF(D19<1.35*$F19,"OK", "Excesivo" ) -> Excesivo | F19: =320*D13 -> 320 | G19: 993.4136445 | W19: Unidades | Y19: kWh/año | AA19: kWh/año | AC19: kWh/año | AD19: kWh/año
A20: Calef.EE | B20: Calefacción Electr. | D20: =+L5 -> 0 | E20: OK | F20: 253.4938737 | G20: 828.3898025 | W20: =+B18 -> Termotanq_EE | X20: Claves | Y20: =+D18 -> 2007.5 | Z20: =+IF(Y20<1.35*$F30,"OK", "Excesivo" ) -> Excesivo | AA20: 2007.5 | AB20: =+IF(AA20<1.35*$F30,"OK", "Excesivo" ) -> Excesivo | AC20: =+F18 -> 2500 | AD20: =+G18 -> 3100
A21: Calef.+Ref.-AA | B21: Refrigeración Aire Acond. | D21: =+K5 -> 264.4 | E21: OK | F21: 208.976 | G21: 736.6543129 | W21: =+B19 -> Heladera | Y21: =+D19 -> 730 | Z21: Excesivo | AA21: 923.45 | AB21: Excesivo | AC21: =+F19 -> 320 | AD21: 993.4136445
A22: Ilum. | B22: Iluminacion | D22: =+J5 -> 86.7628 | E22: Excesivo | F22: 48.55 | G22: 349.4850019 | W22: Calefacción Electr. | Y22: 0 | Z22: OK | AB22: OK | AC22: 253.4938737 | AD22: 828.3898025
A23: TV+Radio | B23: TV+Radio+DVD | D23: =+O5 -> 173.5575 | E23: Excesivo | F23: 63.4933125 | G23: 287.6064167 | W23: Refrigeración Aire Acond. | Y23: 264.4 | Z23: Excesivo | AA23: 1298.5 | AB23: Excesivo | AC23: 208.976 | AD23: 736.6543129
A24: HornoEE | B24: Horno Eléctrico | D24: =+P5 -> 468.4166667 | E24: Excesivo | F24: 75.65540714 | G24: 273.3178071 | W24: Iluminacion | Y24: 86.7628 | Z24: OK | AA24: 41.613 | AB24: OK | AC24: 48.55 | AD24: 349.4850019
A25: Inform. | B25: Informatica | D25: =+P5 -> 468.4166667 | E25: Excesivo | F25: 21.56433036 | G25: 106.3636167 | W25: TV+Radio+DVD | Y25: 173.5575 | Z25: Excesivo | AA25: 305.14 | AB25: Excesivo | AC25: 63.4933125 | AD25: 287.6064167
A26: Cocina_EE | B26: Cafetera+Tost.a + batidora | D26: =+N5 -> 524.135 | E26: Excesivo | F26: 24.49604046 | G26: 105.7297344 | W26: Horno Eléctrico | Y26: 468.4166667 | Z26: Excesivo | AA26: 136.875 | AB26: Excesivo | AC26: 75.65540714 | AD26: 273.3178071
A27: Stand By | B27: Stand By | D27: =+Q5 -> 122.64 | E27: Excesivo | F27: 15.8775 | G27: 98.0901 | W27: Informatica | Y27: 468.4166667 | Z27: OK | AA27: 286.525 | AB27: OK | AC27: 21.56433036 | AD27: 106.3636167
A28: Cuid. Pers. | B28: Secador Pelo | D28: =+T5 -> 1.825 | E28: OK | F28: 5.29219675 | G28: 84.9585309 | W28: Cafetera+Tost.a + batidora | Y28: 524.135 | Z28: OK | AA28: 237.61 | AB28: OK | AC28: 24.49604046 | AD28: 105.7297344
A29: Lavarropa | B29: Lavarropa | D29: =+I5 -> 336.5643669 | E29: Excesivo | F29: 43.1592 | G29: 80.46420156 | W29: Stand By | Y29: 122.64 | Z29: =+IF(Y29<1.35*$F41,"OK", "Excesivo" ) -> OK | AA29: 140.16 | AB29: =+IF(AA29<1.35*$F41,"OK", "Excesivo" ) -> OK | AC29: 15.8775 | AD29: 98.0901
A30: Microonda | B30: Microonda | D30: =+M5 -> 328.5 | E30: Excesivo | F30: 9.842108542 | G30: 64.78531346 | W30: Secador Pelo | Y30: 1.825 | Z30: OK | AA30: 730 | AB30: OK | AC30: 5.29219675 | AD30: 84.9585309
A31: Plancha | B31: Plancha | D31: =+R5 -> 114.975 | E31: Excesivo | F31: 6.640092 | G31: 24.26477264 | W31: Lavarropa | Y31: 336.5643669 | AA31: 276.305 | AC31: 43.1592 | AD31: 80.46420156
A32: Cocina_EE | B32: Cocina_EE | D32: =+W5 -> 912.5 | E32: OK | F32: 1700 | G32: 2000 | W32: Microonda | Y32: 328.5 | Z32: OK | AA32: 255.5 | AB32: OK | AC32: 9.842108542 | AD32: 64.78531346
A33: Otros | B33: Otros | D33: =+X5+Y5 -> 976.2466667 | E33: Excesivo | F33: 159.3124772 | G33: 200.5895122 | H33: =+H34-D34 -> -243.5666667 | W33: Plancha | Y33: 114.975 | Z33: Excesivo | AA33: 114.975 | AB33: Excesivo | AC33: 6.640092 | AD33: 24.26477264
B34: Todo Electicidad | D34: =+SUM(D18:D33) -> 7516.439667 | F34: =+SUM(F18:F33) -> 5456.352539 | G34: =+SUM(G18:G33) -> 9334.112767 | H34: =+Z5 -> 7272.873 | W34: Cocina_EE | Y34: 912.5 | Z34: OK | AA34: 912.5 | AB34: OK | AC34: 1700 | AD34: 2000
B35: Claves | D35: =+SUM(D18:D22)/D34 -> 0.4109209861 | F35: =+SUM(F18:F22)/F34 -> 0.610484724 | G35: 0.643654401 | W35: Otros | Y35: 976.2466667 | Z35: Excesivo | AA35: 526.8166667 | AB35: Excesivo | AC35: 159.3124772 | AD35: 200.5895122
W36: Todo Electicidad | Y36: =+SUM(Y20:Y35) -> 7516.439667 | AA36: =+SUM(AA20:AA35) -> 8193.469667 | AC36: =+SUM(AC20:AC35) -> 5456.352539 | AD36: =+SUM(AD20:AD35) -> 9334.112767
A37: Cooción | B37: Cocción_Gas | D37: =+AA5 -> 1657.76065 | E37: =+IF(D37<1.35*$F37,"OK", "Excesivo" ) -> OK | F37: 1650.130325 | G37: 1462.386436 | W37: Claves | Y37: =+SUM(Y20:Y24)/Y36 -> 0.4109209861 | AA37: =+SUM(AA20:AA24)/AA36 -> 0.5212764767 | AC37: =+SUM(AC20:AC24)/AC36 -> 0.610484724 | AD37: 0.643654401
A38: Galef. | B38: Calef._Gas | D38: =+AD5 -> 3199.813283 | E38: Excesivo | F38: =25*F11 -> 1625 | G38: =50*G11 -> 3250
A39: ACS | B39: ACS_Gas | D39: =+AB5 -> 986.2216 | E39: OK | F39: 3500 | G39: 4500
A40: Pas. | B40: Pasivo | D40: =+AC5 -> 1973.524583 | E40: Excesivo | F40: 0 | G40: 2000
A41: T_gas | B41: Total Gas | D41: =+D37+D38+D39+D40 -> 7817.320117 | E41: Excesivo | F41: 1650.130325 | G41: 1462.386436 | H41: =+AF5 -> 7817.320117 | W41: Cocción_Gas | Y41: =+D37 -> 1657.76065 | Z41: =+IF(Y41<1.25*$H51,"OK", "Excesivo" ) -> Excesivo | AA41: 360 | AB41: =+IF(AA41<1.25*$H51,"OK", "Excesivo" ) -> Excesivo | AC41: 1650.130325 | AD41: 1462.386436
B42: Totales Gas+Electr. | D42: =+D41+D34 -> 15333.75978 | F42: =+F41+F34 -> 7106.482864 | G42: =+G41+G34 -> 10796.4992 | H42: =+AO5 -> 15090.19312 | W42: Calef._Gas | Y42: =+D38 -> 3199.813283 | Z42: =+IF(Y42<1.25*$H52,"OK", "Excesivo" ) -> Excesivo | AC42: =25*AC13 -> 1625 | AD42: =50*AD13 -> 3250
D43: =+D14 -> Su Lugar | F43: =+F14 -> Eficiente | G43: =+G14 -> Modelo BAU | H43: =+AN5 -> 1022.11825 | W43: Total Gas | Y43: =+D41 -> 7817.320117 | AA43: =+AA41+AA42 -> 360 | AC43: 1650.130325 | AD43: 1462.386436
A44: Calef.T | B44: Calefaccion Tot. (kWh/año) | D44: =+D38+D20+D21*0.67 -> 3376.961283 | E44: =+IF(D44<1.35*$F44,"OK", "Excesivo" ) -> Excesivo | F44: =+F38+F20+F21*0.67 -> 2018.507794 | G44: =+G38+G20+G21*0.67 -> 4571.948192 | W44: Totales Gas+Electr. | Y44: =+Y43+Y36 -> 15333.75978 | AA44: =+AA43+AA36 -> 8553.469667 | AC44: =+AC43+AC36 -> 7106.482864 | AD44: =+AD43+AD36 -> 10796.4992
A45: Calef. kWh/m2/año | B45: Calef. kWh/m2/año | D45: =+D44/D11 -> 50.40240721 | E45: Excesivo | F45: =+F44/F11 -> 31.05396606 | G45: =+G44/G11 -> 70.33766449 | Y45: =+Y16 -> Su Lugar | AA45: =+AA16 -> Macizo | AC45: =+AC16 -> Eficiente | AD45: =+AD16 -> Modelo BAU
A46: Eléctr. E/N_pers | B46: Eléctr. E/N_pers | D46: =+(D34-D32-D20-D21-D18)/D10 -> 1083.009917 | E46: OK | F46: =+(F34-F20-F21-F18)/F10 -> 831.2942217 | G46: =+(G34-G20-G21-G18)/G10 -> 1556.356217 | W46: Calefaccion Tot. (kWh/año) | Y46: =+Y42+Y22+Y23*0.67 -> 3376.961283 | AA46: =+AA42+AA22+AA23*0.67 -> 869.995 | AC46: =+AC42+AC22+AC23*0.67 -> 2018.507794 | AD46: =+AD42+AD22+AD23*0.67 -> 4571.948192
W47: Calfacc. kWh/m2/año | Y47: =+Y46/Y13 -> 50.40240721 | AA47: =+AA46/AA13 -> 5.799966667 | AC47: =+AC46/AC13 -> 31.05396606 | AD47: =+AD46/AD13 -> 70.33766449
B48: Todo Electicidad | D48: =+D34 -> 7516.439667 | E48: Excesivo | F48: =+F34 -> 5456.352539 | G48: =+G34 -> 9334.112767 | W48: Eléctr. E/N_pers | Y48: =+(Y36-Y34-Y22-Y23-Y20)/Y12 -> 1083.009917 | AA48: =+(AA36-AA34-AA22-AA23-AA20)/AA12 -> 993.7424167 | AC48: =+(AC36-AC22-AC23-AC20)/AC12 -> 831.2942217 | AD48: =+(AD36-AD22-AD23-AD20)/AD12 -> 1556.356217
C50: =+D14&"-Cons.Eléctr.="&ROUND(D34/1000,1)&" MWh/año" -> Su Lugar-Cons.Eléctr.=7.5 MWh/año | W50: Todo Electicidad | Y50: 5286.408 | AA50: 8193.469667 | AC50: 3936.584807 | AD50: 5396.507297
E51: =+"Mod.BAU -Cons.Tot.="&ROUND(G42/1000,1)&" MWh/año" -> Mod.BAU -Cons.Tot.=10.8 MWh/año
B52: Tabla 2 | E52: =+"Eficiente -Cons.Tot.="&ROUND(F42/1000,1)&" MWh/año" -> Eficiente -Cons.Tot.=7.1 MWh/año
A53: Cons.Tot.=6.9 MWh/año | C53: =+D14&"-Cons.Tot.="&ROUND(D42/1000,1)&" MWh/año" -> Su Lugar-Cons.Tot.=15.3 MWh/año | X53: =+Y16&"-Cons.Eléctr.="&ROUND(Y36/1000,1)&" MWh/año" -> Su Lugar-Cons.Eléctr.=7.5 MWh/año
AA54: 0
B55: =+B8 -> Item | D55: =+D8 -> Su Lugar | F55: Modelo | G55: Modelo | X55: =+Y16&"-Cons.Tot.="&ROUND(Y44/1000,1)&" MWh/año" -> Su Lugar-Cons.Tot.=15.3 MWh/año
D56: =+D9 -> Italia xxx | F56: =+F9 -> Eficiente | G56: =+G9 -> BAU | AA56: =+"Zona "&AA16&"-Cons.Eléctr.="&ROUND(AA36/1000,1)&" MWh/año" -> Zona Macizo-Cons.Eléctr.=8.2 MWh/año
B57: =+B10 -> Nro. Persona | D57: 4 | F57: 3 | G57: 3
B58: Superficie Propia (m2) | D58: 67 | F58: 65 | G58: 65 | AA58: =+"Zona "&AA16&"-Cons.Tot.="&ROUND(AA44/1000,1)&" MWh/año" -> Zona Macizo-Cons.Tot.=8.6 MWh/año
D59: =+D12 -> # de Artefactos | F59: =+F12 -> # de Artefactos | G59: =+G12 -> # de Artefactos
B60: =+B13 -> Nro. Heladera | D60: 1 | F60: 1 | G60: 1 | W60: Calf/m2 | Y60: 56.696475 | AA60: 360 | AC60: 4.876180957 | AD60: 16.37972979
B61: Artefactos | D61: Su Lugar | F61: Eficiente | G61: Modelo BAU | W61: EE/N_pers | Y61: 184.852 | AA61: 5.771111111 | AC61: 276.5543546 | AD61: 924.1304489
W62: Consumo Totales Gas+Electricidad | Y62: 11323.77115 | AA62: 993.7424167 | AC62: 2737.5 | AD62: 1462.386436
B63: =+B16 -> Artefactos | D63: Consumos Anuales | E63: Observación | F63: Consumos Anuales | G63: Consumos Anuales | W63: Callefac. | Y63: =+Y42+Y22+Y23*0.667 -> 3376.168083 | AA63: =+AA42+AA22+AA23*0.667 -> 866.0995 | AC63: =+AC42+AC22+AC23*0.667 -> 2017.880866 | AD63: =+AD42+AD22+AD23*0.667 -> 4569.738229
B64: Unidades | D64: kWh/año | F64: kWh/año | G64: kWh/año | W64: Calf/m2 | Y64: =+Y63/Y13 -> 50.39056841 | AA64: =+AA63/AA13 -> 5.773996667 | AC64: =+AC63/AC13 -> 31.04432101 | AD64: =+AD63/AD13 -> 70.30366506
B65: ACS | C65: =+C18 -> Claves | D65: =+D18+D39+D40 -> 4967.246183 | E65: =+IF(D65<1.35*$F65,"OK", "Excesivo" ) -> Excesivo | F65: =+F18 -> 2500 | G65: =+G18 -> 3100 | H65: 2002 | W65: EE/N_pers | Y65: =+(Y50-Y34-Y32-Y26-Y23-Y22)/Y12 -> 828.1478333 | AA65: =+(AA50-AA34-AA32-AA26-AA23-AA22)/AA12 -> 1397.523667 | AC65: =+(AC50-AC34-AC32-AC26-AC23-AC22)/AC12 -> 562.8724727 | AD65: =+(AD50-AD34-AD32-AD26-AD23-AD22)/AD12 -> 497.7866869
B66: Acond.Térmico | C66: =+C20 -> 0 | D66: =+D20+D21+D38 -> 3464.213283 | E66: Excesivo | F66: =+F20+F21+F38 -> 2087.469874 | G66: =+G20+G21+G38 -> 4815.044115 | H66: =+D66 -> 3464.213283
B67: Cocción | C67: =+C21 -> 0 | D67: =+D32+D37 -> 2570.26065 | E67: Excesivo | F67: =+F37 -> 1650.130325 | G67: =+G37 -> 1462.386436 | H67: 2570.26065
B68: Art. EE. Cocina | D68: =+D24+D30+D26 -> 1321.051667 | E68: Excesivo | F68: =+F24+F26+F30 -> 109.9935561 | G68: =+G24+G26+G30 -> 443.832855 | H68: 2000
B69: =+B19 -> Heladera | D69: =+D19 -> 730 | E69: Excesivo | F69: =+F19 -> 320 | G69: =+G19 -> 993.4136445 | H69: 730
B70: =+B22 -> Iluminacion | C70: =+C22 -> 0 | D70: =+D22 -> 86.7628 | E70: Excesivo | F70: =+F22 -> 48.55 | G70: =+G22 -> 349.4850019 | H70: 86.7628
B71: TV+Infor.+Elect. | D71: =+D23+D25 -> 641.9741667 | E71: Excesivo | F71: =+F23+F25 -> 85.05764286 | G71: =+G23+G25 -> 393.9700334 | H71: 641.9741667
B72: Lavado | D72: =+D29 -> 336.5643669 | E72: Excesivo | F72: =+F29 -> 43.1592 | G72: =+G29 -> 80.46420156 | H72: 1000
B73: =+B33 -> Otros | D73: =+D27+D31+D33 -> 1213.861667 | E73: Excesivo | F73: =+F33+F27+F28+F31 -> 187.122266 | G73: =+G33+G27+G28+G31 -> 407.9029158 | H73: 1213.861667
B75: =+B35 -> Claves | D75: =+SUM(D65:D70)/D82 -> 0.8570043356 | F75: =+SUM(F65:F70)/F82 -> 0.9551532564 | G75: =+SUM(G65:G70)/G82 -> 0.9267557208
B77: =+B37 -> Cocción_Gas | D77: =+D37 -> 1657.76065 | E77: =+IF(D77<=1.35*$F77,"OK", "Excesivo" ) -> OK | F77: =+F37 -> 1650.130325 | G77: =+G37 -> 1462.386436 | H77: 2000
B78: =+B38 -> Calef._Gas | D78: =+D38 -> 3199.813283 | E78: Excesivo | F78: =+F38 -> 1625 | G78: 3250 | H78: 2000
B79: =+B39 -> ACS_Gas | D79: =+D39 -> 986.2216 | E79: OK | F79: 3500 | G79: 4500 | H79: 2000
B80: =+B40 -> Pasivo | D80: 1973.524583 | E80: =+IF(D80<=1.35*$F80,"OK", "Excesivo" ) -> Excesivo | F80: 0 | G80: 2000 | H80: 2000
B81: Total Gas | D81: 7817.320117 | E81: =+IF(D81<=1.35*$F81,"OK", "Excesivo" ) -> Excesivo | F81: 1650.130325 | G81: 1462.386436 | H81: 2000
B82: =+B42 -> Totales Gas+Electr. | D82: =+SUM(D65:D73) -> 15331.93478 | E82: =+IF(D82<1.35*$F82,"OK", "Excesivo" ) -> Excesivo | F82: =+SUM(F65:F73) -> 7031.482864 | G82: =+SUM(G65:G73) -> 12046.4992
B85: =+AP6 -> Cocina T. | D85: =+AP3 -> 3560.14565
B86: =+AQ6 -> Helad. | D86: =+AQ3 -> 730
B87: =+AR6 -> Ac.Term | D87: =+AR3 -> 3464.213283
B88: =+AS6 -> ACS | D88: =+AS3 -> 2993.7216
B89: =+AT6 -> Pasivo | D89: =+AT3 -> 1973.524583
B90: =+AU6 -> Casa_Electr. | D90: =+AU3 -> 1392.341334
B91: =+AV6 -> Otros | D91: =+AV3 -> 976.2466667
B92: =+B52 -> Tabla 2 | D92: =+SUM(D85:D91) -> 15090.19312 | E92: =+D92/1000 -> 15.09019312 | F92: MWh/año
B93: =+'Consumo eléctrico'!$AX$11 -> Cons. Total- Su Nombre15.1 MWh/año
B94: =+'Consumo eléctrico'!$AU$12 -> Acond.Term.=51.7 kWh/m2.año

Sheet Consumos_Carct._2023
B1: Consumos por rubro | J1: Comparacion de los consumos medidos con loa más eficientes | X1: Consumos por Equipo | Y1: Consumo por horas de uso | AE1: Consumos por Equipo | AF1: Consumo por dia y prestación
L2: costo gas Nat.= | M2: =+M3/10.8 -> 2.314814815 | N2: $/kWh
L3: costo gas Nat.= | M3: 25 | N3: $/m3
J4: Tabla 1- Comparación | L4: costo electr.= | M4: 15 | N4: $/kWh | X4: Valores de referencia con una incerteza del 20% | AA4: incerteza 20%
B5: Categoria general | G5: 2019 | J5: Copia simple de Hoja "Cons. Electr." | Q5: Tabla 2- Comparación | Y5: Potencia (W) | Z5: Horas/día | AA5: kWh/Año | AB5: kWh/Año | AF5: Consumo Diario | AG5: Consumo Annual
C6: Primer Cuart | D6: Seg. Cuart | E6: Terc. Cuart | F6: Cuart. Cuart | G6: kWh/año | H6: kWh/año | J6: Comparacion de los consumos medidos con loa más eficientes | P6: Comparacion de los consumos medidos con loa más eficientes | X6: TV(LED y LSD) | Y6: 26 | Z6: 4 | AA6: =+Y6*Z6*365/1000 -> 37.96 | AB6: 30 | AE6: Valores de referencia con una incerteza del 20% | AL6: 4 hs/dia/año
C7: Primer Cuart | D7: Seg. Cuart | E7: Terc. Cuart | F7: Cuart. Cuart | G7: Promedio | H7: Eficiente | J7: Equipo o servicio | K7: Consumos medidos | L7: Consumos eficientes | M7: Posibilidad de ahorro (kWh/año) | N7: Conviene cambiar o ahorro porencial $/año | P7: Equipo o servicio | Q7: Consumos medidos [kWh/año] | R7: Consumos eficientes [kWh/año] | S7: Posibilidad de ahorro [kWh/año] | T7: Ahorro estimado en [ $/año] | U7: Años de amorizacion | V7: Conviene cambiar o eficientizar el consumo? | X7: TV (Tubos) | Y7: 66 | Z7: 4 | AA7: =+Y7*Z7*365/1000 -> 96.36 | AB7: 30 | AF7: Wh/día | AG7: kWh/año | AK7: W | AL7: kWh/año
B8: Heladera | C8: 361.11275 | D8: 598.18025 | E8: 834.86085 | F8: 1800.17635 | G8: 860.6549701 | H8: 300 | P8: Heladera A | Q8: 730 | R8: 300 | S8: 430 | T8: 6450 | U8: =+IF(T8>0,V8/T8,"") -> 15.50387597 | V8: 100000 | AE8: Heladeras ( Mas de 20 años) | AF8: =+AG8*1000/365 -> 3835.616438 | AG8: 1400 | AJ8: TV_LED_32" | AK8: 43 | AL8: 63 | AM8: =+AK8*4*0.365 -> 62.78
B9: AA-Refrigeración | C9: 40.84826087 | D9: 215.1482609 | E9: 570.8725 | F9: 2476.8225 | G9: 647.4332126 | H9: 215.1482609 | J9: =+'Consumo eléctrico'!A15 -> Heladera A | K9: =+'Consumo eléctrico'!I15 -> 730 | L9: 300 | M9: =+IF(K9>1.1*L9,K9-L9,0) -> 430 | N9: =+IF(M9>1,M9*p_kwh,) -> 6450 | P9: Heladera B | Q9: 0 | R9: 300 | S9: 0 | T9: 0 | U9: =+IF(T9>0,V9/T9,"") ->  | V9: 100000 | AE9: Heladeras ( Mas de10 años) | AF9: =+AG9*1000/365 -> 2739.726027 | AG9: 1000 | AJ9: TV_LED_44" | AK9: 44.2 | AL9: 64.5 | AM9: =+AK9*4*0.365 -> 64.532
B10: Ilumin. | C10: 74.936325 | D10: 189.509825 | E10: 372.4163438 | F10: 2499.672844 | G10: 416.2596471 | H10: 85 | J10: =+'Consumo eléctrico'!A16 -> Heladera B | K10: =+'Consumo eléctrico'!I16 -> 0 | L10: 300 | M10: 0 | N10: 0 | P10: Heladera C | Q10: 0 | R10: 300 | S10: 0 | T10: 0 | V10: 100000 | X10: Ahorros Agua | AE10: Heladeras ( Mas de 5 años) | AF10: 2328.767123 | AG10: 850 | AJ10: TV_LED_66" | AK10: 103 | AL10: 151 | AM10: 150.38
B11: Lavavajilla | C11: 0 | D11: 80 | E11: 120 | F11: 370 | G11: 130 | H11: 90 | J11: =+'Consumo eléctrico'!A17 -> Heladera C | K11: =+'Consumo eléctrico'!I17 -> 0 | L11: 300 | M11: 0 | N11: 0 | P11: Lavarropa | Q11: 99.31436688 | R11: 50 | S11: 49.31436688 | T11: 739.7155032 | U11: 135.1871085 | V11: 100000 | X11: ACS_E (calefon) | AE11: Heladeras C | AF11: 1643.835616 | AG11: 600 | AJ11: TV_LED_66" | AK11: 107 | AL11: 156 | AM11: 156.22
B12: Cale.E. | C12: 0.74825 | D12: 59.40216304 | E12: 213.110163 | F12: 1060.30625 | G12: 289.0472583 | H12: 59.40216304 | J12: =+'Consumo eléctrico'!A19 -> Lavarropa | K12: =+'Consumo eléctrico'!I19 -> 99.31436688 | L12: 50 | M12: 49.31436688 | N12: 739.7155032 | P12: Lavavajilla | Q12: 164.25 | R12: 90 | S12: 74.25 | T12: 1113.75 | U12: =+IF(T12>0,V12/T12,"") -> 89.78675645 | V12: 100000 | AC12: 0.15 | AE12: Heladeras B | AF12: 1232.876712 | AG12: 450 | AJ12: TV_LED_50" | AK12: 63 | AL12: 92 | AM12: 91.98
B13: Inform. | C13: 52.77535 | D13: 124.6475 | E13: 251.0574937 | F13: 1166.842494 | G13: 273.2260585 | H13: 124.6475 | J13: =+'Consumo eléctrico'!A20 -> Lavavajilla | K13: =+'Consumo eléctrico'!I20 -> 237.25 | L13: 90 | M13: 147.25 | N13: 2208.75 | P13: Luces principles | Q13: 69.95833333 | R13: 60 | S13: 9.958333333 | T13: 149.375 | U13: 6.694560669 | V13: 1000 | X13: TV y Video | Y13: Potencia (W) | Z13: Horas/día | AA13: Consumo Por año (kWh) | AE13: Heladeras A | AF13: 931.5068493 | AG13: 340 | AM13: 0
B14: TV+Radio+Electr. | C14: 58.78325 | D14: 161.4395 | E14: 266.72375 | F14: 654.372 | G14: 253.0422308 | H14: 161.4395 | J14: =+'Consumo eléctrico'!A21 -> Luces principles | K14: =+'Consumo eléctrico'!I21 -> 58.4 | L14: 60 | M14: 0 | N14: 0 | P14: Luces ocacionales | Q14: 14.162 | R14: 20 | S14: 0 | T14: 0 | V14: 1000 | X14: Reproductor de video | Y14: 100 | Z14: 4 | AA14: =+Y14*Z14*0.365 -> 146 | AB14: 30 | AE14: Heladeras A++ (Invert) | AF14: 739.7260274 | AG14: 270
B15: HornoE | C15: 0 | D15: 4.542156725 | E15: 144.6109067 | F15: 495.92425 | G15: 159.4179099 | H15: 4.542156725 | J15: =+'Consumo eléctrico'!A22 -> Luces ocacionales | K15: =+'Consumo eléctrico'!I22 -> 14.162 | L15: 20 | M15: 0 | N15: 0 | P15: Ventilador Techo o Pie | Q15: 12 | R15: 44 | S15: 0 | T15: 0 | V15: 10000 | X15: Televisor color 14" Válvula | Y15: 50 | Z15: 4 | AA15: =+Y15*Z15*0.365 -> 73 | AR15: Para N_personas | AT15: =+n_pers -> 4 | AU15: =+AT15*50 -> 200 | AV15: Litros/día
B16: Bomba | C16: 0 | D16: 34.80046875 | E16: 170.8004687 | F16: 517.425 | G16: 154.4722883 | H16: 34.80046875 | J16: =+'Consumo eléctrico'!A24 -> Ventilador Techo o Pie | K16: =+'Consumo eléctrico'!I24 -> 12 | L16: 44 | M16: 0 | N16: 0 | P16: Aire Acondicionado 1 | Q16: 0 | R16: 200 | S16: 0 | T16: 0 | V16: 100000 | X16: Televisor color 20" Válvula | Y16: 70 | Z16: 4 | AA16: 102.2 | AK16: Termotanques Electricos | AN16: Para 80 Litros | AO16: Para 80 Litros | AP16: Para 80 Litros | AQ16: Para 80 Litros | AR16: Para 60 Litros | AS16: Para 60 Litros | AT16: Para N Personas | AU16: Para N Personas
B17: Stand By | C17: 21.15783291 | D17: 61.89183291 | E17: 117.47525 | F17: 483.26219 | G17: 123.2806635 | H17: 61.89183291 | J17: =+'Consumo eléctrico'!A26 -> Aire Acondicionado 1 | K17: =+'Consumo eléctrico'!I26 -> 0 | L17: 200 | M17: 0 | N17: 0 | P17: Aire Acondicionado 2 | Q17: 0 | R17: 200 | S17: 0 | T17: 0 | V17: 100000 | X17: Televisor color 27" Válvula | Y17: 100 | Z17: 4 | AA17: 146 | AK17: 80 litros | AN17: Consumo de Cal. Agua solo | AO17: Consumo de Mentenimiento | AP17: Consumo diario total | AQ17: Consumo anual total | AR17: Consumo diario total x Persona | AS17: Consumo anual total x persona | AT17: Consumo diario total | AU17: Consumo anual total
B18: Lavarropa | C18: 15.0079902 | D18: 40.0855 | E18: 88.522 | F18: 368.286 | G18: 150 | H18: 50 | J18: =+'Consumo eléctrico'!A27 -> Aire Acondicionado 2 | K18: =+'Consumo eléctrico'!I27 -> 0 | L18: 200 | M18: 0 | N18: 0 | P18: Aire Acondicionado 3 | Q18: 0 | R18: 200 | S18: 0 | T18: 0 | V18: 100000 | X18: Televisor color 32" LD | Y18: 30 | Z18: 4 | AA18: 43.8 | AJ18: Efic. | AK18: ef | AL18: Vol (litros/dia) | AM18: DT | AN18: AC_kWh | AO18: QM24_kWh | AP18: AC ( kWh/dia) | AQ18: kWh/año | AR18: AC (kWh/dia) | AS18: kWh/año | AT18: AC ( kWh/dia) | AU18: kWh/año
B19: Cafetera | C19: 5.6575 | D19: 28.8715 | E19: 76.4720625 | F19: 377.9255625 | G19: 98.71602205 | H19: 28.8715 | J19: =+'Consumo eléctrico'!A28 -> Aire Acondicionado 3 | K19: =+'Consumo eléctrico'!I28 -> 0 | L19: 200 | M19: 0 | N19: 0 | P19: Estufas Electricas 1 | Q19: 0 | R19: 500 | S19: 0 | T19: 0 | V19: 10000 | X19: Televisor color 40" LED | Y19: 35 | Z19: 4 | AA19: 51.1 | AJ19: B | AK19: 0.96 | AL19: 80 | AM19: =55-17 -> 38 | AN19: =+(AL19*AM19/AK19)*10.8/9300 -> 3.677419355 | AO19: 2.16 | AP19: =+AO19+AN19 -> 5.837419355 | AQ19: =+AP19*365 -> 2130.658065 | AR19: =+AP19*60/80 -> 4.378064516 | AS19: =+AR19*365 -> 1597.993548 | AT19: =+AO19+AN19*AU15/AL19 -> 11.35354839 | AU19: =+AT19*365 -> 4144.045161
B20: Microonda | C20: 13.2825 | D20: 46.8159375 | E20: 97.0928125 | F20: 191.302375 | G20: 83.60528319 | H20: 46.8159375 | J20: =+'Consumo eléctrico'!A30 -> Estufas Electricas 1 | K20: =+'Consumo eléctrico'!I30 -> 0 | L20: 500 | M20: 0 | N20: 0 | P20: Estufas Electricas 2 | Q20: 0 | R20: 500 | S20: 0 | T20: 0 | V20: 10000 | X20: Televisor color 50" LED (EE A) | Y20: 63 | Z20: 4 | AA20: 91.98 | AJ20: C | AK20: 0.96 | AL20: 80 | AM20: =55-17 -> 38 | AN20: =+(AL20*AM20/AK20)*10.8/9300 -> 3.677419355 | AO20: 3.5 | AP20: =+AO20+AN20 -> 7.177419355 | AQ20: =+AP20*365 -> 2619.758065 | AR20: =+AP20*60/80 -> 5.383064516 | AS20: =+AR20*365 -> 1964.818548 | AT20: =+AO20+AN20*AW16/AL20 -> 3.5 | AU20: =+AT20*365 -> 1277.5
B21: Planchado | C21: 5.49 | D21: 24.115 | E21: 65.390625 | F21: 338.765625 | G21: 78.8789909 | H21: 24.115 | J21: =+'Consumo eléctrico'!A31 -> Estufas Electricas 2 | K21: =+'Consumo eléctrico'!I31 -> 0 | L21: 500 | M21: 0 | N21: 0 | P21: Estufas Electricas 3 | Q21: 0 | R21: 500 | S21: 0 | T21: 0 | V21: 10000 | X21: Audio 25 W | Y21: 25 | Z21: 4 | AA21: 36.5 | AJ21: A | AK21: 0.96 | AL21: 80 | AM21: 38 | AN21: 3.677419355 | AO21: 1 | AP21: 4.677419355 | AQ21: 1707.258065 | AR21: 3.508064516 | AS21: 1280.443548 | AT21: 1 | AU21: 365
B22: Secador P. | C22: 0.9125 | D22: 9.933333333 | E22: 38.80333333 | F22: 211.5525 | G22: 58.24503814 | H22: 9.933333333 | J22: =+'Consumo eléctrico'!A32 -> Estufas Electricas 3 | K22: =+'Consumo eléctrico'!I32 -> 0 | L22: 500 | M22: 0 | N22: 0 | P22: Estufas Electricas 4 | Q22: 0 | R22: 500 | S22: 0 | T22: 0 | V22: 10000 | X22: Audio 10 W | Y22: 10 | Z22: 4 | AA22: 14.6
B23: Horno Electr. | J23: =+'Consumo eléctrico'!A33 -> Estufas Electricas 4 | K23: =+'Consumo eléctrico'!I33 -> 0 | L23: 500 | M23: 0 | N23: 0 | P23: Cafetera | Q23: 0 | R23: 30 | S23: 0 | T23: 0 | V23: 10000 | X23: Reproductor de video | Y23: 60 | Z23: 4 | AA23: 87.6
B24: Total EE (kWh/Año) | C24: =SUM(C8:C22) -> 650.712509 | D24: 1679.383228 | E24: 3428.208559 | F24: 13012.63594 | G24: 3776.279573 | H24: 1296.607653 | J24: =+'Consumo eléctrico'!A55 -> Cafetera | K24: =+'Consumo eléctrico'!I55 -> 109.5 | L24: 30 | M24: 79.5 | N24: 1192.5 | P24: Microondas | Q24: 0 | R24: 50 | S24: 0 | T24: 0 | V24: 10000 | X24: Equipo de TV por cable | Y24: 35 | Z24: 4 | AA24: 51.1
E25: P(W) | F25: hs/dia | G25: kWh/dia | H25: kWh/Año | J25: =+'Consumo eléctrico'!A52 -> Microondas | K25: =+'Consumo eléctrico'!I52 -> 328.5 | L25: 50 | M25: 278.5 | N25: 4177.5 | P25: Tostador | Q25: 0 | R25: 35 | S25: 0 | T25: 0 | V25: 30000 | X25: Reproductor de DVD | Y25: 15 | Z25: 4 | AA25: 21.9
B26: ACS_E (Termotanq) | G26: 7 | H26: =+G26*365 -> 2555 | J26: =+'Consumo eléctrico'!A53 -> Tostador | K26: =+'Consumo eléctrico'!I53 -> 273.75 | L26: 35 | M26: 238.75 | N26: 3581.25 | P26: Batidora | Q26: 18.25 | R26: 30 | S26: 0 | T26: 0 | V26: 10000 | X26: TV – LCD 32 | Y26: 55 | Z26: 4 | AA26: 80.3
B27: ACS_E (calefon) | G27: 4 | H27: =+G27*365 -> 1460 | J27: =+'Consumo eléctrico'!A54 -> Batidora | K27: =+'Consumo eléctrico'!I54 -> 9.125 | L27: 30 | M27: 0 | N27: 0 | P27: PC ´s (monit+CPU) | Q27: 8.76 | R27: 60 | S27: 0 | T27: 0 | V27: 100000 | X27: TV – Plasma 32 | Y27: 60 | Z27: 4 | AA27: 87.6
B28: TV(LED 32) A | E28: 26 | F28: 4 | G28: =+E28*F28*365/1000 -> 37.96 | H28: =+G28*4*0.365 -> 55.4216 | J28: =+'Consumo eléctrico'!A34 -> PC ´s (monit+CPU) | K28: =+'Consumo eléctrico'!I34 -> 29.2 | L28: 60 | M28: 0 | N28: 0 | P28: Laptop | Q28: 0 | R28: 50 | S28: 0 | T28: 0 | V28: 200000 | X28: TV – LCD 40 | Y28: 45 | Z28: 4 | AA28: 65.7
B29: TV (Valvulas 32") | E29: 75 | F29: 4 | G29: =+E29*F29*365/1000 -> 109.5 | H29: =+G29*4*0.365 -> 159.87 | J29: =+'Consumo eléctrico'!A35 -> Laptop | K29: =+'Consumo eléctrico'!I35 -> 0 | L29: 50 | M29: 0 | N29: 0 | P29: Impresoras | Q29: 1.216666667 | R29: 25 | S29: 0 | T29: 0 | V29: 40000 | X29: TV – LED 40 | Y29: 35 | Z29: 4 | AA29: 51.1
B30: Ahorros Agua | J30: =+'Consumo eléctrico'!A36 -> Impresoras | K30: =+'Consumo eléctrico'!I36 -> 1.216666667 | L30: 25 | M30: 0 | N30: 0 | P30: WiFi +Router | Q30: 15.20833333 | R30: 50 | S30: 0 | T30: 0 | V30: 5000 | X30: TV – Valvula 32 | Y30: 150 | Z30: 4 | AA30: 219
J31: =+'Consumo eléctrico'!A37 -> WiFi +Router | K31: =+'Consumo eléctrico'!I37 -> 438 | L31: 50 | M31: 388 | N31: 5820 | P31: Radio | Q31: 105.12 | R31: 30 | S31: 75.12 | T31: 1126.8 | U31: 35.49875754 | V31: 40000 | X31: Frío | Calor
H32: 30 | J32: =+'Consumo eléctrico'!A38 -> Radio | K32: =+'Consumo eléctrico'!I38 -> 105.12 | L32: 30 | M32: 75.12 | N32: 1126.8 | P32: TV | Q32: 65.7 | R32: 50 | S32: 15.7 | T32: 235.5 | U32: 212.3142251 | V32: 50000 | X32: Artefacto
B33: Extra | C33: 4198.843908 | D33: 4207.962125 | E33: 4217.080342 | F33: 4226.198558 | H33: 4207.962125 | J33: =+'Consumo eléctrico'!A39 -> TV 1 | K33: =+'Consumo eléctrico'!I39 -> 65.7 | L33: 50 | M33: 15.7 | N33: 235.5 | P33: TV Stand By | Q33: 3.066 | R33: 25 | S33: 0 | T33: 0 | V33: 10000 | X33: Aire Acondicionado (2200 frigorías) | Y33: 850 | Z33: 4 | AA33: =+Y33*Z33*0.2 -> 680
C34: Primer Cuart | D34: Seg. Cuart | E34: Terc. Cuart | F34: Cuart. Cuart | G34: Promedio (KWh) | H34: Eficiente (kWh) | J34: =+'Consumo eléctrico'!A44 -> TV Stand By | K34: =+'Consumo eléctrico'!I44 -> 0 | L34: 25 | M34: 0 | N34: 0 | P34: DVD | Q34: 2.7375 | R34: 25 | S34: 0 | T34: 0 | V34: 10000 | X34: Aire Acondicionado (2200 frigorías) A+ | Y34: 600 | Z34: 4 | AA34: =+Y34*Z34*0.2 -> 480
C35: 662.881884 | D35: 1653.536423 | E35: 3524.075804 | F35: 14564.71798 | G35: 3909.508948 | H35: 1311.959098 | J35: =+'Consumo eléctrico'!A45 -> DVD | K35: =+'Consumo eléctrico'!I45 -> 2.7375 | L35: 25 | M35: 0 | N35: 0 | P35: Stand By Teléfono | Q35: 219 | R35: 25 | S35: 194 | T35: 2910 | U35: 3.436426117 | V35: 10000 | X35: Aire Acondicionado (3200 frigorías) A | Y35: 920 | Z35: 4 | AA35: 736
B36: Todo Electicidad | C36: =+C24 -> 650.712509 | D36: 1679.383228 | E36: 3428.208559 | F36: 13012.63594 | G36: 3776.279573 | H36: 1296.607653 | J36: =+'Consumo eléctrico'!A46 -> Stand By Teléfono | K36: =+'Consumo eléctrico'!I46 -> 43.8 | L36: 25 | M36: 18.8 | N36: 282 | P36: Stand By otros | Q36: 26.28 | R36: 25 | S36: 0 | T36: 0 | V36: 10000 | X36: Aire Acondicionado (4200 frigorías) A | Y36: 1000 | Z36: 4 | AA36: 800
C37: Primer Cuart | D37: Seg. Cuart | E37: Terc. Cuart | F37: Cuart. Cuart | G37: Promedio (KWh) | H37: Eficiente (kWh) | J37: =+'Consumo eléctrico'!A47 -> Stand By otros | K37: =+'Consumo eléctrico'!I47 -> 26.28 | L37: 25 | M37: 0 | N37: 0 | P37: TV-Cable (modulo) | Q37: 52.56 | R37: 25 | S37: 27.56 | T37: 413.4 | U37: 24.18964683 | V37: 10000 | X37: Estufa de cuarzo (2 velas) | Y37: 1200 | Z37: 4 | AA37: =+Y37*Z37*0.165 -> 792
B38: Calefacción | C38: 999.9092466 | D38: 3857.161029 | E38: 7334.178782 | F38: 14936.36398 | G38: 6291.246325 | H38: 3857.161029 | J38: =+'Consumo eléctrico'!A48 -> TV-Cable (modulo) | K38: =+'Consumo eléctrico'!I48 -> 52.56 | L38: 25 | M38: 27.56 | N38: 413.4 | P38: Secador Pelo | Q38: 1.825 | R38: 30 | S38: 0 | T38: 0 | V38: 10000 | X38: Radiador elécrtico | Y38: 1200 | Z38: 4 | AA38: =+Y38*Z38*0.165 -> 792
B39: CAS | C39: 819.8989179 | D39: 2216.685724 | E39: 3355.886806 | F39: 7815.2206 | G39: 3296.797762 | H39: 2216.685724 | J39: =+'Consumo eléctrico'!A49 -> Secador Pelo | K39: =+'Consumo eléctrico'!I49 -> 1.825 | L39: 30 | M39: 0 | N39: 0 | P39: Plancha | Q39: 114.975 | R39: 25 | S39: 89.975 | T39: 1349.625 | U39: 7.409465592 | V39: 10000 | X39: Turbo Calefactor (2000 calorías) | Y39: 2400 | Z39: 4 | AA39: 1584
B40: Piloto | C40: 986.7622917 | D40: 2072.200812 | E40: 2477.719562 | F40: 4887.311975 | G40: 2442.5536 | H40: 2072.200812 | J40: =+'Consumo eléctrico'!A50 -> Plancha | K40: =+'Consumo eléctrico'!I50 -> 114.975 | L40: 25 | M40: 89.975 | N40: 1349.625 | P40: Bomba Agua | Q40: 0 | R40: 35 | S40: 0 | T40: 0 | V40: 60000 | X40: Turbo ventilador | Y40: 100 | Z40: 7 | AA40: 115.5
B41: Cocción | C41: 513.7963056 | D41: 1068.674172 | E41: 1460.527867 | F41: 3728.404993 | G41: 1497.24902 | H41: 1068.674172 | J41: =+'Consumo eléctrico'!A60 -> Bomba Agua | K41: =+'Consumo eléctrico'!I60 -> 87.6 | L41: 35 | M41: 52.6 | N41: 789 | X41: Ventilador Común | Y41: 90 | Z41: 7 | AA41: 103.95
J42: =+'Consumo eléctrico'!A57 -> Dispenser Agua | K42: =+'Consumo eléctrico'!I57 -> 448.95 | L42: 35 | P42: Cocción | Q42: 1263.055733 | R42: 1068.674172 | S42: 194.3815611 | T42: 449.9573174 | U42: 222.2433021 | V42: 100000 | X42: Ventilador de Techo | Y42: 60 | Z42: 7 | AA42: 69.3
B43: Electico | J43: =+'Consumo eléctrico'!A59 -> Agua Cal. Sanit.(TTQ_Electrico) | K43: =+'Consumo eléctrico'!I59 -> 2007.5 | L43: 35 | P43: ACS | Q43: 2013.535767 | R43: 2216.685724 | S43: 0 | V43: 100000
B44: TOTAL_GAS | C44: =SUM(C38:C41) -> 3320.366762 | D44: 9214.721737 | E44: 14628.31302 | F44: 31367.30155 | G44: 13527.84671 | H44: 9214.721737 | J44: =+'Consumo eléctrico'!A61 -> Otros 1(Plancha para el pelo) | K44: =+'Consumo eléctrico'!I61 -> 1.216666667 | P44: Piloto | Q44: 0 | R44: 0 | S44: 0 | V44: 50000 | X44: Artefacto del Hogar | Y44: Potencia (W) | Z44: Consumo Por Ciclo (Wh) | AA44: Consumo Por año (Wh)
B45: TOTAL_GAS | C45: 307.4413668 | D45: 853.2149756 | E45: 1354.473427 | F45: 2904.379773 | G45: 1252.578399 | H45: 853.2149756 | P45: Calef. | Q45: 3859.348978 | R45: 3857.161029 | S45: 0 | V45: 100000 | X45: Lavarropa Autom. A+ (Electrolux) | Y45: 165 | Z45: 200 | AA45: =+Z45*0.3 -> 60
B46: Total (kWh/Año) | C46: =+C44 -> 3320.366762 | D46: 9214.721737 | E46: 14628.31302 | F46: 31367.30155 | G46: 13527.84671 | H46: 9214.721737 | J46: Cocción | K46: =+'Consumo de Gas'!E27 -> 1657.76065 | L46: 1068.674172 | M46: =+IF(K46>1.1*L46,K46-L46,0) -> 589.0864778 | N46: =+IF(M46>1,M46*p_gas,"") -> 1363.626106 | X46: Lavarropas automático A (Sin Calentar Agua) | Y46: 520 | Z46: 230 | AA46: =+Z46*0.3 -> 69
B47: Total_Grl (m3/año) | C47: =+C46/10.8 -> 307.4413668 | D47: 853.2149756 | E47: 1354.473427 | F47: 2904.379773 | G47: 1252.578399 | H47: 853.2149756 | J47: ACS | K47: =+'Consumo de Gas'!E28 -> 986.2216 | L47: 2216.685724 | M47: =+IF(K47>1.1*L47,K47-L47,0) -> 0 | N47: =+IF(M47>1,M47*p_gas,"") ->  | R47: 2216.685724 | X47: Lavarropas automático A (sin calentasr agua) | Y47: 550 | Z47: 270 | AA47: =+Z47*0.3 -> 81
J48: Piloto | K48: =+'Consumo de Gas'!E29 -> 1973.524583 | L48: 0 | M48: =+IF(K48>1.1*L48,K48-L48,0) -> 1973.524583 | N48: =+IF(M48>1,M48*p_gas,"") -> 4568.343943 | P48: Ahorro total aproximado | R48: 0 | S48: =SUM(S9:S45) -> 730.2592613 | T48: =SUM(T8:T46) -> 14938.12282 | X48: Lavarropas autom. con calentamiento de agua | Y48: 2520 | Z48: 650 | AA48: =+Z48*0.3 -> 195
J49: Calef. | K49: =+'Consumo de Gas'!E30 -> 3199.813283 | L49: 3857.161029 | M49: =+IF(K49>1.1*L49,K49+K48-L49,0) -> 0 | N49: =+IF(M49>1,M49*p_gas,"") ->  | R49: 3857.161029
L50: 2216.685724 | N50: =+IF(M50>1,M50*p_gn,"") ->  | X50: Lavarropas semiautomático | Y50: 200 | Z50: 200 | AA50: =+Z50*0.3 -> 60
J51: Ahorro total aproximado | L51: 0 | M51: =SUM(M6:M50) -> 4453.680428 | N51: =SUM(N6:N50) -> 34298.01055 | P51: Tabla 2- Comparación | X51: Secarropas centrífugo | Y51: 240 | Z51: 200 | AA51: =+Z51*0.3 -> 60
B52: =+B5 -> Categoria general | G52: 2021 | L52: 3857.161029 | N52: =+IF(M52>1,M52*p_gn,"") ->  | P52: Comparacion de los consumos medidos con loa más eficientes | X52: Lavavajilla | Z52: 500 | AA52: 1600 | AC52: https://www.cleanipedia.com/ar/sustentabilidad/cuanto-consume-un-lavavajillas.html
C53: =+C6 -> Primer Cuart | D53: Seg. Cuart | E53: Terc. Cuart | F53: Cuart. Cuart | G53: kWh/año | H53: kWh/año | P53: Equipo o servicio | Q53: Consumos medidos [kWh/año] | R53: Consumos eficientes [kWh/año] | S53: Posibilidad de ahorro [kWh/año] | T53: Ahorro estimado en [ $/año] | U53: Años de amorizacion | V53: Conviene cambiar o eficientizar el consumo? | X53: Termotanque Electrico | Y53: 3000 | AA53: =9*365 -> 3285
C54: Primer Cuart | D54: Seg. Cuart | E54: Terc. Cuart | F54: Cuart. Cuart | G54: Promedio | H54: Eficiente | P54: ACS | Q54: 2013.535767 | R54: 2216.685724 | S54: 0 | X54: Freezer | Y54: 75 | AA54: 330
B55: =+B8 -> Heladera | C55: 361.11275 | D55: 598.18025 | E55: 834.86085 | F55: 1800.17635 | G55: 860.6549701 | H55: 300 | J55: Tabla 2 | P55: Piloto | Q55: 0 | R55: 0 | S55: 0 | X55: Heladera A | Y55: 80 | AA55: 320
B56: AA-Refrigeración | C56: 40.84826087 | D56: 215.1482609 | E56: 570.8725 | F56: 2476.8225 | G56: 647.4332126 | H56: 215.1482609 | J56: Equipo o servicio | K56: Consumos medidos | L56: Consumos eficientes | M56: Posibilidad de ahorro | N56: Ahorro Anual ($/año) | P56: Heladera A | Q56: 730 | R56: 300 | S56: 430 | T56: 6450 | U56: 15.50387597 | X56: Heladera con freezer A | Y56: 65 | AA56: 300
B57: Ilumin. | C57: 74.936325 | D57: 189.509825 | E57: 372.4163438 | F57: 2499.672844 | G57: 416.2596471 | H57: 85 | P57: Stand By Teléfono | Q57: 219 | R57: 25 | S57: 194 | T57: 2910 | U57: 3.436426117 | V57: =+IF(U57<10,"Si","no") -> Si | X57: Heladera A++ | Y57: 64 | AA57: 280
B58: Lavavajilla | C58: 0 | D58: 80 | E58: 120 | F58: 370 | G58: 130 | H58: 90 | J58: Calef. | K58: 8380.720833 | L58: 3857.161029 | M58: 4523.559805 | N58: 0 | P58: Plancha | Q58: 114.975 | R58: 25 | S58: 89.975 | T58: 1349.625 | U58: 7.409465592 | V58: Si | X58: Heladera con freezer A++ | Y58: 55 | AA58: 260
B59: Cale.E. | C59: 0.74825 | D59: 59.40216304 | E59: 213.110163 | F59: 1060.30625 | G59: 289.0472583 | H59: 59.40216304 | J59: ACS | K59: 3411.223725 | L59: 2216.685724 | M59: 1194.538001 | N59: 0 | P59: Radio | Q59: 105.12 | R59: 30 | S59: 75.12 | T59: 1126.8 | U59: 35.49875754 | V59: no | X59: Horno microondas | Y59: 800 | AA59: =+Y59*0.365*0.5 -> 146
B60: Inform. | C60: 52.77535 | D60: 124.6475 | E60: 251.0574937 | F60: 1166.842494 | G60: 273.2260585 | H60: 124.6475 | J60: Piloto | K60: 2170.877042 | L60: 0 | M60: 2170.877042 | N60: 0 | P60: Lavavajilla | Q60: 164.25 | R60: 90 | S60: 74.25 | T60: 1113.75 | U60: 89.78675645 | V60: no | X60: Horno eléctrico | Y60: 1300 | AA60: =+Y60*0.365*0.5 -> 237.25
B61: TV+Radio+Electr. | C61: 58.78325 | D61: 161.4395 | E61: 266.72375 | F61: 654.372 | G61: 253.0422308 | H61: 161.4395 | J61: Cocción | K61: 1263.055733 | L61: 1068.674172 | M61: 194.3815611 | N61: 0 | P61: Lavarropa | Q61: 99.31436688 | R61: 50 | S61: 49.31436688 | T61: 739.7155032 | U61: 135.1871085 | V61: no | X61: Pequeños electrodomésticos | Y61: Potencia (W) | Z61: Horas/día | AA61: Consumo Por añoo (Wh)
B62: HornoE | C62: 0 | D62: 4.542156725 | E62: 144.6109067 | F62: 495.92425 | G62: 159.4179099 | H62: 4.542156725 | J62: Heladera A | K62: 730 | L62: 300 | M62: 430 | N62: 6450 | P62: Cocción | Q62: 1263.055733 | R62: 1068.674172 | S62: 194.3815611 | T62: 449.9573174 | U62: 222.2433021 | V62: no | X62: Licuadora | Y62: 300 | Z62: 0.25 | AA62: =+Y62*Z62*0.365 -> 27.375
B63: Bomba | C63: =+C16 -> 0 | D63: 34.80046875 | E63: 170.8004687 | F63: 517.425 | G63: 154.4722883 | H63: 34.80046875 | J63: Aire Acondicionado 3 | K63: 240 | L63: 200 | M63: 40 | N63: 600 | P63: TV-Cable (modulo) | Q63: 52.56 | R63: 25 | S63: 27.56 | T63: 413.4 | U63: 24.18964683 | V63: no | X63: Lustraspiradora | Y63: 750 | Z63: 1 | AA63: =+Y63*Z63*0.365 -> 273.75
B64: Stand By | C64: 21.15783291 | D64: 61.89183291 | E64: 117.47525 | F64: 483.26219 | G64: 123.2806635 | H64: 61.89183291 | J64: Stand By Teléfono | K64: 219 | L64: 25 | M64: 194 | N64: 2910 | P64: TV | Q64: 65.7 | R64: 50 | S64: 15.7 | T64: 235.5 | U64: 212.3142251 | V64: no | X64: Máquina de coser | Y64: 90 | Z64: 1 | AA64: 32.85
B65: Lavarropa | C65: 15.0079902 | D65: 40.0855 | E65: 88.522 | F65: 368.286 | G65: 150 | H65: 50 | J65: Lavavajilla | K65: 164.25 | L65: 90 | M65: 74.25 | N65: 1113.75 | P65: Luces principles | Q65: 69.95833333 | R65: 60 | S65: 9.958333333 | T65: 149.375 | U65: 6.694560669 | V65: Si | X65: Multiprocesadora | Y65: 500 | Z65: 0.3 | AA65: 54.75
B66: Cafetera | C66: 5.6575 | D66: 28.8715 | E66: 76.4720625 | F66: 377.9255625 | G66: 98.71602205 | H66: 28.8715 | J66: Plancha | K66: 114.975 | L66: 25 | M66: 89.975 | N66: 1349.625 | P66: Heladera B | Q66: 0 | R66: 300 | S66: 0 | T66: 0 | V66: no | X66: Plancha | Y66: 1000 | Z66: 0.25 | AA66: 91.25
B67: Microonda | C67: 13.2825 | D67: 46.8159375 | E67: 97.0928125 | F67: 191.302375 | G67: 83.60528319 | H67: 46.8159375 | J67: Radio | K67: 105.12 | L67: 30 | M67: 75.12 | N67: 1126.8 | P67: Heladera C | Q67: 0 | R67: 300 | S67: 0 | T67: 0 | X67: Purificador de aire | Y67: 110 | Z67: 0.25 | AA67: 10.0375
B68: Planchado | C68: 5.49 | D68: 24.115 | E68: 65.390625 | F68: 338.765625 | G68: 78.8789909 | H68: 24.115 | J68: Lavarropa | K68: 99.31436688 | L68: 50 | M68: 49.31436688 | N68: 739.7155032 | P68: Luces ocacionales | Q68: 14.162 | R68: 20 | S68: 0 | T68: 0 | X68: Secador de pelo | Y68: 500 | Z68: =5/16 -> 0.3125 | AA68: 57.03125
B69: Secador P. | C69: 0.9125 | D69: 9.933333333 | E69: 38.80333333 | F69: 211.5525 | G69: 58.24503814 | H69: 9.933333333 | J69: Luces principles | K69: 69.95833333 | L69: 60 | M69: 9.958333333 | N69: 149.375 | P69: Ventilador Techo o Pie | Q69: 12 | R69: 44 | S69: 0 | T69: 0 | X69: Aspiradora | Y69: 750 | Z69: 1 | AA69: 273.75
B70: =+B24 -> Total EE (kWh/Año) | C70: =+SUM(C55:C69) -> 650.712509 | D70: =+SUM(D55:D69) -> 1679.383228 | E70: 3428.208559 | F70: 13012.63594 | G70: 3776.279573 | H70: 2200 | J70: TV | K70: 65.7 | L70: 50 | M70: 15.7 | N70: 235.5 | X70: Cafetera | Y70: 900 | Z70: 0.2 | AA70: 65.7
B71: TTQ_EE | C71: 2000 | D71: 3400 | E71: 5000 | F71: 6500 | G71: =+AVERAGE(C71:F71) -> 4225 | H71: 2200 | J71: TV-Cable (modulo) | K71: 52.56 | L71: 25 | M71: 27.56 | N71: 413.4 | X71: Cortadora de Césped | Y71: 550 | Z71: 0.2 | AA71: 40.15
C72: =+D72 -> kWh/Año | D72: =+E72 -> kWh/Año | E72: =+F72 -> kWh/Año | F72: =+G72 -> kWh/Año | G72: =+H72 -> kWh/Año | H72: =+H25 -> kWh/Año | J72: Stand By otros | K72: 26.28 | L72: 25 | M72: 0 | X72: Extractor de aire | Y72: 25 | Z72: 0.25 | AA72: 2.28125
C73: =+C37 -> Primer Cuart | D73: Seg. Cuart | E73: Terc. Cuart | F73: Cuart. Cuart | G73: Promedio (KWh) | H73: Eficiente (kWh)
B74: =+B38 -> Calefacción | C74: 999.9092466 | D74: 3857.161029 | E74: 7334.178782 | F74: 14936.36398 | G74: 6291.246325 | H74: 3857.161029 | J74: Ventilador Techo o Pie | K74: 24 | L74: 44 | M74: 0 | X74: Freidora | Y74: 2000 | Z74: 0.2 | AA74: 146
B75: CAS | C75: 819.8989179 | D75: 2216.685724 | E75: 3355.886806 | F75: 7815.2206 | G75: 3296.797762 | H75: 2216.685724 | J75: Batidora | K75: 18.25 | L75: 30 | M75: 0 | X75: Ducha eléctrica | Y75: 1200 | Z75: =20/60 -> 0.3333333333 | AA75: 146
B76: Piloto | C76: 986.7622917 | D76: 2072.200812 | E76: 2477.719562 | F76: 4887.311975 | G76: 2442.5536 | H76: 0 | J76: WiFi +Router | K76: 15.20833333 | L76: 50 | M76: 0 | X76: Bombas y motores | Z76: Horas/día
B77: Cocción | C77: 513.7963056 | D77: 1068.674172 | E77: 1460.527867 | F77: 3728.404993 | G77: 1497.24902 | H77: 1068.674172 | J77: Luces ocacionales | K77: 14.162 | L77: 20 | M77: 0 | X77: Artefacto
J78: PC ´s (monit+CPU) | K78: 8.76 | L78: 60 | M78: 0 | X78: Bomba de agua 1/2 HP | Y78: 370 | Z78: 4 | AA78: =+Y78*Z78*0.365 -> 540.2
B79: Gas | J79: TV Stand By | K79: 3.066 | L79: 25 | M79: 0 | X79: Bomba de agua 3/4 HP | Y79: 550 | Z79: 4 | AA79: =+Y79*Z79*0.365 -> 803
B80: =+B44 -> TOTAL_GAS | C80: 3320.366762 | D80: 9214.721737 | E80: 14628.31302 | F80: 31367.30155 | G80: 13527.84671 | H80: 9214.721737 | J80: DVD | K80: 2.7375 | L80: 25 | M80: 0 | X80: Motor de 1 HP | Y80: 750 | Z80: 4 | AA80: 1095
B81: =+B45 -> TOTAL_GAS | C81: =+C45 -> 307.4413668 | D81: 853.2149756 | E81: 1354.473427 | F81: 2904.379773 | G81: 1252.578399 | H81: 853.2149756 | J81: Secador Pelo | K81: 1.825 | L81: 30 | M81: 0 | X81: Lavandería
J82: Impresoras | K82: 1.216666667 | L82: 25 | M82: 0 | X82: Secadora de ropa – Eléctrica | Y82: 3000 | Z82: 1 | AA82: 1095
J83: Heladera B | K83: 0 | L83: 300 | M83: 0 | X83: Secadora de ropa – Gas | Y83: 1800 | Z83: 1 | AA83: 657
J84: Heladera C | K84: 0 | L84: 300 | M84: 0 | X84: Lavadora de ropa | Y84: 800 | Z84: 1 | AA84: 292
J85: Aire Acondicionado 1 | K85: 0 | L85: 200 | M85: 0 | X85: Plancha | Y85: 1200 | Z85: 0.25 | AA85: 109.5
J86: Aire Acondicionado 2 | K86: 0 | L86: 200 | M86: 0 | X86: Aparato | Z86: Horas/día
J87: Estufas Electricas 1 | K87: 0 | L87: 500 | M87: 0 | X87: Sala
J88: Estufas Electricas 2 | K88: 0 | L88: 500 | M88: 0 | X88: Reproductor Blu-ray | Y88: 15 | Z88: 4 | AA88: 21.9
J89: Estufas Electricas 3 | K89: 0 | L89: 500 | M89: 0 | X89: Equipo de TV por cable | Y89: 35 | Z89: 4 | AA89: 51.1
J90: Estufas Electricas 4 | K90: 0 | L90: 500 | M90: 0 | X90: Reproductor de DVD | Y90: 15 | Z90: 4 | AA90: 21.9
J91: Cafetera | K91: 0 | L91: 30 | M91: 0 | X91: TV – LCD 32 | Y91: 55 | Z91: 4 | AA91: 80.3
J92: Microondas | K92: 0 | L92: 50 | M92: 0 | X92: TV – Plasma 32 | Y92: 60 | Z92: 4 | AA92: 87.6
J93: Tostador | K93: 0 | L93: 35 | M93: 0 | X93: TV – LCD 40 | Y93: 45 | Z93: 4 | AA93: 65.7
J94: Laptop | K94: 0 | L94: 50 | M94: 0 | X94: TV – LED 40 | Y94: 35 | Z94: 4 | AA94: 51.1
J95: Bomba Agua | K95: 0 | L95: 35 | M95: 0 | X95: TV – Valvula 32 | Y95: 150 | Z95: 4 | AA95: 219
X96: Minicomponente 20 W | Y96: 20 | Z96: 4 | AA96: 29.2
P97: Ahorro total aproximado | R97: 0 | S97: =SUM(S54:S78) -> 1160.259261 | T97: =SUM(T54:T78) -> 14938.12282 | X97: Minicomponente 50 W | Y97: 50 | Z97: 4 | AA97: 73
X98: Antena parabólica | Y98: 25 | Z98: 4 | AA98: 36.5
X99: Receptor estéreo | Y99: 450 | Z99: 4 | AA99: 657
X100: Consola de videojuegos | Y100: 150 | Z100: 4 | AA100: 219
X101: Luces e iluminación | Z101: Horas/día
X102: Bombilla CFL – Equivalente de 40 vatios | Y102: 11 | Z102: 5 | AA102: 20.075
X103: Bombilla CFL – Equivalente de 60 vatios | Y103: 12 | Z103: 5 | AA103: 21.9
X104: Bombilla CFL – Equivalente de 75 vatios | Y104: 15 | Z104: 5 | AA104: 27.375
X105: Bombilla CFL – Equivalente de 100 vatios | Y105: 25 | Z105: 5 | AA105: 45.625
X106: Fluorescente compacto 30 vatios | Y106: 22 | Z106: 5 | AA106: 40.15
X107: Fluorescente compacto de 45 vatios | Y107: 45 | Z107: 5 | AA107: 82.125
X108: Halógeno – 40 vatios | Y108: 40 | Z108: 5 | AA108: 73
X109: Incandescente 50 Watt | Y109: 50 | Z109: 5 | AA109: 91.25
X110: Incandescente 100 vatios | Y110: 100 | Z110: 5 | AA110: 182.5
X111: Bombilla LED – Equivalente de 40 vatios | Y111: 5 | Z111: 5 | AA111: 9.125
X112: Bombilla LED – Equivalente de 60 vatios | Y112: 6 | Z112: 5 | AA112: 10.95
X113: Bombilla LED – equivalente a 75 vatios | Y113: 7.5 | Z113: 5 | AA113: 13.6875
X114: Bombilla LED – Equivalente de 100 vatios | Y114: 10 | Z114: 5 | AA114: 18.25
X115: Oficina | Z115: Horas/día
X116: Computadora de escritorio (estándar) | Y116: 150 | Z116: 8 | AA116: 438
X117: Computadora de escritorio (juegos) | Y117: 200 | Z117: 8 | AA117: 584
X118: Ordenador portátil (LAPTOP) | Y118: 50 | Z118: 8 | AA118: 146
X119: Monitor LCD | Y119: 50 | Z119: 8 | AA119: 146
X120: Módem | Y120: 7 | Z120: 8 | AA120: 20.44
X121: Trituradora de papel | Y121: 150 | Z121: 2 | AA121: 109.5
X122: Impresora | Y122: 50 | Z122: 1 | AA122: 18.25
X123: Enrutador | Y123: 7 | Z123: 24 | AA123: 61.32
X124: Teléfono inteligente: recarga | Y124: 6 | Z124: 10 | AA124: 21.9
X125: Tableta – Recargue | Y125: 8 | Z125: 10 | AA125: 29.2
X126: Herramientas | Z126: Horas/día
X127: Sierra de cinta – 14 “ | Y127: 1100 | Z127: 0.5 | AA127: 200.75
X128: Lijadora de banda – 3 “ | Y128: 1000 | Z128: 0.5 | AA128: 182.5
X129: Sierra de cadena – 12 “ | Y129: 1100 | Z129: 0.5 | AA129: 200.75
X130: Sierra Circular – 7-1 / 4 “ | Y130: 900 | Z130: 0.5 | AA130: 164.25
X131: Sierra circular 8-1 / 4 “ | Y131: 1400 | Z131: 0.5 | AA131: 255.5
X132: Cortadora de disco- 9 “ | Y132: 1200 | Z132: 0.5 | AA132: 219
X133: Taladro – 1/4 “ | Y133: 250 | Z133: 0.5 | AA133: 45.625
X134: Taladro – 1/2 “ | Y134: 750 | Z134: 0.5 | AA134: 136.875
X135: Taladro – 1 “ | Y135: 1000 | Z135: 0.5 | AA135: 182.5
X136: Motosierra | Y136: 450 | Z136: 0.5 | AA136: 82.125
X137: Motoguadaña electrica | Y137: 500 | Z137: 0.5 | AA137: 91.25

Sheet Consumos
B4: Categoria general | G4: 2021
C5: Primer Cuart | D5: Seg. Cuart | E5: Terc. Cuart | F5: Cuart. Cuart | G5: kWh/año | H5: kWh/año | I5: kWh/año
C6: Primer Cuart | D6: Seg. Cuart | E6: Terc. Cuart | F6: Cuart. Cuart | G6: Promedio | H6: Eficiente | I6: Su Consumo
B7: Heladera | C7: 361.11275 | D7: 598.18025 | E7: 834.86085 | F7: 1800.17635 | G7: 860.6549701 | H7: 361.11275
B8: AA-Refrigeración | C8: 40.84826087 | D8: 215.1482609 | E8: 570.8725 | F8: 2476.8225 | G8: 647.4332126 | H8: 215.1482609
B9: Ilumin. | C9: 74.936325 | D9: 189.509825 | E9: 372.4163438 | F9: 2499.672844 | G9: 416.2596471 | H9: 85
B10: otros | C10: 12.169375 | D10: 54.153195 | E10: 215.867245 | F10: 1922.082043 | G10: 307.5138931 | H10: 54.153195
B11: Cale.E. | C11: 0.74825 | D11: 59.40216304 | E11: 213.110163 | F11: 1060.30625 | G11: 289.0472583 | H11: 59.40216304
B12: Inform. | C12: 52.77535 | D12: 124.6475 | E12: 251.0574937 | F12: 1166.842494 | G12: 273.2260585 | H12: 124.6475
B13: TV+Radio+Electr. | C13: 58.78325 | D13: 161.4395 | E13: 266.72375 | F13: 654.372 | G13: 253.0422308 | H13: 161.4395
B14: HornoE | C14: 0 | D14: 4.542156725 | E14: 144.6109067 | F14: 495.92425 | G14: 159.4179099 | H14: 4.542156725
B15: Bomba | C15: 0 | D15: 34.80046875 | E15: 170.8004687 | F15: 517.425 | G15: 154.4722883 | H15: 34.80046875
B16: Stand By | C16: 21.15783291 | D16: 61.89183291 | E16: 117.47525 | F16: 483.26219 | G16: 123.2806635 | H16: 61.89183291
B17: Lavarropa | C17: 15.0079902 | D17: 40.0855 | E17: 88.522 | F17: 368.286 | G17: 150 | H17: 50
B18: Cafetera | C18: 5.6575 | D18: 28.8715 | E18: 76.4720625 | F18: 377.9255625 | G18: 98.71602205 | H18: 28.8715
B19: Microonda | C19: 13.2825 | D19: 46.8159375 | E19: 97.0928125 | F19: 191.302375 | G19: 83.60528319 | H19: 46.8159375
B20: Planchado | C20: 5.49 | D20: 24.115 | E20: 65.390625 | F20: 338.765625 | G20: 78.8789909 | H20: 24.115
B21: Secador P. | C21: 0.9125 | D21: 9.933333333 | E21: 38.80333333 | F21: 211.5525 | G21: 58.24503814 | H21: 9.933333333
B22: Total EE (kWh/Año) | C22: 662.881884 | D22: 1653.536423 | E22: 3524.075804 | F22: 14564.71798 | G22: 3953.793466 | H22: =SUM(H7:H21) -> 1321.873598 | I22: =SUM(I7:I21) -> 0
C23: kWh/Año | D23: kWh/Año | E23: kWh/Año | F23: kWh/Año | G23: kWh/Año | H23: kWh/Año | I23: kWh/Año
C24: Primer Cuart | D24: Seg. Cuart | E24: Terc. Cuart | F24: Cuart. Cuart | G24: Promedio (KWh) | H24: Eficiente (kWh)
B25: Calefacción | C25: 999.9092466 | D25: 3857.161029 | E25: 7334.178782 | F25: 14936.36398 | G25: 6291.246325 | H25: 3857.161029
B26: CAS | C26: 819.8989179 | D26: 2216.685724 | E26: 3355.886806 | F26: 7815.2206 | G26: 3296.797762 | H26: 2216.685724
B27: Piloto | C27: 986.7622917 | D27: 2072.200812 | E27: 2477.719562 | F27: 4887.311975 | G27: 2442.5536 | H27: 2072.200812
B28: Cocción | C28: 513.7963056 | D28: 1068.674172 | E28: 1460.527867 | F28: 3728.404993 | G28: 1497.24902 | H28: 1068.674172
B30: Gas
B31: TOTAL_GAS | C31: 3320.366762 | D31: 9214.721737 | E31: 14628.31302 | F31: 31367.30155 | G31: 13527.84671 | H31: =SUM(H25:H28) -> 9214.721737 | I31: =SUM(I25:I28) -> 0
B32: TOTAL_GAS | C32: 307.4413668 | D32: 853.2149756 | E32: 1354.473427 | F32: 2904.379773 | G32: 1252.578399 | H32: =+H31/10.8 -> 853.2149756 | I32: =+I31/10.8 -> 0

Sheet Heladera
B1: Heladera yyy | D1: =+B15&ROUND(F3,1)&" Wh/día" -> Consumo medio diario=808.8 Wh/día
B2: Heladera A Abril 2023 | D2: =+B16&ROUND(C3,1)&" kWh/año" -> Consumo medio anual=295.2 kWh/año | H2: La Pendiente va aqui!
B3: Cons. Real= | C3: =+F3*0.365 -> 295.20835 | D3: kWh/año | E3: Medic_2 | F3: 808.79
E4: Tmedia= | F4: 18 C
B5: Medicion | C5: Hora | D5: Wh | E5: ti(d) | F5: Ei(Wh)
B6: 2021-04-26 | C6: 11:11:00 | D6: 2090 | E6: =+B6-$B$6+(C6-$C$6) -> 0 | F6: =+D6-$D$6 -> 0
B7: =+B6 -> 2021-04-26 | C7: 17:30:00 | D7: 2246 | E7: =+B7-$B$6+(C7-$C$6) -> 0.2631944444 | F7: =+D7-$D$6 -> 156
B8: =+B7 -> 2021-04-26 | C8: 22:14:00 | D8: 2408 | E8: 0.4604166667 | F8: 318
B9: =+B8+1 -> 2021-04-27 | C9: 12:33:00 | D9: 2846 | E9: 1.056944444 | F9: 756
B10: =+B9 -> 2021-04-27 | C10: 17:01:00 | D10: 2890 | E10: 1.243055556 | F10: 800
B11: =+B10 -> 2021-04-27 | D11: Tmedia= | E11: 0.5340277778
B15: Consumo medio diario= | D15: =+B15&ROUND(F19,1)&" Wh/día" -> Consumo medio diario=800.8 Wh/día
B16: Consumo medio anual= | D16: =+B16&ROUND(C19,1)&" kWh/año" -> Consumo medio anual=292.3 kWh/año
B17: Heladera zzz
B18: Heladera A++ Abril 2021
B19: Cons. Real= | C19: =+F19*0.365 -> 292.292 | D19: kWh/año | E19: Medición (Wh/día)= | F19: 800.8 | H19: La Pendiente va aqui!
E20: Tmedia= | F20: 18 C
B21: Fecha | C21: Hora | D21: Ei(Wh) | E21: ti(d) | F21: Ei(Wh)
B22: =+B11+1 -> 2021-04-28 | C22: 21:37:00 | D22: 0 | E22: =+B22-$B$22+(C22-$C$22) -> 0 | F22: =+D22-$D$22 -> 0
B23: =+B22+1 -> 2021-04-29 | C23: 00:06:00 | D23: 103 | E23: =+B23-$B$22+(C23-$C$22) -> 0.1034722222 | F23: =+D23-$D$22 -> 103
B24: =+B23 -> 2021-04-29 | C24: 17:46:00 | D24: 662 | E24: 0.8395833333 | F24: 662
B25: =+B24 -> 2021-04-29 | C25: 20:15:00 | D25: 770 | E25: 0.9430555556 | F25: 770
B26: =+B25 -> 2021-04-29 | C26: 23:33:00 | D26: 879 | E26: 1.080555556 | F26: 879
B32: Heladera XXX
B33: Consumo medio diario= | D33: =+B33&ROUND(F36,1)&" Wh/día" -> Consumo medio diario=1053.8 Wh/día
B34: Consumo medio anual= | D34: =+B34&ROUND(C36,1)&" kWh/año" -> Consumo medio anual=384.6 kWh/año
H35: La Pendiente va aqui!
B36: Cons. Real= | C36: =+F36*0.365 -> 384.637 | D36: kWh/año | E36: Medición (Wh/día)= | F36: 1053.8
B37: Heladera A++ Abril 2021 | E37: Tmedia= | F37: 18 C
B38: Fecha | C38: Hora | D38: Ei(Wh) | E38: ti(d) | F38: Ei(Wh)
B39: 2023-10-28 | C39: 21:37:00 | D39: 0 | E39: =+B39-$B$39+(C39-$C$39) -> 0 | F39: =+D39-$D$39 -> 0
B40: =+B39+1 -> 2023-10-29 | C40: 00:06:00 | D40: 180 | E40: =+B40-$B$39+(C40-$C$39) -> 0.1034722222 | F40: =+D40-$D$39 -> 180
B41: =+B40 -> 2023-10-29 | C41: 17:46:00 | D41: 790 | E41: =+B41-$B$39+(C41-$C$39) -> 0.8395833333 | F41: =+D41-$D$39 -> 790
B42: =+B41 -> 2023-10-29 | C42: 20:15:00 | D42: 1000 | E42: 0.9430555556 | F42: 1000
B43: =+B42 -> 2023-10-29 | C43: 23:33:00 | D43: 1200 | E43: 1.080555556 | F43: 1200
